BIOGUIDE_ID,OFFICE,QUARTER,PROGRAM,CATEGORY,SORT SEQUENCE,DATE,TRANSCODE,RECORDID,PAYEE,START DATE,END DATE,PURPOSE,AMOUNT,YEAR
,2021 OFFICE OF THE SPEAKER,3,OFFICIAL EXPENSES - LEADERSHIP,SUPPLIES AND MATERIALS,DETAIL,2021-08-03,AP,1448486,CAPITOL  HOST,2021-07-19,2021-07-19,FOOD & BEVERAGE,298.58,2021
,2021 OFFICE OF THE SPEAKER,3,OFFICIAL EXPENSES - LEADERSHIP,SUPPLIES AND MATERIALS,DETAIL,2021-08-03,AP,1448487,CAPITOL  HOST,2021-07-20,2021-07-20,FOOD & BEVERAGE,124.83,2021
,2021 OFFICE OF THE SPEAKER,3,OFFICIAL EXPENSES - LEADERSHIP,SUPPLIES AND MATERIALS,DETAIL,2021-08-03,AP,1448488,CAPITOL  HOST,2021-07-20,2021-07-20,FOOD & BEVERAGE,259.38,2021
,2021 OFFICE OF THE SPEAKER,3,OFFICIAL EXPENSES - LEADERSHIP,SUPPLIES AND MATERIALS,SUBTOTAL,   ,   ,   ,   ,   ,   ,SUPPLIES AND MATERIALS TOTALS:,682.79,2021
,2021 OFFICE OF THE SPEAKER,3,OFFICIAL EXPENSES - LEADERSHIP,SUPPLIES AND MATERIALS,SUBTOTAL,   ,   ,   ,   ,   ,   ,OFFICIAL EXPENSES - LEADERSHIP TOTALS:,682.79,2021
,2021 OFFICE OF THE SPEAKER,3,GENERAL EXPENDITURES,PERSONNEL COMPENSATION,DETAIL,   ,   ,   ,BENNETT AARON M.,2021-07-01,2021-09-30,DEPUTY DIR OF SPEECHWRITING,15624.99,2021
,2021 OFFICE OF THE SPEAKER,3,GENERAL EXPENDITURES,PERSONNEL COMPENSATION,DETAIL,   ,   ,   ,BERRET EMILY C,2021-07-01,2021-07-31,DIR OF OPERATIONS & ADVISOR,14166.67,2021
,2021 OFFICE OF THE SPEAKER,3,GENERAL EXPENDITURES,PERSONNEL COMPENSATION,DETAIL,   ,   ,   ,BERRET EMILY C,2021-08-01,2021-09-30,DEPUTY CHIEF OF STAFF,28333.34,2021
,2021 OFFICE OF THE SPEAKER,3,GENERAL EXPENDITURES,PERSONNEL COMPENSATION,DETAIL,   ,   ,   ,BLANKENSHIP ALLISON W,2021-07-01,2021-09-30,FLOOR ASSISTANT,17499.99,2021
,2021 OFFICE OF THE SPEAKER,3,GENERAL EXPENDITURES,PERSONNEL COMPENSATION,DETAIL,   ,   ,   ,BUSH JACQUELINE D,2021-07-01,2021-09-30,DEPUTY PRESS SECRETARY,12624.99,2021
,2021 OFFICE OF THE SPEAKER,3,GENERAL EXPENDITURES,PERSONNEL COMPENSATION,DETAIL,   ,   ,   ,CAPRON MARGARET W.,2021-07-01,2021-09-30,SENIOR ADV FOR POLICY & COMM,35674.26,2021
,2021 OFFICE OF THE SPEAKER,3,GENERAL EXPENDITURES,PERSONNEL COMPENSATION,DETAIL,   ,   ,   ,CHERRY STEPHANIE,2021-07-01,2021-09-30,DIRECTOR OF MEDIA AFFAIRS,22500,2021
,2021 OFFICE OF THE SPEAKER,3,GENERAL EXPENDITURES,PERSONNEL COMPENSATION,DETAIL,   ,   ,   ,COCHRAN COURTNEY E.,2021-07-01,2021-09-30,DIRECTOR OF STRATEGIC PLANNING,30000,2021
,2021 OFFICE OF THE SPEAKER,3,GENERAL EXPENDITURES,PERSONNEL COMPENSATION,DETAIL,   ,   ,   ,CONNELLY HENRY V,2021-07-01,2021-09-30,COMMUNICATIONS DIRECTOR,41250,2021
,2021 OFFICE OF THE SPEAKER,3,GENERAL EXPENDITURES,PERSONNEL COMPENSATION,DETAIL,   ,   ,   ,COSTELLO JOSEPH M.,2021-07-01,2021-09-30,SENIOR PRESS ASSISTANT,9375,2021
,2021 OFFICE OF THE SPEAKER,3,GENERAL EXPENDITURES,PERSONNEL COMPENSATION,DETAIL,   ,   ,   ,COSTELLO JOSEPH M.,2021-06-01,2021-08-31,SENIOR PRESS ASSISTANT (OVERTIME),4915.06,2021
,2021 OFFICE OF THE SPEAKER,3,GENERAL EXPENDITURES,PERSONNEL COMPENSATION,DETAIL,   ,   ,   ,DEGRAFF KENNETH B.,2021-07-01,2021-09-30,SENIOR POLICY ADVISOR,31250.01,2021
,2021 OFFICE OF THE SPEAKER,3,GENERAL EXPENDITURES,PERSONNEL COMPENSATION,DETAIL,   ,   ,   ,DONOHUE JENNIFER A,2021-07-01,2021-09-30,EXECUTIVE DIRECTOR,42075,2021
,2021 OFFICE OF THE SPEAKER,3,GENERAL EXPENDITURES,PERSONNEL COMPENSATION,DETAIL,   ,   ,   ,EDMONSON ROBERT D,2021-07-01,2021-09-30,POLICY ADVISOR,37500,2021
,2021 OFFICE OF THE SPEAKER,3,GENERAL EXPENDITURES,PERSONNEL COMPENSATION,DETAIL,   ,   ,   ,EHRENBERG MIA R,2021-07-01,2021-09-30,DEPUTY PRESS SECRETARY,13749.99,2021
,2021 OFFICE OF THE SPEAKER,3,GENERAL EXPENDITURES,PERSONNEL COMPENSATION,DETAIL,   ,   ,   ,FIELDS MCKENZIE R,2021-07-01,2021-09-30,POLICY ADVISOR,8000.01,2021
,2021 OFFICE OF THE SPEAKER,3,GENERAL EXPENDITURES,PERSONNEL COMPENSATION,DETAIL,   ,   ,   ,FISCHER JR ROBERT V.,2021-07-01,2021-09-30,ASST FLOOR CHIEF,43475.01,2021
,2021 OFFICE OF THE SPEAKER,3,GENERAL EXPENDITURES,PERSONNEL COMPENSATION,DETAIL,   ,   ,   ,FLEET II JAMES P,2021-07-01,2021-09-30,SENIOR ADVISOR,300,2021
,2021 OFFICE OF THE SPEAKER,3,GENERAL EXPENDITURES,PERSONNEL COMPENSATION,DETAIL,   ,   ,   ,GREENER APRIL L.,2021-07-01,2021-09-30,RESEARCH DIRECTOR,28250.01,2021
,2021 OFFICE OF THE SPEAKER,3,GENERAL EXPENDITURES,PERSONNEL COMPENSATION,DETAIL,   ,   ,   ,HAMILTON WENDY D,2021-07-01,2021-09-30,OUTREACH & MEMBER SERVICES ADV,22500,2021
,2021 OFFICE OF THE SPEAKER,3,GENERAL EXPENDITURES,PERSONNEL COMPENSATION,DETAIL,   ,   ,   ,HAMMILL ANDREW T.,2021-07-01,2021-09-30,DEPUTY CHIEF OF STAFF,43475.01,2021
,2021 OFFICE OF THE SPEAKER,3,GENERAL EXPENDITURES,PERSONNEL COMPENSATION,DETAIL,   ,   ,   ,HAN LEAH J.,2021-07-01,2021-09-30,STAFF ASSISTANT,9999.99,2021
,2021 OFFICE OF THE SPEAKER,3,GENERAL EXPENDITURES,PERSONNEL COMPENSATION,DETAIL,   ,   ,   ,HAN LEAH J.,2021-06-01,2021-08-31,STAFF ASSISTANT (OVERTIME),2913.43,2021
,2021 OFFICE OF THE SPEAKER,3,GENERAL EXPENDITURES,PERSONNEL COMPENSATION,DETAIL,   ,   ,   ,HEIL BRENNAN A.,2021-07-01,2021-08-06,DIGITAL ASSISTANT,3500,2021
,2021 OFFICE OF THE SPEAKER,3,GENERAL EXPENDITURES,PERSONNEL COMPENSATION,DETAIL,   ,   ,   ,HEIL BRENNAN A.,2021-06-01,2021-07-31,DIGITAL ASSISTANT (OVERTIME),4322.37,2021
,2021 OFFICE OF THE SPEAKER,3,GENERAL EXPENDITURES,PERSONNEL COMPENSATION,DETAIL,   ,   ,   ,HEIL BRENNAN A.,2021-08-01,2021-08-06,DIGITAL ASSISTANT (OTHER COMPENSATION),777.78,2021
,2021 OFFICE OF THE SPEAKER,3,GENERAL EXPENDITURES,PERSONNEL COMPENSATION,DETAIL,   ,   ,   ,HIDALGO ADRIANA N.,2021-07-01,2021-09-30,DISTRICT SCHED/SPECIAL ASSIST,20000.01,2021
,2021 OFFICE OF THE SPEAKER,3,GENERAL EXPENDITURES,PERSONNEL COMPENSATION,DETAIL,   ,   ,   ,HOLMES NATHANIEL J,2021-07-01,2021-09-30,DEP DIR/SCHEDULING & ADVANCE,18249.99,2021
,2021 OFFICE OF THE SPEAKER,3,GENERAL EXPENDITURES,PERSONNEL COMPENSATION,DETAIL,   ,   ,   ,IACOBELLIS SAMUEL C,2021-07-01,2021-09-30,DPTY DIR INTERGOV AFFAIRS ADV,20000.01,2021
,2021 OFFICE OF THE SPEAKER,3,GENERAL EXPENDITURES,PERSONNEL COMPENSATION,DETAIL,   ,   ,   ,JACKSON AUDRA L,2021-07-01,2021-09-30,ASST MGR FOR THE DEM CLOAKROOM,20000.01,2021
,2021 OFFICE OF THE SPEAKER,3,GENERAL EXPENDITURES,PERSONNEL COMPENSATION,DETAIL,   ,   ,   ,JALDIN PAZ HUGO,2021-07-01,2021-09-30,DEPUTY IT DIRECTOR,25223.76,2021
,2021 OFFICE OF THE SPEAKER,3,GENERAL EXPENDITURES,PERSONNEL COMPENSATION,DETAIL,   ,   ,   ,KAPLAN EMMA L,2021-07-01,2021-09-30,DEPUTY FLOOR DIRECTOR,30000,2021
,2021 OFFICE OF THE SPEAKER,3,GENERAL EXPENDITURES,PERSONNEL COMPENSATION,DETAIL,   ,   ,   ,KEATING ROSE M,2021-07-01,2021-09-30,ASST FLOOR MANAGER,35000.01,2021
,2021 OFFICE OF THE SPEAKER,3,GENERAL EXPENDITURES,PERSONNEL COMPENSATION,DETAIL,   ,   ,   ,KEITA KAMILAH Z,2021-07-01,2021-09-30,IT DIRECTOR,26194.89,2021
,2021 OFFICE OF THE SPEAKER,3,GENERAL EXPENDITURES,PERSONNEL COMPENSATION,DETAIL,   ,   ,   ,KISKER GRAYSON S.,2021-09-08,2021-09-30,DIGITAL ASSISTANT,2555.56,2021
,2021 OFFICE OF THE SPEAKER,3,GENERAL EXPENDITURES,PERSONNEL COMPENSATION,DETAIL,   ,   ,   ,KONFORTY NADAV G.,2021-07-01,2021-09-30,STAFF ASSISTANT,9999.99,2021
,2021 OFFICE OF THE SPEAKER,3,GENERAL EXPENDITURES,PERSONNEL COMPENSATION,DETAIL,   ,   ,   ,KONFORTY NADAV G.,2021-06-01,2021-08-31,STAFF ASSISTANT (OVERTIME),3578.33,2021
,2021 OFFICE OF THE SPEAKER,3,GENERAL EXPENDITURES,PERSONNEL COMPENSATION,DETAIL,   ,   ,   ,KUNDANIS GEORGE,2021-07-01,2021-09-30,DEPUTY CHIEF OF STAFF,43475.01,2021
,2021 OFFICE OF THE SPEAKER,3,GENERAL EXPENDITURES,PERSONNEL COMPENSATION,DETAIL,   ,   ,   ,LA ALISA M,2021-07-01,2021-07-23,SPECIAL ASST TO THE SPEAKER,5750,2021
,2021 OFFICE OF THE SPEAKER,3,GENERAL EXPENDITURES,PERSONNEL COMPENSATION,DETAIL,   ,   ,   ,LA ALISA M,2021-06-01,2021-06-30,SPECIAL ASST TO THE SPEAKER (OTHER COMPENSATION),7500,2021
,2021 OFFICE OF THE SPEAKER,3,GENERAL EXPENDITURES,PERSONNEL COMPENSATION,DETAIL,   ,   ,   ,LEE SERYEUNG,2021-07-01,2021-09-30,PRESS SECRETARY,20000.01,2021
,2021 OFFICE OF THE SPEAKER,3,GENERAL EXPENDITURES,PERSONNEL COMPENSATION,DETAIL,   ,   ,   ,LIZARRAGA JAIME E.,2021-07-01,2021-09-30,SENIOR ADVISOR,43475.01,2021
,2021 OFFICE OF THE SPEAKER,3,GENERAL EXPENDITURES,PERSONNEL COMPENSATION,DETAIL,   ,   ,   ,LOPEZ RILEY M.,2021-07-01,2021-09-30,PRESS ASSISTANT,9166.67,2021
,2021 OFFICE OF THE SPEAKER,3,GENERAL EXPENDITURES,PERSONNEL COMPENSATION,DETAIL,   ,   ,   ,LOPEZ RILEY M.,2021-06-01,2021-08-31,PRESS ASSISTANT (OVERTIME),8121,2021
,2021 OFFICE OF THE SPEAKER,3,GENERAL EXPENDITURES,PERSONNEL COMPENSATION,DETAIL,   ,   ,   ,MANGRUM PEARL J.,2021-07-01,2021-09-30,FINANCIAL ADMINISTRATOR,36249.99,2021
,2021 OFFICE OF THE SPEAKER,3,GENERAL EXPENDITURES,PERSONNEL COMPENSATION,DETAIL,   ,   ,   ,MANSBACH SHANA G,2021-07-01,2021-09-30,DIRECTOR OF SPEECHWRITING,31250.01,2021
,2021 OFFICE OF THE SPEAKER,3,GENERAL EXPENDITURES,PERSONNEL COMPENSATION,DETAIL,   ,   ,   ,MARRON BRENNA K,2021-07-01,2021-09-30,DEPUTY EXEC DIRECTOR,29325,2021
,2021 OFFICE OF THE SPEAKER,3,GENERAL EXPENDITURES,PERSONNEL COMPENSATION,DETAIL,   ,   ,   ,MARROW JAMES A,2021-07-01,2021-09-30,CREATIVE DIRECTOR,13250.01,2021
,2021 OFFICE OF THE SPEAKER,3,GENERAL EXPENDITURES,PERSONNEL COMPENSATION,DETAIL,   ,   ,   ,MCCULLOUGH MARY T,2021-07-01,2021-09-30,CHIEF OF STAFF,43475.01,2021
,2021 OFFICE OF THE SPEAKER,3,GENERAL EXPENDITURES,PERSONNEL COMPENSATION,DETAIL,   ,   ,   ,MCCULLOUGH WILLIAM J,2021-07-01,2021-09-30,PRESS ADVISOR,9375,2021
,2021 OFFICE OF THE SPEAKER,3,GENERAL EXPENDITURES,PERSONNEL COMPENSATION,DETAIL,   ,   ,   ,MCCULLOUGH WILLIAM J,2021-06-01,2021-08-31,PRESS ADVISOR (OVERTIME),7375.97,2021
,2021 OFFICE OF THE SPEAKER,3,GENERAL EXPENDITURES,PERSONNEL COMPENSATION,DETAIL,   ,   ,   ,MELTZER RICHARD,2021-07-01,2021-09-30,POLICY DIRECTOR,43475.01,2021
,2021 OFFICE OF THE SPEAKER,3,GENERAL EXPENDITURES,PERSONNEL COMPENSATION,DETAIL,   ,   ,   ,MILLER MONTANA R,2021-07-01,2021-08-27,DEPUTY DIRECTOR OF SCHEDULING,10133.33,2021
,2021 OFFICE OF THE SPEAKER,3,GENERAL EXPENDITURES,PERSONNEL COMPENSATION,DETAIL,   ,   ,   ,MILLER MONTANA R,2021-08-01,2021-08-27,DEPUTY DIRECTOR OF SCHEDULING (OTHER COMPENSATION),4266.67,2021
,2021 OFFICE OF THE SPEAKER,3,GENERAL EXPENDITURES,PERSONNEL COMPENSATION,DETAIL,   ,   ,   ,MITCHELL TOUSSAINT V.,2021-07-01,2021-09-30,STAFF ASSISTANT,9999.99,2021
,2021 OFFICE OF THE SPEAKER,3,GENERAL EXPENDITURES,PERSONNEL COMPENSATION,DETAIL,   ,   ,   ,MITCHELL TOUSSAINT V.,2021-06-01,2021-08-31,STAFF ASSISTANT (OVERTIME),2249.97,2021
,2021 OFFICE OF THE SPEAKER,3,GENERAL EXPENDITURES,PERSONNEL COMPENSATION,DETAIL,   ,   ,   ,MONGE KATHERINE S,2021-07-01,2021-09-30,SENIOR COUNSEL,43475.01,2021
,2021 OFFICE OF THE SPEAKER,3,GENERAL EXPENDITURES,PERSONNEL COMPENSATION,DETAIL,   ,   ,   ,PARKER WYNDEE R.,2021-07-01,2021-09-30,NATIONAL SECURITY ADVISOR,43475.01,2021
,2021 OFFICE OF THE SPEAKER,3,GENERAL EXPENDITURES,PERSONNEL COMPENSATION,DETAIL,   ,   ,   ,PATTERSON ROBYN M.,2021-07-01,2021-09-30,DEPUTY COMMUNICATIONS DIRECTOR,31250.01,2021
,2021 OFFICE OF THE SPEAKER,3,GENERAL EXPENDITURES,PERSONNEL COMPENSATION,DETAIL,   ,   ,   ,PAZ JR CARLOS,2021-07-01,2021-09-30,SENIOR COMMUNICATIONS ADVISOR,33750,2021
,2021 OFFICE OF THE SPEAKER,3,GENERAL EXPENDITURES,PERSONNEL COMPENSATION,DETAIL,   ,   ,   ,PRESLEY JESSICA A,2021-07-01,2021-09-30,DIRECTOR OF DIGITAL STRATEGY,23750.01,2021
,2021 OFFICE OF THE SPEAKER,3,GENERAL EXPENDITURES,PERSONNEL COMPENSATION,DETAIL,   ,   ,   ,PRICE REVA B.,2021-07-01,2021-09-30,OUTREACH DIR & SENIOR ADVISOR,36174.51,2021
,2021 OFFICE OF THE SPEAKER,3,GENERAL EXPENDITURES,PERSONNEL COMPENSATION,DETAIL,   ,   ,   ,PRIMUS WENDELL E.,2021-07-01,2021-09-30,SR HLTH/BUDGET POLICY ADV,43475.01,2021
,2021 OFFICE OF THE SPEAKER,3,GENERAL EXPENDITURES,PERSONNEL COMPENSATION,DETAIL,   ,   ,   ,REED MICHAEL D,2021-07-01,2021-09-30,DIR OF MBR SVCS & SENIOR ADV,39999.99,2021
,2021 OFFICE OF THE SPEAKER,3,GENERAL EXPENDITURES,PERSONNEL COMPENSATION,DETAIL,   ,   ,   ,ROSS PATRICIA L,2021-04-01,2021-04-01,SENIOR POLICY ADVISOR (OTHER COMPENSATION),10833.33,2021
,2021 OFFICE OF THE SPEAKER,3,GENERAL EXPENDITURES,PERSONNEL COMPENSATION,DETAIL,   ,   ,   ,RUDD DIANA,2021-07-01,2021-09-30,MEMBER SERVICES DIR/COUNSEL,30000,2021
,2021 OFFICE OF THE SPEAKER,3,GENERAL EXPENDITURES,PERSONNEL COMPENSATION,DETAIL,   ,   ,   ,RUIZ XENIA F,2021-07-01,2021-09-30,OUTREACH DIRECTOR,32499.99,2021
,2021 OFFICE OF THE SPEAKER,3,GENERAL EXPENDITURES,PERSONNEL COMPENSATION,DETAIL,   ,   ,   ,RUSSELL MAYA A,2021-07-01,2021-09-30,DIGITAL DIRECTOR,14025,2021
,2021 OFFICE OF THE SPEAKER,3,GENERAL EXPENDITURES,PERSONNEL COMPENSATION,DETAIL,   ,   ,   ,SCANNELL BROOKE A,2021-07-01,2021-09-30,SENIOR POLICY ADVISOR,18474.99,2021
,2021 OFFICE OF THE SPEAKER,3,GENERAL EXPENDITURES,PERSONNEL COMPENSATION,DETAIL,   ,   ,   ,SMITH KELSEY L,2021-07-01,2021-09-30,DIR. OF SCHEDULING & ADVANCE,21249.99,2021
,2021 OFFICE OF THE SPEAKER,3,GENERAL EXPENDITURES,PERSONNEL COMPENSATION,DETAIL,   ,   ,   ,SMITH SHANE T,2021-07-01,2021-09-30,SPECIAL ASST TO THE SPEAKER,22500,2021
,2021 OFFICE OF THE SPEAKER,3,GENERAL EXPENDITURES,PERSONNEL COMPENSATION,DETAIL,   ,   ,   ,SOENKSEN AMY C,2021-07-01,2021-09-30,DIR INTERGOV AFFAIRS MBR/SCVS,35000.01,2021
,2021 OFFICE OF THE SPEAKER,3,GENERAL EXPENDITURES,PERSONNEL COMPENSATION,DETAIL,   ,   ,   ,SONG ANNA J.,2021-07-01,2021-09-30,OUTREACH ASSISTANT,12624.99,2021
,2021 OFFICE OF THE SPEAKER,3,GENERAL EXPENDITURES,PERSONNEL COMPENSATION,DETAIL,   ,   ,   ,STERN KEITH L.,2021-07-01,2021-09-30,DIRECTOR OF FLOOR OPERATIONS,43475.01,2021
,2021 OFFICE OF THE SPEAKER,3,GENERAL EXPENDITURES,PERSONNEL COMPENSATION,DETAIL,   ,   ,   ,TECKLENBURG MICHAEL H.,2021-07-01,2021-09-30,COUNSEL,35499.99,2021
,2021 OFFICE OF THE SPEAKER,3,GENERAL EXPENDITURES,PERSONNEL COMPENSATION,DETAIL,   ,   ,   ,URRY ALEXANDER M,2021-07-01,2021-09-30,POLICY ADVISOR,19166.67,2021
,2021 OFFICE OF THE SPEAKER,3,GENERAL EXPENDITURES,PERSONNEL COMPENSATION,DETAIL,   ,   ,   ,VERMILYEA SYDNEY S.,2021-09-06,2021-09-30,DEPUTY SCHEDULER,4166.67,2021
,2021 OFFICE OF THE SPEAKER,3,GENERAL EXPENDITURES,PERSONNEL COMPENSATION,DETAIL,   ,   ,   ,WOLTERS KATE,2021-07-01,2021-09-30,DIRECTOR OF SPECIAL EVENTS,2499.99,2021
,2021 OFFICE OF THE SPEAKER,3,GENERAL EXPENDITURES,PERSONNEL COMPENSATION,SUBTOTAL,   ,   ,   ,   ,   ,   ,PERSONNEL COMPENSATION TOTALS:,1710135.31,2021
,2021 OFFICE OF THE SPEAKER,3,GENERAL EXPENDITURES,TRAVEL,DETAIL,2021-07-19,AP,1440802,CITIBANK GOV CARD SERVICE,2021-06-17,2021-06-17,COMMERCIAL TRANSPORTATION,58.4,2021
,2021 OFFICE OF THE SPEAKER,3,GENERAL EXPENDITURES,TRAVEL,DETAIL,2021-07-19,AP,1440802,CITIBANK GOV CARD SERVICE,2021-06-18,2021-06-18,COMMERCIAL TRANSPORTATION,196,2021
,2021 OFFICE OF THE SPEAKER,3,GENERAL EXPENDITURES,TRAVEL,DETAIL,2021-07-19,AP,1440802,CITIBANK GOV CARD SERVICE,2021-06-17,2021-06-18,LODGING,286.4,2021
,2021 OFFICE OF THE SPEAKER,3,GENERAL EXPENDITURES,TRAVEL,DETAIL,2021-07-19,AP,1440811,IACOBELLIS SAMUEL C.,2021-07-12,2021-07-12,TAXI/PARKING/TOLLS,17.95,2021
,2021 OFFICE OF THE SPEAKER,3,GENERAL EXPENDITURES,TRAVEL,DETAIL,2021-07-19,AP,1440817,SOENKSEN AMY C,2021-07-12,2021-07-12,TAXI/PARKING/TOLLS,37.86,2021
,2021 OFFICE OF THE SPEAKER,3,GENERAL EXPENDITURES,TRAVEL,DETAIL,2021-07-19,AP,1441064,CITIBANK GOV CARD SERVICE,2021-06-09,2021-06-12,LODGING,599.98,2021
,2021 OFFICE OF THE SPEAKER,3,GENERAL EXPENDITURES,TRAVEL,DETAIL,2021-07-19,AP,1441064,CITIBANK GOV CARD SERVICE,2021-06-09,2021-06-09,MEALS,85.31,2021
,2021 OFFICE OF THE SPEAKER,3,GENERAL EXPENDITURES,TRAVEL,DETAIL,2021-07-19,AP,1441064,CITIBANK GOV CARD SERVICE,2021-06-10,2021-06-10,MEALS,29.71,2021
,2021 OFFICE OF THE SPEAKER,3,GENERAL EXPENDITURES,TRAVEL,DETAIL,2021-07-19,AP,1441064,CITIBANK GOV CARD SERVICE,2021-06-11,2021-06-11,MEALS,21.65,2021
,2021 OFFICE OF THE SPEAKER,3,GENERAL EXPENDITURES,TRAVEL,DETAIL,2021-07-19,AP,1441064,CITIBANK GOV CARD SERVICE,2021-06-11,2021-06-11,TAXI/PARKING/TOLLS,68.74,2021
,2021 OFFICE OF THE SPEAKER,3,GENERAL EXPENDITURES,TRAVEL,DETAIL,2021-07-19,AP,1443408,CITIBANK GOV CARD SERVICE,2021-06-09,2021-06-14,COMMERCIAL TRANSPORTATION,946.81,2021
,2021 OFFICE OF THE SPEAKER,3,GENERAL EXPENDITURES,TRAVEL,DETAIL,2021-07-23,AP,1446830,LA ALISA M.,2021-05-21,2021-06-18,TAXI/PARKING/TOLLS,69.31,2021
,2021 OFFICE OF THE SPEAKER,3,GENERAL EXPENDITURES,TRAVEL,DETAIL,2021-08-09,AP,1448484,KONFORTY NADAV G.,2021-07-27,2021-07-27,TAXI/PARKING/TOLLS,23.83,2021
,2021 OFFICE OF THE SPEAKER,3,GENERAL EXPENDITURES,TRAVEL,DETAIL,2021-08-17,AP,1453290,CITIBANK GOV CARD SERVICE,2021-07-14,2021-07-14,COMMERCIAL TRANSPORTATION,91.4,2021
,2021 OFFICE OF THE SPEAKER,3,GENERAL EXPENDITURES,TRAVEL,DETAIL,2021-08-17,AP,1453290,CITIBANK GOV CARD SERVICE,2021-07-16,2021-07-16,COMMERCIAL TRANSPORTATION,168.99,2021
,2021 OFFICE OF THE SPEAKER,3,GENERAL EXPENDITURES,TRAVEL,DETAIL,2021-08-17,AP,1453290,CITIBANK GOV CARD SERVICE,2021-07-14,2021-07-16,LODGING,577.84,2021
,2021 OFFICE OF THE SPEAKER,3,GENERAL EXPENDITURES,TRAVEL,DETAIL,2021-08-17,AP,1453290,CITIBANK GOV CARD SERVICE,2021-07-14,2021-07-14,MEALS,82.99,2021
,2021 OFFICE OF THE SPEAKER,3,GENERAL EXPENDITURES,TRAVEL,DETAIL,2021-08-17,AP,1453290,CITIBANK GOV CARD SERVICE,2021-07-16,2021-07-16,MEALS,21.98,2021
,2021 OFFICE OF THE SPEAKER,3,GENERAL EXPENDITURES,TRAVEL,DETAIL,2021-08-18,AP,1452632,BLANKENSHIP ALLISON W.,2021-07-26,2021-07-28,TAXI/PARKING/TOLLS,62.73,2021
,2021 OFFICE OF THE SPEAKER,3,GENERAL EXPENDITURES,TRAVEL,DETAIL,2021-08-19,AP,1452425,CITIBANK GOV CARD SERVICE,2021-07-13,2021-07-13,COMMERCIAL TRANSPORTATION,307.4,2021
,2021 OFFICE OF THE SPEAKER,3,GENERAL EXPENDITURES,TRAVEL,DETAIL,2021-08-19,AP,1452425,CITIBANK GOV CARD SERVICE,2021-07-14,2021-07-18,COMMERCIAL TRANSPORTATION,1142.8,2021
,2021 OFFICE OF THE SPEAKER,3,GENERAL EXPENDITURES,TRAVEL,DETAIL,2021-08-19,AP,1452425,CITIBANK GOV CARD SERVICE,2021-07-15,2021-07-18,COMMERCIAL TRANSPORTATION,571.4,2021
,2021 OFFICE OF THE SPEAKER,3,GENERAL EXPENDITURES,TRAVEL,DETAIL,2021-08-19,AP,1452425,CITIBANK GOV CARD SERVICE,2021-07-14,2021-07-18,LODGING,612.69,2021
,2021 OFFICE OF THE SPEAKER,3,GENERAL EXPENDITURES,TRAVEL,DETAIL,2021-08-19,AP,1452425,CITIBANK GOV CARD SERVICE,2021-07-16,2021-07-18,LODGING,408.46,2021
,2021 OFFICE OF THE SPEAKER,3,GENERAL EXPENDITURES,TRAVEL,DETAIL,2021-08-19,AP,1452425,CITIBANK GOV CARD SERVICE,2021-07-14,2021-07-14,MEALS,31.31,2021
,2021 OFFICE OF THE SPEAKER,3,GENERAL EXPENDITURES,TRAVEL,DETAIL,2021-08-19,AP,1452425,CITIBANK GOV CARD SERVICE,2021-07-15,2021-07-16,MEALS,146.29,2021
,2021 OFFICE OF THE SPEAKER,3,GENERAL EXPENDITURES,TRAVEL,DETAIL,2021-08-19,AP,1452425,CITIBANK GOV CARD SERVICE,2021-07-18,2021-07-18,MEALS,41.11,2021
,2021 OFFICE OF THE SPEAKER,3,GENERAL EXPENDITURES,TRAVEL,DETAIL,2021-08-19,AP,1452635,LIZARRAGA JAIME E.,2021-08-04,2021-08-04,TAXI/PARKING/TOLLS,30,2021
,2021 OFFICE OF THE SPEAKER,3,GENERAL EXPENDITURES,TRAVEL,DETAIL,2021-09-10,AP,1461054,LEE SERYEUNG,2021-07-13,2021-07-16,LODGING,866.76,2021
,2021 OFFICE OF THE SPEAKER,3,GENERAL EXPENDITURES,TRAVEL,DETAIL,2021-09-10,AP,1461054,LEE SERYEUNG,2021-07-13,2021-07-15,MEALS,136.89,2021
,2021 OFFICE OF THE SPEAKER,3,GENERAL EXPENDITURES,TRAVEL,DETAIL,2021-09-10,AP,1461054,LEE SERYEUNG,2021-07-13,2021-07-14,TAXI/PARKING/TOLLS,129.53,2021
,2021 OFFICE OF THE SPEAKER,3,GENERAL EXPENDITURES,TRAVEL,DETAIL,2021-09-10,AP,1461061,LEE SERYEUNG,2021-08-09,2021-08-11,MEALS,109.19,2021
,2021 OFFICE OF THE SPEAKER,3,GENERAL EXPENDITURES,TRAVEL,DETAIL,2021-09-10,AP,1461061,LEE SERYEUNG,2021-08-09,2021-08-14,TAXI/PARKING/TOLLS,262.46,2021
,2021 OFFICE OF THE SPEAKER,3,GENERAL EXPENDITURES,TRAVEL,DETAIL,2021-09-10,AP,1461813,CITIBANK GOV CARD SERVICE,2021-08-09,2021-08-09,COMMERCIAL TRANSPORTATION,674.4,2021
,2021 OFFICE OF THE SPEAKER,3,GENERAL EXPENDITURES,TRAVEL,DETAIL,2021-09-10,AP,1461813,CITIBANK GOV CARD SERVICE,2021-08-12,2021-08-12,COMMERCIAL TRANSPORTATION,91.4,2021
,2021 OFFICE OF THE SPEAKER,3,GENERAL EXPENDITURES,TRAVEL,DETAIL,2021-09-10,AP,1461813,CITIBANK GOV CARD SERVICE,2021-08-13,2021-08-13,COMMERCIAL TRANSPORTATION,163.4,2021
,2021 OFFICE OF THE SPEAKER,3,GENERAL EXPENDITURES,TRAVEL,DETAIL,2021-09-10,AP,1461813,CITIBANK GOV CARD SERVICE,2021-08-14,2021-08-14,COMMERCIAL TRANSPORTATION,674.4,2021
,2021 OFFICE OF THE SPEAKER,3,GENERAL EXPENDITURES,TRAVEL,DETAIL,2021-09-10,AP,1461813,CITIBANK GOV CARD SERVICE,2021-08-16,2021-08-16,COMMERCIAL TRANSPORTATION,215.98,2021
,2021 OFFICE OF THE SPEAKER,3,GENERAL EXPENDITURES,TRAVEL,DETAIL,2021-09-10,AP,1461813,CITIBANK GOV CARD SERVICE,2021-08-18,2021-08-19,COMMERCIAL TRANSPORTATION,473.4,2021
,2021 OFFICE OF THE SPEAKER,3,GENERAL EXPENDITURES,TRAVEL,DETAIL,2021-09-10,AP,1461813,CITIBANK GOV CARD SERVICE,2021-07-14,2021-07-18,LODGING,612.69,2021
,2021 OFFICE OF THE SPEAKER,3,GENERAL EXPENDITURES,TRAVEL,DETAIL,2021-09-10,AP,1461813,CITIBANK GOV CARD SERVICE,2021-07-15,2021-07-18,LODGING,408.46,2021
,2021 OFFICE OF THE SPEAKER,3,GENERAL EXPENDITURES,TRAVEL,DETAIL,2021-09-10,AP,1461813,CITIBANK GOV CARD SERVICE,2021-08-09,2021-08-12,LODGING,556.71,2021
,2021 OFFICE OF THE SPEAKER,3,GENERAL EXPENDITURES,TRAVEL,DETAIL,2021-09-10,AP,1461813,CITIBANK GOV CARD SERVICE,2021-08-13,2021-08-14,LODGING,185.57,2021
,2021 OFFICE OF THE SPEAKER,3,GENERAL EXPENDITURES,TRAVEL,DETAIL,2021-09-10,AP,1461813,CITIBANK GOV CARD SERVICE,2021-07-16,2021-07-16,MEALS,99.65,2021
,2021 OFFICE OF THE SPEAKER,3,GENERAL EXPENDITURES,TRAVEL,DETAIL,2021-09-10,AP,1461813,CITIBANK GOV CARD SERVICE,2021-07-16,2021-07-17,MEALS,3.4,2021
,2021 OFFICE OF THE SPEAKER,3,GENERAL EXPENDITURES,TRAVEL,DETAIL,2021-09-10,AP,1461813,CITIBANK GOV CARD SERVICE,2021-08-09,2021-08-09,MEALS,17.38,2021
,2021 OFFICE OF THE SPEAKER,3,GENERAL EXPENDITURES,TRAVEL,DETAIL,2021-09-10,AP,1461813,CITIBANK GOV CARD SERVICE,2021-08-10,2021-08-10,MEALS,1.63,2021
,2021 OFFICE OF THE SPEAKER,3,GENERAL EXPENDITURES,TRAVEL,DETAIL,2021-09-13,AP,1460981,EHRENBERG MIA R.,2021-08-16,2021-08-18,MEALS,120.81,2021
,2021 OFFICE OF THE SPEAKER,3,GENERAL EXPENDITURES,TRAVEL,DETAIL,2021-09-13,AP,1460981,EHRENBERG MIA R.,2021-08-11,2021-08-11,PRIVATE AUTO MILEAGE,47.26,2021
,2021 OFFICE OF THE SPEAKER,3,GENERAL EXPENDITURES,TRAVEL,DETAIL,2021-09-13,AP,1460981,EHRENBERG MIA R.,2021-08-16,2021-08-19,TAXI/PARKING/TOLLS,279.22,2021
,2021 OFFICE OF THE SPEAKER,3,GENERAL EXPENDITURES,TRAVEL,DETAIL,2021-09-29,AP,1470133,HIDALGO ADRIANA N.,2021-07-07,2021-07-07,PRIVATE AUTO MILEAGE,73.92,2021
,2021 OFFICE OF THE SPEAKER,3,GENERAL EXPENDITURES,TRAVEL,DETAIL,2021-09-29,AP,1470133,HIDALGO ADRIANA N.,2021-07-07,2021-07-16,TAXI/PARKING/TOLLS,47.52,2021
,2021 OFFICE OF THE SPEAKER,3,GENERAL EXPENDITURES,TRAVEL,DETAIL,2021-09-29,AP,1470135,HIDALGO ADRIANA N.,2021-07-01,2021-07-19,PRIVATE AUTO MILEAGE,20.72,2021
,2021 OFFICE OF THE SPEAKER,3,GENERAL EXPENDITURES,TRAVEL,DETAIL,2021-09-29,AP,1470135,HIDALGO ADRIANA N.,2021-07-14,2021-07-14,TAXI/PARKING/TOLLS,32.77,2021
,2021 OFFICE OF THE SPEAKER,3,GENERAL EXPENDITURES,TRAVEL,DETAIL,2021-09-29,AP,1470139,HIDALGO ADRIANA N.,2021-08-10,2021-08-31,PRIVATE AUTO MILEAGE,38.42,2021
,2021 OFFICE OF THE SPEAKER,3,GENERAL EXPENDITURES,TRAVEL,DETAIL,2021-09-29,AP,1470139,HIDALGO ADRIANA N.,2021-08-30,2021-08-30,TAXI/PARKING/TOLLS,12.39,2021
,2021 OFFICE OF THE SPEAKER,3,GENERAL EXPENDITURES,TRAVEL,DETAIL,2021-09-29,AP,1470340,BERRET EMILY C.,2021-09-13,2021-09-14,LODGING,185.57,2021
,2021 OFFICE OF THE SPEAKER,3,GENERAL EXPENDITURES,TRAVEL,DETAIL,2021-09-29,AP,1470340,BERRET EMILY C.,2021-09-14,2021-09-14,MEALS,9.15,2021
,2021 OFFICE OF THE SPEAKER,3,GENERAL EXPENDITURES,TRAVEL,DETAIL,2021-09-29,AP,1470340,BERRET EMILY C.,2021-09-13,2021-09-13,TAXI/PARKING/TOLLS,79.16,2021
,2021 OFFICE OF THE SPEAKER,3,GENERAL EXPENDITURES,TRAVEL,DETAIL,2021-09-29,AP,1470343,BLANKENSHIP ALLISON W.,2021-09-22,2021-09-22,TAXI/PARKING/TOLLS,27.67,2021
,2021 OFFICE OF THE SPEAKER,3,GENERAL EXPENDITURES,TRAVEL,DETAIL,2021-09-29,AP,1470666,IACOBELLIS SAMUEL C.,2021-09-08,2021-09-08,TAXI/PARKING/TOLLS,26.95,2021
,2021 OFFICE OF THE SPEAKER,3,GENERAL EXPENDITURES,TRAVEL,SUBTOTAL,   ,   ,   ,   ,   ,   ,TRAVEL TOTALS:,13424.17,2021
,2021 OFFICE OF THE SPEAKER,3,GENERAL EXPENDITURES,RENT  COMMUNICATION  UTILITIES,DETAIL,2021-07-19,AP,1440836,FEDEX,2021-05-28,2021-06-03,POSTAGE / COURIER / BOX RENTAL,34.09,2021
,2021 OFFICE OF THE SPEAKER,3,GENERAL EXPENDITURES,RENT  COMMUNICATION  UTILITIES,DETAIL,2021-07-19,AP,1440840,FEDEX,2021-06-14,2021-06-14,POSTAGE / COURIER / BOX RENTAL,89.4,2021
,2021 OFFICE OF THE SPEAKER,3,GENERAL EXPENDITURES,RENT  COMMUNICATION  UTILITIES,DETAIL,2021-07-19,AP,1440841,FEDEX,2021-06-07,2021-06-09,POSTAGE / COURIER / BOX RENTAL,263.93,2021
,2021 OFFICE OF THE SPEAKER,3,GENERAL EXPENDITURES,RENT  COMMUNICATION  UTILITIES,DETAIL,2021-07-19,AP,1441064,CITIBANK GOV CARD SERVICE,2021-06-09,2021-06-09,UTILITIES,36.99,2021
,2021 OFFICE OF THE SPEAKER,3,GENERAL EXPENDITURES,RENT  COMMUNICATION  UTILITIES,DETAIL,2021-07-22,GL,EMS0108073, ,2021-06-01,2021-06-30,DC TELECOM EQUIP (TRANSFER),228,2021
,2021 OFFICE OF THE SPEAKER,3,GENERAL EXPENDITURES,RENT  COMMUNICATION  UTILITIES,DETAIL,2021-07-22,GL,EMS0108073, ,2021-06-01,2021-06-30,DC TELECOM SERV (TRANSFER),1219.75,2021
,2021 OFFICE OF THE SPEAKER,3,GENERAL EXPENDITURES,RENT  COMMUNICATION  UTILITIES,DETAIL,2021-07-22,GL,EMS0108073, ,2021-06-01,2021-06-30,DC TELECOM TOLLS (TRANSFER),7051.91,2021
,2021 OFFICE OF THE SPEAKER,3,GENERAL EXPENDITURES,RENT  COMMUNICATION  UTILITIES,DETAIL,2021-07-23,AP,1446833,FEDEX,2021-06-26,2021-06-28,POSTAGE / COURIER / BOX RENTAL,168.74,2021
,2021 OFFICE OF THE SPEAKER,3,GENERAL EXPENDITURES,RENT  COMMUNICATION  UTILITIES,DETAIL,2021-07-23,AP,1446835,FEDEX,2021-04-28,2021-04-28,POSTAGE / COURIER / BOX RENTAL,6.65,2021
,2021 OFFICE OF THE SPEAKER,3,GENERAL EXPENDITURES,RENT  COMMUNICATION  UTILITIES,DETAIL,2021-07-23,AP,1446837,FEDEX,2021-04-29,2021-04-29,POSTAGE / COURIER / BOX RENTAL,16.91,2021
,2021 OFFICE OF THE SPEAKER,3,GENERAL EXPENDITURES,RENT  COMMUNICATION  UTILITIES,DETAIL,2021-07-26,GL,MED0108155, ,2021-06-28,2021-07-21,HIR GRAPHICS (TRANSFER),72,2021
,2021 OFFICE OF THE SPEAKER,3,GENERAL EXPENDITURES,RENT  COMMUNICATION  UTILITIES,DETAIL,2021-08-03,AP,1448490,FEDEX,2021-07-06,2021-07-06,POSTAGE / COURIER / BOX RENTAL,19.98,2021
,2021 OFFICE OF THE SPEAKER,3,GENERAL EXPENDITURES,RENT  COMMUNICATION  UTILITIES,DETAIL,2021-08-19,AP,1452425,CITIBANK GOV CARD SERVICE,2021-07-14,2021-07-14,UTILITIES,31.99,2021
,2021 OFFICE OF THE SPEAKER,3,GENERAL EXPENDITURES,RENT  COMMUNICATION  UTILITIES,DETAIL,2021-08-26,GL,MED0108954, ,2021-07-27,2021-08-23,HIR GRAPHICS (TRANSFER),208,2021
,2021 OFFICE OF THE SPEAKER,3,GENERAL EXPENDITURES,RENT  COMMUNICATION  UTILITIES,DETAIL,2021-08-30,GL,EMS0109045, ,2021-07-01,2021-07-31,DC TELECOM EQUIP (TRANSFER),228,2021
,2021 OFFICE OF THE SPEAKER,3,GENERAL EXPENDITURES,RENT  COMMUNICATION  UTILITIES,DETAIL,2021-08-30,GL,EMS0109045, ,2021-07-01,2021-07-31,DC TELECOM SERV (TRANSFER),1212,2021
,2021 OFFICE OF THE SPEAKER,3,GENERAL EXPENDITURES,RENT  COMMUNICATION  UTILITIES,DETAIL,2021-08-30,GL,EMS0109045, ,2021-07-01,2021-07-31,DC TELECOM TOLLS (TRANSFER),13630.56,2021
,2021 OFFICE OF THE SPEAKER,3,GENERAL EXPENDITURES,RENT  COMMUNICATION  UTILITIES,DETAIL,2021-09-10,AP,1460965,CITI PCARD-THE UPS STORE 7199,2021-08-06,2021-08-06,POSTAGE / COURIER / BOX RENTAL,522.73,2021
,2021 OFFICE OF THE SPEAKER,3,GENERAL EXPENDITURES,RENT  COMMUNICATION  UTILITIES,DETAIL,2021-09-27,GL,EMS0109741, ,2021-08-01,2021-08-31,DC TELECOM EQUIP (TRANSFER),228,2021
,2021 OFFICE OF THE SPEAKER,3,GENERAL EXPENDITURES,RENT  COMMUNICATION  UTILITIES,DETAIL,2021-09-27,GL,EMS0109741, ,2021-08-01,2021-08-31,DC TELECOM SERV (TRANSFER),1212,2021
,2021 OFFICE OF THE SPEAKER,3,GENERAL EXPENDITURES,RENT  COMMUNICATION  UTILITIES,DETAIL,2021-09-27,GL,EMS0109741, ,2021-08-01,2021-08-31,DC TELECOM TOLLS (TRANSFER),8775.86,2021
,2021 OFFICE OF THE SPEAKER,3,GENERAL EXPENDITURES,RENT  COMMUNICATION  UTILITIES,DETAIL,2021-09-27,GL,MED0109742, ,2021-08-31,2021-09-07,HIR GRAPHICS (TRANSFER),118,2021
,2021 OFFICE OF THE SPEAKER,3,GENERAL EXPENDITURES,RENT  COMMUNICATION  UTILITIES,DETAIL,2021-09-29,AP,1470146,FEDEX,2021-08-09,2021-08-09,POSTAGE / COURIER / BOX RENTAL,6.65,2021
,2021 OFFICE OF THE SPEAKER,3,GENERAL EXPENDITURES,RENT  COMMUNICATION  UTILITIES,DETAIL,2021-09-29,AP,1470340,BERRET EMILY C.,2021-09-20,2021-09-20,UTILITIES,31.99,2021
,2021 OFFICE OF THE SPEAKER,3,GENERAL EXPENDITURES,RENT  COMMUNICATION  UTILITIES,DETAIL,2021-09-29,AP,1470666,IACOBELLIS SAMUEL C.,2021-09-08,2021-09-08,POSTAGE / COURIER / BOX RENTAL,44.62,2021
,2021 OFFICE OF THE SPEAKER,3,GENERAL EXPENDITURES,RENT  COMMUNICATION  UTILITIES,DETAIL,2021-09-29,AP,1470831,HAMMILL ANDREW T.,2021-09-14,2021-09-20,UTILITIES,61.98,2021
,2021 OFFICE OF THE SPEAKER,3,GENERAL EXPENDITURES,RENT  COMMUNICATION  UTILITIES,SUBTOTAL,   ,   ,   ,   ,   ,   ,RENT  COMMUNICATION  UTILITIES TOTALS:,35520.73,2021
,2021 OFFICE OF THE SPEAKER,3,GENERAL EXPENDITURES,PRINTING AND REPRODUCTION,DETAIL,2021-07-16,AP,1440834,ACCURATE WORD,2021-06-28,2021-06-28,PRINTING & REPRODUCTION,43,2021
,2021 OFFICE OF THE SPEAKER,3,GENERAL EXPENDITURES,PRINTING AND REPRODUCTION,DETAIL,2021-07-16,AP,1440835,ACCURATE WORD,2021-07-08,2021-07-08,PRINTING & REPRODUCTION,43,2021
,2021 OFFICE OF THE SPEAKER,3,GENERAL EXPENDITURES,PRINTING AND REPRODUCTION,DETAIL,2021-07-19,AP,1440795,CITI PCARD-FACEBK 82X775K2M2,2021-06-22,2021-06-27,ADVERTISEMENTS,750,2021
,2021 OFFICE OF THE SPEAKER,3,GENERAL EXPENDITURES,PRINTING AND REPRODUCTION,DETAIL,2021-07-19,AP,1440795,CITI PCARD-FACEBK CHSFY4F2M2,2021-06-09,2021-06-16,ADVERTISEMENTS,758.28,2021
,2021 OFFICE OF THE SPEAKER,3,GENERAL EXPENDITURES,PRINTING AND REPRODUCTION,DETAIL,2021-07-19,AP,1440795,CITI PCARD-FACEBK D7V5J5T2M2,2021-06-03,2021-06-10,ADVERTISEMENTS,750,2021
,2021 OFFICE OF THE SPEAKER,3,GENERAL EXPENDITURES,PRINTING AND REPRODUCTION,DETAIL,2021-07-26,GL,MED0108155, ,2021-06-30,2021-07-22,PHOTOGRAPHIC (TRANSFER),520,2021
,2021 OFFICE OF THE SPEAKER,3,GENERAL EXPENDITURES,PRINTING AND REPRODUCTION,DETAIL,2021-08-03,AP,1448491,SHARP BUSINESS SYSTEMS,2021-03-25,2021-06-22,PRINTING & REPRODUCTION,84.12,2021
,2021 OFFICE OF THE SPEAKER,3,GENERAL EXPENDITURES,PRINTING AND REPRODUCTION,DETAIL,2021-08-06,AP,1450261,ACCURATE WORD,2021-07-30,2021-07-30,PRINTING & REPRODUCTION,33,2021
,2021 OFFICE OF THE SPEAKER,3,GENERAL EXPENDITURES,PRINTING AND REPRODUCTION,DETAIL,2021-08-06,AP,1450262,ACCURATE WORD,2021-07-27,2021-07-27,PRINTING & REPRODUCTION,43,2021
,2021 OFFICE OF THE SPEAKER,3,GENERAL EXPENDITURES,PRINTING AND REPRODUCTION,DETAIL,2021-08-16,AP,1452642,ACCURATE WORD,2021-07-01,2021-07-01,PRINTING & REPRODUCTION,3815.3,2021
,2021 OFFICE OF THE SPEAKER,3,GENERAL EXPENDITURES,PRINTING AND REPRODUCTION,DETAIL,2021-08-19,AP,1452572,CITI PCARD-FACEBK 5QSAH5K2M2,2021-07-08,2021-07-10,ADVERTISEMENTS,750,2021
,2021 OFFICE OF THE SPEAKER,3,GENERAL EXPENDITURES,PRINTING AND REPRODUCTION,DETAIL,2021-08-19,AP,1452572,CITI PCARD-FACEBK 5ZPKL5F2M2,2021-07-12,2021-07-13,ADVERTISEMENTS,750,2021
,2021 OFFICE OF THE SPEAKER,3,GENERAL EXPENDITURES,PRINTING AND REPRODUCTION,DETAIL,2021-08-19,AP,1452572,CITI PCARD-FACEBK 7VRP86PZL2,2021-07-11,2021-07-13,ADVERTISEMENTS,750,2021
,2021 OFFICE OF THE SPEAKER,3,GENERAL EXPENDITURES,PRINTING AND REPRODUCTION,DETAIL,2021-08-19,AP,1452572,CITI PCARD-FACEBK 7Y5HZ5T2M2,2021-06-27,2021-06-29,ADVERTISEMENTS,400.91,2021
,2021 OFFICE OF THE SPEAKER,3,GENERAL EXPENDITURES,PRINTING AND REPRODUCTION,DETAIL,2021-08-19,AP,1452572,CITI PCARD-FACEBK BG3MT5B2M2,2021-07-01,2021-07-08,ADVERTISEMENTS,750,2021
,2021 OFFICE OF THE SPEAKER,3,GENERAL EXPENDITURES,PRINTING AND REPRODUCTION,DETAIL,2021-08-19,AP,1452572,CITI PCARD-FACEBK D4MW86TZL2,2021-06-29,2021-07-02,ADVERTISEMENTS,750,2021
,2021 OFFICE OF THE SPEAKER,3,GENERAL EXPENDITURES,PRINTING AND REPRODUCTION,DETAIL,2021-08-19,AP,1452572,CITI PCARD-FACEBK DRY6A6PZL2,2021-07-12,2021-07-14,ADVERTISEMENTS,750,2021
,2021 OFFICE OF THE SPEAKER,3,GENERAL EXPENDITURES,PRINTING AND REPRODUCTION,DETAIL,2021-08-19,AP,1452572,CITI PCARD-FACEBK L49AG6TZL2,2021-07-09,2021-07-11,ADVERTISEMENTS,750,2021
,2021 OFFICE OF THE SPEAKER,3,GENERAL EXPENDITURES,PRINTING AND REPRODUCTION,DETAIL,2021-08-19,AP,1452572,CITI PCARD-FACEBK M77NJ672M2,2021-07-15,2021-07-22,ADVERTISEMENTS,750,2021
,2021 OFFICE OF THE SPEAKER,3,GENERAL EXPENDITURES,PRINTING AND REPRODUCTION,DETAIL,2021-08-19,AP,1452572,CITI PCARD-FACEBK NT9EN5K2M2,2021-07-15,2021-07-16,ADVERTISEMENTS,750,2021
,2021 OFFICE OF THE SPEAKER,3,GENERAL EXPENDITURES,PRINTING AND REPRODUCTION,DETAIL,2021-08-19,AP,1452572,CITI PCARD-FACEBK RRU2V6TZL2,2021-07-23,2021-07-27,ADVERTISEMENTS,750,2021
,2021 OFFICE OF THE SPEAKER,3,GENERAL EXPENDITURES,PRINTING AND REPRODUCTION,DETAIL,2021-08-19,AP,1452572,CITI PCARD-FACEBK TLCDC632M2,2021-07-21,2021-07-25,ADVERTISEMENTS,750,2021
,2021 OFFICE OF THE SPEAKER,3,GENERAL EXPENDITURES,PRINTING AND REPRODUCTION,DETAIL,2021-08-19,AP,1452572,CITI PCARD-FACEBK ULHRW4XZL2,2021-07-13,2021-07-15,ADVERTISEMENTS,750,2021
,2021 OFFICE OF THE SPEAKER,3,GENERAL EXPENDITURES,PRINTING AND REPRODUCTION,DETAIL,2021-08-26,GL,MED0108954, ,2021-08-05,2021-08-24,PHOTOGRAPHIC (TRANSFER),40,2021
,2021 OFFICE OF THE SPEAKER,3,GENERAL EXPENDITURES,PRINTING AND REPRODUCTION,DETAIL,2021-09-10,AP,1463199,ACCURATE WORD,2021-09-02,2021-09-02,PRINTING & REPRODUCTION,43,2021
,2021 OFFICE OF THE SPEAKER,3,GENERAL EXPENDITURES,PRINTING AND REPRODUCTION,DETAIL,2021-09-13,AP,1460981,EHRENBERG MIA R.,2021-08-17,2021-08-17,PRINTING & REPRODUCTION,32.59,2021
,2021 OFFICE OF THE SPEAKER,3,GENERAL EXPENDITURES,PRINTING AND REPRODUCTION,DETAIL,2021-09-22,AP,1463889,CITI PCARD-FACEBK 9LWDA772M2,2021-08-18,2021-08-19,ADVERTISEMENTS,750,2021
,2021 OFFICE OF THE SPEAKER,3,GENERAL EXPENDITURES,PRINTING AND REPRODUCTION,DETAIL,2021-09-22,AP,1463889,CITI PCARD-FACEBK HMGC37P2M2,2021-08-19,2021-08-20,ADVERTISEMENTS,750,2021
,2021 OFFICE OF THE SPEAKER,3,GENERAL EXPENDITURES,PRINTING AND REPRODUCTION,DETAIL,2021-09-22,AP,1463889,CITI PCARD-FACEBK WGTSP6PZL2,2021-07-26,2021-07-27,ADVERTISEMENTS,183.48,2021
,2021 OFFICE OF THE SPEAKER,3,GENERAL EXPENDITURES,PRINTING AND REPRODUCTION,DETAIL,2021-09-27,GL,MED0109742, ,2021-09-20,2021-09-20,PHOTOGRAPHIC (TRANSFER),40,2021
,2021 OFFICE OF THE SPEAKER,3,GENERAL EXPENDITURES,PRINTING AND REPRODUCTION,DETAIL,2021-09-29,AP,1470344,ACCURATE WORD,2021-09-13,2021-09-13,PRINTING & REPRODUCTION,43,2021
,2021 OFFICE OF THE SPEAKER,3,GENERAL EXPENDITURES,PRINTING AND REPRODUCTION,DETAIL,2021-09-29,AP,1470346,ACCURATE WORD,2021-09-14,2021-09-14,PRINTING & REPRODUCTION,43,2021
,2021 OFFICE OF THE SPEAKER,3,GENERAL EXPENDITURES,PRINTING AND REPRODUCTION,SUBTOTAL,   ,   ,   ,   ,   ,   ,PRINTING AND REPRODUCTION TOTALS:,18165.68,2021
,2021 OFFICE OF THE SPEAKER,3,GENERAL EXPENDITURES,OTHER SERVICES,DETAIL,2021-07-16,AP,1442845,LEIDOS DIGITAL SOLUTIONS INC,2021-07-01,2021-07-31,TECHNOLOGY SERVICE CONTRACTS,1925,2021
,2021 OFFICE OF THE SPEAKER,3,GENERAL EXPENDITURES,OTHER SERVICES,DETAIL,2021-07-16,AP,1442846,LEIDOS DIGITAL SOLUTIONS INC,2021-07-01,2021-07-31,TECHNOLOGY SERVICE CONTRACTS,10594,2021
,2021 OFFICE OF THE SPEAKER,3,GENERAL EXPENDITURES,OTHER SERVICES,DETAIL,2021-07-27,AP,1448061,FISCALNOTE INC,2021-06-01,2021-06-30,WEB DEV HST EMAIL & RLTD SERV,350,2021
,2021 OFFICE OF THE SPEAKER,3,GENERAL EXPENDITURES,OTHER SERVICES,DETAIL,2021-08-16,AP,1454308,LEIDOS DIGITAL SOLUTIONS INC,2021-08-01,2021-08-31,TECHNOLOGY SERVICE CONTRACTS,1925,2021
,2021 OFFICE OF THE SPEAKER,3,GENERAL EXPENDITURES,OTHER SERVICES,DETAIL,2021-08-16,AP,1454309,LEIDOS DIGITAL SOLUTIONS INC,2021-08-01,2021-08-31,TECHNOLOGY SERVICE CONTRACTS,10594,2021
,2021 OFFICE OF THE SPEAKER,3,GENERAL EXPENDITURES,OTHER SERVICES,DETAIL,2021-08-18,AP,1452732,FISCALNOTE INC,2021-07-01,2021-07-31,WEB DEV HST EMAIL & RLTD SERV,350,2021
,2021 OFFICE OF THE SPEAKER,3,GENERAL EXPENDITURES,OTHER SERVICES,DETAIL,2021-09-16,AP,1466418,LEIDOS DIGITAL SOLUTIONS INC,2021-09-01,2021-09-30,TECHNOLOGY SERVICE CONTRACTS,1925,2021
,2021 OFFICE OF THE SPEAKER,3,GENERAL EXPENDITURES,OTHER SERVICES,DETAIL,2021-09-16,AP,1466419,LEIDOS DIGITAL SOLUTIONS INC,2021-09-01,2021-09-30,TECHNOLOGY SERVICE CONTRACTS,10594,2021
,2021 OFFICE OF THE SPEAKER,3,GENERAL EXPENDITURES,OTHER SERVICES,DETAIL,2021-09-24,AP,1470827,FISCALNOTE INC,2021-08-01,2021-08-31,WEB DEV HST EMAIL & RLTD SERV,350,2021
,2021 OFFICE OF THE SPEAKER,3,GENERAL EXPENDITURES,OTHER SERVICES,SUBTOTAL,   ,   ,   ,   ,   ,   ,OTHER SERVICES TOTALS:,38607,2021
,2021 OFFICE OF THE SPEAKER,3,GENERAL EXPENDITURES,SUPPLIES AND MATERIALS,DETAIL,2021-07-19,AP,1440795,CITI PCARD-ASANA.COM,2021-06-17,2021-07-16,SOFTWARE  LESS THAN  $500,121.96,2021
,2021 OFFICE OF THE SPEAKER,3,GENERAL EXPENDITURES,SUPPLIES AND MATERIALS,DETAIL,2021-07-19,AP,1440795,CITI PCARD-DESCRIPT,2021-06-25,2021-07-25,SOFTWARE  LESS THAN  $500,30,2021
,2021 OFFICE OF THE SPEAKER,3,GENERAL EXPENDITURES,SUPPLIES AND MATERIALS,DETAIL,2021-07-19,AP,1440795,CITI PCARD-LUMEN5.COM,2021-06-18,2021-07-18,SOFTWARE  LESS THAN  $500,199,2021
,2021 OFFICE OF THE SPEAKER,3,GENERAL EXPENDITURES,SUPPLIES AND MATERIALS,DETAIL,2021-07-19,AP,1440795,CITI PCARD-RAWSHORTS.COM,2021-05-18,2021-06-18,SOFTWARE  LESS THAN  $500,89,2021
,2021 OFFICE OF THE SPEAKER,3,GENERAL EXPENDITURES,SUPPLIES AND MATERIALS,DETAIL,2021-07-19,AP,1440795,CITI PCARD-RESTREAM INC.,2021-06-18,2021-07-18,SOFTWARE  LESS THAN  $500,49,2021
,2021 OFFICE OF THE SPEAKER,3,GENERAL EXPENDITURES,SUPPLIES AND MATERIALS,DETAIL,2021-07-19,AP,1440807,BLANKENSHIP ALLISON W.,2021-06-07,2021-06-07,OFFICE SUPPLIES (OUTSIDE),13.77,2021
,2021 OFFICE OF THE SPEAKER,3,GENERAL EXPENDITURES,SUPPLIES AND MATERIALS,DETAIL,2021-07-19,AP,1440819,OCCASIONS CATERERS,2021-06-30,2021-06-30,FOOD & BEVERAGE,1125,2021
,2021 OFFICE OF THE SPEAKER,3,GENERAL EXPENDITURES,SUPPLIES AND MATERIALS,DETAIL,2021-07-19,AP,1440822,CAPITOL  HOST,2021-06-28,2021-06-28,FOOD & BEVERAGE,298.58,2021
,2021 OFFICE OF THE SPEAKER,3,GENERAL EXPENDITURES,SUPPLIES AND MATERIALS,DETAIL,2021-07-19,AP,1440830,TOULIES EN FLEUR,2021-06-14,2021-06-28,HABITATION EXPENSE,1155,2021
,2021 OFFICE OF THE SPEAKER,3,GENERAL EXPENDITURES,SUPPLIES AND MATERIALS,DETAIL,2021-07-20,AP,1440791,CITI PCARD-CRATE&BARREL CB2 NOD,2021-06-10,2021-06-10,OFFICE SUPPLIES (OUTSIDE),20.09,2021
,2021 OFFICE OF THE SPEAKER,3,GENERAL EXPENDITURES,SUPPLIES AND MATERIALS,DETAIL,2021-07-20,AP,1440791,CITI PCARD-LEVELUPSWEETGREEN8039,2021-05-23,2021-05-23,FOOD & BEVERAGE,13.15,2021
,2021 OFFICE OF THE SPEAKER,3,GENERAL EXPENDITURES,SUPPLIES AND MATERIALS,DETAIL,2021-07-20,AP,1440791,CITI PCARD-PERSONAL PAYMENT,2021-05-23,2021-05-23,FOOD & BEVERAGE,-13.15,2021
,2021 OFFICE OF THE SPEAKER,3,GENERAL EXPENDITURES,SUPPLIES AND MATERIALS,DETAIL,2021-07-20,AP,1440791,CITI PCARD-Samsung,2021-05-25,2021-05-25,OFFICE SUPPLIES (OUTSIDE),53,2021
,2021 OFFICE OF THE SPEAKER,3,GENERAL EXPENDITURES,SUPPLIES AND MATERIALS,DETAIL,2021-07-20,AP,1440791,CITI PCARD-TARGET        00010769,2021-06-11,2021-06-11,FOOD & BEVERAGE,393.9,2021
,2021 OFFICE OF THE SPEAKER,3,GENERAL EXPENDITURES,SUPPLIES AND MATERIALS,DETAIL,2021-07-20,AP,1440791,CITI PCARD-TARGET        00010769,2021-06-11,2021-06-11,OFFICE SUPPLIES (OUTSIDE),38.45,2021
,2021 OFFICE OF THE SPEAKER,3,GENERAL EXPENDITURES,SUPPLIES AND MATERIALS,DETAIL,2021-07-31,GL,RMS0108347, ,2021-07-01,2021-07-31,OFFICE SUPPLY (TRANSFER),635.09,2021
,2021 OFFICE OF THE SPEAKER,3,GENERAL EXPENDITURES,SUPPLIES AND MATERIALS,DETAIL,2021-08-03,AP,1448489,CAPITOL  HOST,2021-07-26,2021-07-26,FOOD & BEVERAGE,298.58,2021
,2021 OFFICE OF THE SPEAKER,3,GENERAL EXPENDITURES,SUPPLIES AND MATERIALS,DETAIL,2021-08-06,AP,1450259,TOULIES EN FLEUR,2021-07-12,2021-07-26,HABITATION EXPENSE,990,2021
,2021 OFFICE OF THE SPEAKER,3,GENERAL EXPENDITURES,SUPPLIES AND MATERIALS,DETAIL,2021-08-06,AP,1450260,TOULIES EN FLEUR,2021-08-02,2021-08-02,HABITATION EXPENSE,220,2021
,2021 OFFICE OF THE SPEAKER,3,GENERAL EXPENDITURES,SUPPLIES AND MATERIALS,DETAIL,2021-08-07,AP,1450258,OCCASIONS CATERERS,2021-07-21,2021-07-21,FOOD & BEVERAGE,14751.5,2021
,2021 OFFICE OF THE SPEAKER,3,GENERAL EXPENDITURES,SUPPLIES AND MATERIALS,DETAIL,2021-08-09,AP,1450248,SMITH KELSEY L.,2021-07-17,2021-07-17,PUBLICATIONS/REFERENCE MAT'L,54.48,2021
,2021 OFFICE OF THE SPEAKER,3,GENERAL EXPENDITURES,SUPPLIES AND MATERIALS,DETAIL,2021-08-09,AP,1450254,HAN LEAH J.,2021-07-29,2021-07-29,FOOD & BEVERAGE,56.88,2021
,2021 OFFICE OF THE SPEAKER,3,GENERAL EXPENDITURES,SUPPLIES AND MATERIALS,DETAIL,2021-08-10,AP,1451748,MOREDIRECT INC DBA CONNECTION,2021-07-09,2021-07-09,OFFICE SUPPLIES (OUTSIDE) QTY - 20,279.8,2021
,2021 OFFICE OF THE SPEAKER,3,GENERAL EXPENDITURES,SUPPLIES AND MATERIALS,DETAIL,2021-08-10,AP,1451748,MOREDIRECT INC DBA CONNECTION,2021-07-09,2021-07-09,OFFICE SUPPLIES (OUTSIDE) QTY - 10,4800,2021
,2021 OFFICE OF THE SPEAKER,3,GENERAL EXPENDITURES,SUPPLIES AND MATERIALS,DETAIL,2021-08-17,AP,1453290,CITIBANK GOV CARD SERVICE,2021-07-16,2021-07-16,WATER,11.5,2021
,2021 OFFICE OF THE SPEAKER,3,GENERAL EXPENDITURES,SUPPLIES AND MATERIALS,DETAIL,2021-08-18,AP,1452579,CITI PCARD-GIANT 2381,2021-07-26,2021-07-26,FOOD & BEVERAGE,99.99,2021
,2021 OFFICE OF THE SPEAKER,3,GENERAL EXPENDITURES,SUPPLIES AND MATERIALS,DETAIL,2021-08-18,AP,1452579,CITI PCARD-TARGET.COM,2021-07-23,2021-07-23,OFFICE SUPPLIES (OUTSIDE),79.49,2021
,2021 OFFICE OF THE SPEAKER,3,GENERAL EXPENDITURES,SUPPLIES AND MATERIALS,DETAIL,2021-08-18,AP,1452579,CITI PCARD-WE THE PIZZA,2021-07-22,2021-07-22,FOOD & BEVERAGE,442.18,2021
,2021 OFFICE OF THE SPEAKER,3,GENERAL EXPENDITURES,SUPPLIES AND MATERIALS,DETAIL,2021-08-18,AP,1452579,CITI PCARD-WWW COSTCO COM,2021-07-10,2021-07-10,FOOD & BEVERAGE,98.97,2021
,2021 OFFICE OF THE SPEAKER,3,GENERAL EXPENDITURES,SUPPLIES AND MATERIALS,DETAIL,2021-08-18,AP,1452579,CITI PCARD-WWW COSTCO COM,2021-07-13,2021-07-13,FOOD & BEVERAGE,35.98,2021
,2021 OFFICE OF THE SPEAKER,3,GENERAL EXPENDITURES,SUPPLIES AND MATERIALS,DETAIL,2021-08-18,AP,1452639,OCCASIONS CATERERS,2021-07-23,2021-07-23,FOOD & BEVERAGE,309.25,2021
,2021 OFFICE OF THE SPEAKER,3,GENERAL EXPENDITURES,SUPPLIES AND MATERIALS,DETAIL,2021-08-19,AP,1452572,CITI PCARD-ASANA.COM,2021-07-17,2021-08-16,SOFTWARE  LESS THAN  $500,121.96,2021
,2021 OFFICE OF THE SPEAKER,3,GENERAL EXPENDITURES,SUPPLIES AND MATERIALS,DETAIL,2021-08-19,AP,1452572,CITI PCARD-DESCRIPT,2021-07-25,2021-08-25,SOFTWARE  LESS THAN  $500,30,2021
,2021 OFFICE OF THE SPEAKER,3,GENERAL EXPENDITURES,SUPPLIES AND MATERIALS,DETAIL,2021-08-19,AP,1452572,CITI PCARD-LUMEN5.COM,2021-07-18,2021-08-18,SOFTWARE  LESS THAN  $500,199,2021
,2021 OFFICE OF THE SPEAKER,3,GENERAL EXPENDITURES,SUPPLIES AND MATERIALS,DETAIL,2021-08-19,AP,1452572,CITI PCARD-PUNCHBOWL.NEWS,2021-07-12,2022-07-12,PUBLICATIONS/REFERENCE MAT'L,300,2021
,2021 OFFICE OF THE SPEAKER,3,GENERAL EXPENDITURES,SUPPLIES AND MATERIALS,DETAIL,2021-08-19,AP,1452572,CITI PCARD-RAWSHORTS.COM,2021-05-18,2021-06-18,SOFTWARE  LESS THAN  $500,89,2021
,2021 OFFICE OF THE SPEAKER,3,GENERAL EXPENDITURES,SUPPLIES AND MATERIALS,DETAIL,2021-08-19,AP,1452572,CITI PCARD-RESTREAM INC.,2021-07-18,2021-08-18,SOFTWARE  LESS THAN  $500,49,2021
,2021 OFFICE OF THE SPEAKER,3,GENERAL EXPENDITURES,SUPPLIES AND MATERIALS,DETAIL,2021-08-19,AP,1452572,CITI PCARD-THEDAILYBEASONLINE,2021-07-12,2022-07-12,PUBLICATIONS/REFERENCE MAT'L,35,2021
,2021 OFFICE OF THE SPEAKER,3,GENERAL EXPENDITURES,SUPPLIES AND MATERIALS,DETAIL,2021-08-19,AP,1452572,CITI PCARD-TRIAL   TRIAL BUS INS,2021-07-12,2022-07-12,PUBLICATIONS/REFERENCE MAT'L,49,2021
,2021 OFFICE OF THE SPEAKER,3,GENERAL EXPENDITURES,SUPPLIES AND MATERIALS,DETAIL,2021-08-19,AP,1452572,CITI PCARD-VectorStock,2021-07-12,2021-07-12,SOFTWARE  LESS THAN  $500,14.99,2021
,2021 OFFICE OF THE SPEAKER,3,GENERAL EXPENDITURES,SUPPLIES AND MATERIALS,DETAIL,2021-08-31,GL,RMS0109142, ,2021-08-01,2021-08-31,OFFICE SUPPLY (TRANSFER),469.67,2021
,2021 OFFICE OF THE SPEAKER,3,GENERAL EXPENDITURES,SUPPLIES AND MATERIALS,DETAIL,2021-09-10,AP,1460965,CITI PCARD-AMAZON.COM 2P9NO34T0 AMZN,2021-07-26,2021-07-26,OFFICE SUPPLIES (OUTSIDE),34,2021
,2021 OFFICE OF THE SPEAKER,3,GENERAL EXPENDITURES,SUPPLIES AND MATERIALS,DETAIL,2021-09-10,AP,1460965,CITI PCARD-AMZN Mktp US 2D8H31ZR0,2021-08-11,2021-08-11,OFFICE SUPPLIES (OUTSIDE),17.97,2021
,2021 OFFICE OF THE SPEAKER,3,GENERAL EXPENDITURES,SUPPLIES AND MATERIALS,DETAIL,2021-09-10,AP,1460965,CITI PCARD-HARRIS TEETER #352,2021-08-23,2021-08-23,FOOD & BEVERAGE,63.11,2021
,2021 OFFICE OF THE SPEAKER,3,GENERAL EXPENDITURES,SUPPLIES AND MATERIALS,DETAIL,2021-09-10,AP,1460965,CITI PCARD-TARGET.COM,2021-08-05,2021-08-05,OFFICE SUPPLIES (OUTSIDE),19.07,2021
,2021 OFFICE OF THE SPEAKER,3,GENERAL EXPENDITURES,SUPPLIES AND MATERIALS,DETAIL,2021-09-10,AP,1460965,CITI PCARD-TARGET.COM,2021-08-09,2021-08-09,OFFICE SUPPLIES (OUTSIDE),19.06,2021
,2021 OFFICE OF THE SPEAKER,3,GENERAL EXPENDITURES,SUPPLIES AND MATERIALS,DETAIL,2021-09-10,AP,1460965,CITI PCARD-USHR LONGWORTH FOOD CT,2021-07-30,2021-07-30,FOOD & BEVERAGE,38.3,2021
,2021 OFFICE OF THE SPEAKER,3,GENERAL EXPENDITURES,SUPPLIES AND MATERIALS,DETAIL,2021-09-10,AP,1460965,CITI PCARD-WE THE PIZZA,2021-07-27,2021-07-27,FOOD & BEVERAGE,223.45,2021
,2021 OFFICE OF THE SPEAKER,3,GENERAL EXPENDITURES,SUPPLIES AND MATERIALS,DETAIL,2021-09-10,AP,1460965,CITI PCARD-WE THE PIZZA,2021-08-23,2021-08-23,FOOD & BEVERAGE,296.13,2021
,2021 OFFICE OF THE SPEAKER,3,GENERAL EXPENDITURES,SUPPLIES AND MATERIALS,DETAIL,2021-09-10,AP,1460965,CITI PCARD-WHOLEFDS SCP #10563,2021-08-25,2021-08-25,FOOD & BEVERAGE,224.58,2021
,2021 OFFICE OF THE SPEAKER,3,GENERAL EXPENDITURES,SUPPLIES AND MATERIALS,DETAIL,2021-09-10,AP,1460965,CITI PCARD-WWW COSTCO COM,2021-07-08,2021-07-08,FOOD & BEVERAGE,134.95,2021
,2021 OFFICE OF THE SPEAKER,3,GENERAL EXPENDITURES,SUPPLIES AND MATERIALS,DETAIL,2021-09-10,AP,1461061,LEE SERYEUNG,2021-08-11,2021-08-11,PUBLICATIONS/REFERENCE MAT'L,9.78,2021
,2021 OFFICE OF THE SPEAKER,3,GENERAL EXPENDITURES,SUPPLIES AND MATERIALS,DETAIL,2021-09-10,AP,1461069,MOREDIRECT INC DBA CONNECTION,2021-07-26,2021-07-26,OFFICE SUPPLIES (OUTSIDE),4183.2,2021
,2021 OFFICE OF THE SPEAKER,3,GENERAL EXPENDITURES,SUPPLIES AND MATERIALS,DETAIL,2021-09-13,AP,1461076,TOULIES EN FLEUR,2021-08-09,2021-08-23,HABITATION EXPENSE,825,2021
,2021 OFFICE OF THE SPEAKER,3,GENERAL EXPENDITURES,SUPPLIES AND MATERIALS,DETAIL,2021-09-17,AP,1464544,KAPLAN EMMA L.,2021-09-08,2021-09-08,OFFICE SUPPLIES (OUTSIDE),83.69,2021
,2021 OFFICE OF THE SPEAKER,3,GENERAL EXPENDITURES,SUPPLIES AND MATERIALS,DETAIL,2021-09-22,AP,1463889,CITI PCARD-AMAZON.COM 2P4EC2JM2 AMZN,2021-08-02,2021-08-02,OFFICE SUPPLIES (OUTSIDE),276.49,2021
,2021 OFFICE OF THE SPEAKER,3,GENERAL EXPENDITURES,SUPPLIES AND MATERIALS,DETAIL,2021-09-22,AP,1463889,CITI PCARD-AMZN MKTP US 2P7DZ4HX1 AM,2021-08-02,2021-08-02,OFFICE SUPPLIES (OUTSIDE),127.48,2021
,2021 OFFICE OF THE SPEAKER,3,GENERAL EXPENDITURES,SUPPLIES AND MATERIALS,DETAIL,2021-09-22,AP,1463889,CITI PCARD-AMZN Mktp US 2P7JZ7671,2021-08-03,2021-08-03,OFFICE SUPPLIES (OUTSIDE),48.85,2021
,2021 OFFICE OF THE SPEAKER,3,GENERAL EXPENDITURES,SUPPLIES AND MATERIALS,DETAIL,2021-09-22,AP,1463889,CITI PCARD-AMZN Mktp US 2P8VH1WV0,2021-08-09,2021-08-09,OFFICE SUPPLIES (OUTSIDE),99.12,2021
,2021 OFFICE OF THE SPEAKER,3,GENERAL EXPENDITURES,SUPPLIES AND MATERIALS,DETAIL,2021-09-22,AP,1463889,CITI PCARD-ASANA.COM,2021-08-17,2021-09-16,SOFTWARE  LESS THAN  $500,121.96,2021
,2021 OFFICE OF THE SPEAKER,3,GENERAL EXPENDITURES,SUPPLIES AND MATERIALS,DETAIL,2021-09-22,AP,1463889,CITI PCARD-DESCRIPT,2021-08-25,2021-09-25,SOFTWARE  LESS THAN  $500,30,2021
,2021 OFFICE OF THE SPEAKER,3,GENERAL EXPENDITURES,SUPPLIES AND MATERIALS,DETAIL,2021-09-22,AP,1463889,CITI PCARD-LUMEN5.COM,2021-08-18,2021-09-18,SOFTWARE  LESS THAN  $500,199,2021
,2021 OFFICE OF THE SPEAKER,3,GENERAL EXPENDITURES,SUPPLIES AND MATERIALS,DETAIL,2021-09-22,AP,1463889,CITI PCARD-RAWSHORTS.COM,2021-05-18,2021-06-18,SOFTWARE  LESS THAN  $500,89,2021
,2021 OFFICE OF THE SPEAKER,3,GENERAL EXPENDITURES,SUPPLIES AND MATERIALS,DETAIL,2021-09-22,AP,1463889,CITI PCARD-RESTREAM INC.,2021-08-02,2021-08-02,SOFTWARE  LESS THAN  $500,25.98,2021
,2021 OFFICE OF THE SPEAKER,3,GENERAL EXPENDITURES,SUPPLIES AND MATERIALS,DETAIL,2021-09-22,AP,1463889,CITI PCARD-RESTREAM INC.,2021-08-18,2021-08-18,SOFTWARE  LESS THAN  $500,99,2021
,2021 OFFICE OF THE SPEAKER,3,GENERAL EXPENDITURES,SUPPLIES AND MATERIALS,DETAIL,2021-09-22,AP,1463889,CITI PCARD-SP   VIDEOGUYS.COM,2021-08-02,2021-08-02,OFFICE SUPPLIES (OUTSIDE),427.5,2021
,2021 OFFICE OF THE SPEAKER,3,GENERAL EXPENDITURES,SUPPLIES AND MATERIALS,DETAIL,2021-09-22,AP,1463889,CITI PCARD-SP   VIDEOGUYS.COM,2021-08-02,2022-08-02,SOFTWARE  LESS THAN  $500,450,2021
,2021 OFFICE OF THE SPEAKER,3,GENERAL EXPENDITURES,SUPPLIES AND MATERIALS,DETAIL,2021-09-29,AP,1470135,HIDALGO ADRIANA N.,2021-07-13,2021-07-19,PUBLICATIONS/REFERENCE MAT'L,29.34,2021
,2021 OFFICE OF THE SPEAKER,3,GENERAL EXPENDITURES,SUPPLIES AND MATERIALS,DETAIL,2021-09-29,AP,1470139,HIDALGO ADRIANA N.,2021-08-22,2021-08-22,OFFICE SUPPLIES (OUTSIDE),128.17,2021
,2021 OFFICE OF THE SPEAKER,3,GENERAL EXPENDITURES,SUPPLIES AND MATERIALS,DETAIL,2021-09-29,AP,1470139,HIDALGO ADRIANA N.,2021-08-10,2021-08-31,PUBLICATIONS/REFERENCE MAT'L,80.41,2021
,2021 OFFICE OF THE SPEAKER,3,GENERAL EXPENDITURES,SUPPLIES AND MATERIALS,DETAIL,2021-09-29,AP,1470275,HAN LEAH J.,2021-09-21,2021-09-21,FOOD & BEVERAGE,128.08,2021
,2021 OFFICE OF THE SPEAKER,3,GENERAL EXPENDITURES,SUPPLIES AND MATERIALS,DETAIL,2021-09-30,AP,1464531,CAPITAL GIFTS AND AWARDS INC,2021-09-08,2021-09-08,OFFICE SUPPLIES (OUTSIDE),15396.97,2021
,2021 OFFICE OF THE SPEAKER,3,GENERAL EXPENDITURES,SUPPLIES AND MATERIALS,DETAIL,2021-09-30,GL,RMS0110034, ,2021-09-01,2021-09-30,OFFICE SUPPLY (TRANSFER),411.63,2021
,2021 OFFICE OF THE SPEAKER,3,GENERAL EXPENDITURES,SUPPLIES AND MATERIALS,SUBTOTAL,   ,   ,   ,   ,   ,   ,SUPPLIES AND MATERIALS TOTALS:,52449.33,2021
,2021 OFFICE OF THE SPEAKER,3,GENERAL EXPENDITURES,EQUIPMENT,DETAIL,2021-07-20,AP,1440791,CITI PCARD-Samsung,2021-05-25,2021-05-25,COMPUTER HARDW PURCH  LESS THAN $25 000,1589.99,2021
,2021 OFFICE OF THE SPEAKER,3,GENERAL EXPENDITURES,EQUIPMENT,DETAIL,2021-07-20,AP,1440791,CITI PCARD-Samsung,2021-05-25,2021-05-25,WARRANTIES,257.5,2021
,2021 OFFICE OF THE SPEAKER,3,GENERAL EXPENDITURES,EQUIPMENT,DETAIL,2021-07-30,GL,MNT0108289, ,2021-07-01,2021-07-31,MAINTENANCE / REPAIRS,1357,2021
,2021 OFFICE OF THE SPEAKER,3,GENERAL EXPENDITURES,EQUIPMENT,DETAIL,2021-08-10,AP,1451748,MOREDIRECT INC DBA CONNECTION,2021-07-09,2021-07-09,COMPUTER HARDW PURCH  LESS THAN $25 000,37181.64,2021
,2021 OFFICE OF THE SPEAKER,3,GENERAL EXPENDITURES,EQUIPMENT,DETAIL,2021-08-31,GL,MNT0109087, ,2021-08-01,2021-08-31,MAINTENANCE / REPAIRS,1357,2021
,2021 OFFICE OF THE SPEAKER,3,GENERAL EXPENDITURES,EQUIPMENT,DETAIL,2021-09-01,AP,1461394,MOREDIRECT INC DBA CONNECTION,2021-06-08,2021-06-08,COMPUTER HARDW PURCH  LESS THAN $25 000,1399,2021
,2021 OFFICE OF THE SPEAKER,3,GENERAL EXPENDITURES,EQUIPMENT,DETAIL,2021-09-30,GL,MNT0109918, ,2021-09-01,2021-09-30,MAINTENANCE / REPAIRS,1357,2021
,2021 OFFICE OF THE SPEAKER,3,GENERAL EXPENDITURES,EQUIPMENT,SUBTOTAL,   ,   ,   ,   ,   ,   ,EQUIPMENT TOTALS:,44499.13,2021
,2021 OFFICE OF THE SPEAKER,3,GENERAL EXPENDITURES,EQUIPMENT,SUBTOTAL,   ,   ,   ,   ,   ,   ,GENERAL EXPENDITURES TOTALS:,1912801.35,2021
,2021 OFFICE OF THE SPEAKER,3,GENERAL EXPENDITURES,EQUIPMENT,GRAND TOTAL FOR ORGANIZATION,   ,   ,   ,   ,   ,   ,OFFICE TOTALS: ,1913484.14,2021
,2021 OFFICE OF THE SPEAKER,3,INTERN ALLOWANCES,PERSONNEL COMPENSATION,DETAIL,   ,   ,   ,DODD CHRISTINA M.,2021-07-01,2021-07-31,SPEAKER PAID INTERN - HOUSE PR,350,2021
,2021 OFFICE OF THE SPEAKER,3,INTERN ALLOWANCES,PERSONNEL COMPENSATION,DETAIL,   ,   ,   ,FELTON-STACKHOUSE TAVIN D.,2021-07-08,2021-08-20,SPEAKER PAID INTERN - HOUSE PR,2580,2021
,2021 OFFICE OF THE SPEAKER,3,INTERN ALLOWANCES,PERSONNEL COMPENSATION,DETAIL,   ,   ,   ,HICKS JOHN W,2021-09-13,2021-09-30,SPEAKER PAID INTERN - HOUSE PR,864,2021
,2021 OFFICE OF THE SPEAKER,3,INTERN ALLOWANCES,PERSONNEL COMPENSATION,DETAIL,   ,   ,   ,NUNES DESIREE A.,2021-09-13,2021-09-30,SPEAKER PAID INTERN - HOUSE PR,864,2021
,2021 OFFICE OF THE SPEAKER,3,INTERN ALLOWANCES,PERSONNEL COMPENSATION,DETAIL,   ,   ,   ,PAIZ VILLANUEVA ARIANA G.,2021-09-20,2021-09-30,SPEAKER PAID INTERN - HOUSE PR,528,2021
,2021 OFFICE OF THE SPEAKER,3,INTERN ALLOWANCES,PERSONNEL COMPENSATION,DETAIL,   ,   ,   ,RUSSO GABRIELLE M.,2021-07-08,2021-08-20,SPEAKER PAID INTERN - HOUSE PR,2064,2021
,2021 OFFICE OF THE SPEAKER,3,INTERN ALLOWANCES,PERSONNEL COMPENSATION,DETAIL,   ,   ,   ,SMITH ALLEGRA F.,2021-07-08,2021-08-20,SPEAKER PAID INTERN - HOUSE PR,2064,2021
,2021 OFFICE OF THE SPEAKER,3,INTERN ALLOWANCES,PERSONNEL COMPENSATION,DETAIL,   ,   ,   ,STALMAN LUISA,2021-07-16,2021-08-20,SPEAKER PAID INTERN - HOUSE PR,1680,2021
,2021 OFFICE OF THE SPEAKER,3,INTERN ALLOWANCES,PERSONNEL COMPENSATION,DETAIL,   ,   ,   ,WILLIS MADELINE G.,2021-07-23,2021-08-20,SPEAKER PAID INTERN - HOUSE PR,1344,2021
,2021 OFFICE OF THE SPEAKER,3,INTERN ALLOWANCES,PERSONNEL COMPENSATION,SUBTOTAL,   ,   ,   ,   ,   ,   ,PERSONNEL COMPENSATION TOTALS:,12338,2021
,2021 OFFICE OF THE SPEAKER,3,INTERN ALLOWANCES,PERSONNEL COMPENSATION,SUBTOTAL,   ,   ,   ,   ,   ,   ,INTERN ALLOWANCES TOTALS:,12338,2021
,2021 OFFICE OF THE SPEAKER,3,INTERN ALLOWANCES,PERSONNEL COMPENSATION,GRAND TOTAL FOR ORGANIZATION,   ,   ,   ,   ,   ,   ,OFFICE TOTALS: ,12338,2021
,2021 OFFICE OF THE MAJORITY LEADER,3,GENERAL EXPENDITURES,PERSONNEL COMPENSATION,DETAIL,   ,   ,   ,ABOUCHAR KEITH S.,2021-07-01,2021-09-30,SENIOR POLICY ADVISOR,41608.33,2021
,2021 OFFICE OF THE MAJORITY LEADER,3,GENERAL EXPENDITURES,PERSONNEL COMPENSATION,DETAIL,   ,   ,   ,BAUSERMAN TRENTON D,2021-07-01,2021-09-30,SENIOR POLICY ADVISOR,37500,2021
,2021 OFFICE OF THE MAJORITY LEADER,3,GENERAL EXPENDITURES,PERSONNEL COMPENSATION,DETAIL,   ,   ,   ,BAYER JOHN S,2021-07-01,2021-09-30,MEMBER SERVICES & OUTREACH ADV,20000.01,2021
,2021 OFFICE OF THE MAJORITY LEADER,3,GENERAL EXPENDITURES,PERSONNEL COMPENSATION,DETAIL,   ,   ,   ,BEAN HARLEIGH J.,2021-07-01,2021-09-30,OFFICE MANAGER/EXEC ASST,13749.99,2021
,2021 OFFICE OF THE MAJORITY LEADER,3,GENERAL EXPENDITURES,PERSONNEL COMPENSATION,DETAIL,   ,   ,   ,BRENNAN BRIDGET E,2021-07-01,2021-09-30,DIRECTOR OF SCHEDULING,21250,2021
,2021 OFFICE OF THE MAJORITY LEADER,3,GENERAL EXPENDITURES,PERSONNEL COMPENSATION,DETAIL,   ,   ,   ,BROWN CHLOE M,2021-07-01,2021-09-30,RESEARCH AND OUTREACH ADVISOR,20000.01,2021
,2021 OFFICE OF THE MAJORITY LEADER,3,GENERAL EXPENDITURES,PERSONNEL COMPENSATION,DETAIL,   ,   ,   ,COVEY-BRANDT ALEXIS,2021-07-01,2021-09-30,CHIEF OF STAFF,47708.33,2021
,2021 OFFICE OF THE MAJORITY LEADER,3,GENERAL EXPENDITURES,PERSONNEL COMPENSATION,DETAIL,   ,   ,   ,DAVIS ANNALIESE E,2021-07-01,2021-08-22,SENIOR COMMUNICATIONS ADVISOR,2888.89,2021
,2021 OFFICE OF THE MAJORITY LEADER,3,GENERAL EXPENDITURES,PERSONNEL COMPENSATION,DETAIL,   ,   ,   ,DREW KATHRYN L,2021-07-01,2021-09-30,COMM DIR AND SR ADVISOR,45591.67,2021
,2021 OFFICE OF THE MAJORITY LEADER,3,GENERAL EXPENDITURES,PERSONNEL COMPENSATION,DETAIL,   ,   ,   ,DUCKWORTH BRIAN A.,2021-07-01,2021-09-30,SENIOR MEMBER SERVICES ADVISOR,22500,2021
,2021 OFFICE OF THE MAJORITY LEADER,3,GENERAL EXPENDITURES,PERSONNEL COMPENSATION,DETAIL,   ,   ,   ,DWYER STEPHEN,2021-07-01,2021-09-30,DIGITAL DIR & POLICY ADV,19749.99,2021
,2021 OFFICE OF THE MAJORITY LEADER,3,GENERAL EXPENDITURES,PERSONNEL COMPENSATION,DETAIL,   ,   ,   ,FRY COURTNEY,2021-07-01,2021-09-30,FLOOR DIRECTOR,45591.67,2021
,2021 OFFICE OF THE MAJORITY LEADER,3,GENERAL EXPENDITURES,PERSONNEL COMPENSATION,DETAIL,   ,   ,   ,IOZZI MARK P,2021-07-01,2021-09-30,SENIOR POLICY ADVISOR,20321.51,2021
,2021 OFFICE OF THE MAJORITY LEADER,3,GENERAL EXPENDITURES,PERSONNEL COMPENSATION,DETAIL,   ,   ,   ,JEYADEV VIDHYA S.,2021-07-01,2021-09-30,PRESS ASSISTANT,12609.99,2021
,2021 OFFICE OF THE MAJORITY LEADER,3,GENERAL EXPENDITURES,PERSONNEL COMPENSATION,DETAIL,   ,   ,   ,LEUSCHEN JAMES P.,2021-07-01,2021-09-30,POLICY DIRECTOR,45591.67,2021
,2021 OFFICE OF THE MAJORITY LEADER,3,GENERAL EXPENDITURES,PERSONNEL COMPENSATION,DETAIL,   ,   ,   ,MEHRAN NICOLETTE,2021-07-01,2021-09-30,STAFF ASSISTANT,6999.99,2021
,2021 OFFICE OF THE MAJORITY LEADER,3,GENERAL EXPENDITURES,PERSONNEL COMPENSATION,DETAIL,   ,   ,   ,MEHRAN NICOLETTE,2021-06-01,2021-08-31,STAFF ASSISTANT (OVERTIME),2887.47,2021
,2021 OFFICE OF THE MAJORITY LEADER,3,GENERAL EXPENDITURES,PERSONNEL COMPENSATION,DETAIL,   ,   ,   ,MERZ JULIE E,2021-07-01,2021-09-30,MEMBER SERVICES DIRECTOR,21249.99,2021
,2021 OFFICE OF THE MAJORITY LEADER,3,GENERAL EXPENDITURES,PERSONNEL COMPENSATION,DETAIL,   ,   ,   ,MULKERRIN MARGARET A,2021-07-01,2021-09-30,NATIONAL PRESS SECRETARY,20000.01,2021
,2021 OFFICE OF THE MAJORITY LEADER,3,GENERAL EXPENDITURES,PERSONNEL COMPENSATION,DETAIL,   ,   ,   ,ROMICK BRIAN,2021-07-01,2021-09-30,DEPUTY CHIEF OF STAFF,47708.33,2021
,2021 OFFICE OF THE MAJORITY LEADER,3,GENERAL EXPENDITURES,PERSONNEL COMPENSATION,DETAIL,   ,   ,   ,ROWE DEBORAH M,2021-07-01,2021-09-30,SENIOR FLOOR ADVISOR,26250,2021
,2021 OFFICE OF THE MAJORITY LEADER,3,GENERAL EXPENDITURES,PERSONNEL COMPENSATION,DETAIL,   ,   ,   ,SALAZAR HANNAH L.,2021-07-01,2021-09-30,STAFF ASSISTANT,6999.99,2021
,2021 OFFICE OF THE MAJORITY LEADER,3,GENERAL EXPENDITURES,PERSONNEL COMPENSATION,DETAIL,   ,   ,   ,SALAZAR HANNAH L.,2021-06-01,2021-08-31,STAFF ASSISTANT (OVERTIME),2342.28,2021
,2021 OFFICE OF THE MAJORITY LEADER,3,GENERAL EXPENDITURES,PERSONNEL COMPENSATION,DETAIL,   ,   ,   ,SALAZAR RAYMOND J.,2021-07-01,2021-09-30,DEPUTY FLOOR DIRECTOR & SR ADV,27500.01,2021
,2021 OFFICE OF THE MAJORITY LEADER,3,GENERAL EXPENDITURES,PERSONNEL COMPENSATION,DETAIL,   ,   ,   ,SILVERBERG DANIEL I,2021-08-01,2021-08-30,SENIOR POLICY ADVISOR,-833.33,2021
,2021 OFFICE OF THE MAJORITY LEADER,3,GENERAL EXPENDITURES,PERSONNEL COMPENSATION,DETAIL,   ,   ,   ,SNYDER RACHEL N,2021-07-01,2021-09-30,SENIOR POLICY ADVISOR,15624.99,2021
,2021 OFFICE OF THE MAJORITY LEADER,3,GENERAL EXPENDITURES,PERSONNEL COMPENSATION,DETAIL,   ,   ,   ,SPAK MICHAEL J,2021-07-01,2021-09-30,SPECIAL ASSISTANT,13749.99,2021
,2021 OFFICE OF THE MAJORITY LEADER,3,GENERAL EXPENDITURES,PERSONNEL COMPENSATION,DETAIL,   ,   ,   ,TRAUBERMAN JACOB M,2021-07-01,2021-09-30,FLOOR AIDE,17499.99,2021
,2021 OFFICE OF THE MAJORITY LEADER,3,GENERAL EXPENDITURES,PERSONNEL COMPENSATION,DETAIL,   ,   ,   ,URRABAZO CLAUDIA,2021-07-01,2021-09-30,DEP. MBR SER DIR & SR ADV,35000.01,2021
,2021 OFFICE OF THE MAJORITY LEADER,3,GENERAL EXPENDITURES,PERSONNEL COMPENSATION,DETAIL,   ,   ,   ,VALENTINE MAYA I,2021-07-01,2021-08-31,MARYLAND PRESS SECRETARY,10000,2021
,2021 OFFICE OF THE MAJORITY LEADER,3,GENERAL EXPENDITURES,PERSONNEL COMPENSATION,DETAIL,   ,   ,   ,WEISSMANN ADAM,2021-07-01,2021-09-30,SPEECHWRITER,30000,2021
,2021 OFFICE OF THE MAJORITY LEADER,3,GENERAL EXPENDITURES,PERSONNEL COMPENSATION,SUBTOTAL,   ,   ,   ,   ,   ,   ,PERSONNEL COMPENSATION TOTALS:,699641.78,2021
,2021 OFFICE OF THE MAJORITY LEADER,3,GENERAL EXPENDITURES,TRAVEL,DETAIL,2021-08-09,AP,1451292,BEAN HARLEIGH J.,2021-06-22,2021-06-25,TAXI/PARKING/TOLLS,28.32,2021
,2021 OFFICE OF THE MAJORITY LEADER,3,GENERAL EXPENDITURES,TRAVEL,DETAIL,2021-08-09,AP,1451292,BEAN HARLEIGH J.,2021-07-27,2021-07-27,TAXI/PARKING/TOLLS,12.25,2021
,2021 OFFICE OF THE MAJORITY LEADER,3,GENERAL EXPENDITURES,TRAVEL,SUBTOTAL,   ,   ,   ,   ,   ,   ,TRAVEL TOTALS:,40.57,2021
,2021 OFFICE OF THE MAJORITY LEADER,3,GENERAL EXPENDITURES,RENT  COMMUNICATION  UTILITIES,DETAIL,2021-07-29,AP,1446989,CITI PCARD-USPS PO 1050091422,2021-06-17,2021-06-17,POSTAGE / COURIER / BOX RENTAL,69.55,2021
,2021 OFFICE OF THE MAJORITY LEADER,3,GENERAL EXPENDITURES,RENT  COMMUNICATION  UTILITIES,DETAIL,2021-07-29,AP,1446989,CITI PCARD-USPS.COM CLICKNSHIP,2021-06-16,2021-06-16,POSTAGE / COURIER / BOX RENTAL,17.1,2021
,2021 OFFICE OF THE MAJORITY LEADER,3,GENERAL EXPENDITURES,RENT  COMMUNICATION  UTILITIES,SUBTOTAL,   ,   ,   ,   ,   ,   ,RENT  COMMUNICATION  UTILITIES TOTALS:,86.65,2021
,2021 OFFICE OF THE MAJORITY LEADER,3,GENERAL EXPENDITURES,PRINTING AND REPRODUCTION,DETAIL,2021-09-02,AP,1459146,CITI PCARD-FACEBK 4Z5HE5P7D2,2021-07-21,2021-07-24,ADVERTISEMENTS,900,2021
,2021 OFFICE OF THE MAJORITY LEADER,3,GENERAL EXPENDITURES,PRINTING AND REPRODUCTION,DETAIL,2021-09-02,AP,1459146,CITI PCARD-FACEBK RED9B6P8D2,2021-07-15,2021-07-22,ADVERTISEMENTS,900,2021
,2021 OFFICE OF THE MAJORITY LEADER,3,GENERAL EXPENDITURES,PRINTING AND REPRODUCTION,DETAIL,2021-09-22,AP,1469843,ACCURATE WORD,2021-08-19,2021-08-19,PRINTING & REPRODUCTION,573,2021
,2021 OFFICE OF THE MAJORITY LEADER,3,GENERAL EXPENDITURES,PRINTING AND REPRODUCTION,SUBTOTAL,   ,   ,   ,   ,   ,   ,PRINTING AND REPRODUCTION TOTALS:,2373,2021
,2021 OFFICE OF THE MAJORITY LEADER,3,GENERAL EXPENDITURES,SUPPLIES AND MATERIALS,DETAIL,2021-07-28,AP,1448118,READYREFRESH BY NESTLE,2021-06-30,2021-06-30,WATER,47.4,2021
,2021 OFFICE OF THE MAJORITY LEADER,3,GENERAL EXPENDITURES,SUPPLIES AND MATERIALS,DETAIL,2021-08-08,AP,1451232,BSL GEM LASER EXPRESS LLC,2021-08-05,2021-08-05,OFFICE SUPPLIES (OUTSIDE),94,2021
,2021 OFFICE OF THE MAJORITY LEADER,3,GENERAL EXPENDITURES,SUPPLIES AND MATERIALS,DETAIL,2021-08-25,AP,1455410,READYREFRESH BY NESTLE,2021-07-31,2021-07-31,WATER,482.23,2021
,2021 OFFICE OF THE MAJORITY LEADER,3,GENERAL EXPENDITURES,SUPPLIES AND MATERIALS,DETAIL,2021-09-30,AP,1471946,QUADIENT INC,2021-09-07,2021-09-07,OFFICE SUPPLIES (OUTSIDE),88,2021
,2021 OFFICE OF THE MAJORITY LEADER,3,GENERAL EXPENDITURES,SUPPLIES AND MATERIALS,DETAIL,2021-09-30,AP,1472521,READYREFRESH BY NESTLE,2021-08-31,2021-08-31,WATER,53.89,2021
,2021 OFFICE OF THE MAJORITY LEADER,3,GENERAL EXPENDITURES,SUPPLIES AND MATERIALS,SUBTOTAL,   ,   ,   ,   ,   ,   ,SUPPLIES AND MATERIALS TOTALS:,765.52,2021
,2021 OFFICE OF THE MAJORITY LEADER,3,GENERAL EXPENDITURES,EQUIPMENT,DETAIL,2021-07-09,AP,1439787,MOREDIRECT INC DBA CONNECTION,2021-04-28,2021-04-28,MAINTENANCE / REPAIRS,2247,2021
,2021 OFFICE OF THE MAJORITY LEADER,3,GENERAL EXPENDITURES,EQUIPMENT,DETAIL,2021-07-21,AP,1446484,MOREDIRECT INC DBA CONNECTION,2021-04-28,2021-04-28,MAINTENANCE / REPAIRS,-2247,2021
,2021 OFFICE OF THE MAJORITY LEADER,3,GENERAL EXPENDITURES,EQUIPMENT,SUBTOTAL,   ,   ,   ,   ,   ,   ,EQUIPMENT TOTALS:,0,2021
,2021 OFFICE OF THE MAJORITY LEADER,3,GENERAL EXPENDITURES,EQUIPMENT,SUBTOTAL,   ,   ,   ,   ,   ,   ,GENERAL EXPENDITURES TOTALS:,702907.52,2021
,2021 OFFICE OF THE MAJORITY LEADER,3,GENERAL EXPENDITURES,EQUIPMENT,GRAND TOTAL FOR ORGANIZATION,   ,   ,   ,   ,   ,   ,OFFICE TOTALS: ,702907.52,2021
,2021 OFFICE OF THE MAJORITY LEADER,3,INTERN ALLOWANCES,PERSONNEL COMPENSATION,DETAIL,   ,   ,   ,ALSOBROOKS-LANEY ALEXANDRA P.,2021-07-09,2021-09-03,MAJ LEADER PAID INTERN - HOUSE,1329.17,2021
,2021 OFFICE OF THE MAJORITY LEADER,3,INTERN ALLOWANCES,PERSONNEL COMPENSATION,DETAIL,   ,   ,   ,CONVERSE MATTHEW A.,2021-07-09,2021-08-09,MAJ LEADER PAID INTERN - HOUSE,749.17,2021
,2021 OFFICE OF THE MAJORITY LEADER,3,INTERN ALLOWANCES,PERSONNEL COMPENSATION,DETAIL,   ,   ,   ,CURRY AIDAN M.,2021-07-09,2021-09-03,MAJ LEADER PAID INTERN - HOUSE,1329.17,2021
,2021 OFFICE OF THE MAJORITY LEADER,3,INTERN ALLOWANCES,PERSONNEL COMPENSATION,DETAIL,   ,   ,   ,GANDOLPH ISABELLA J.,2021-07-09,2021-09-03,MAJ LEADER PAID INTERN - HOUSE,1329.17,2021
,2021 OFFICE OF THE MAJORITY LEADER,3,INTERN ALLOWANCES,PERSONNEL COMPENSATION,DETAIL,   ,   ,   ,HERBERMAN JOEL L.,2021-07-09,2021-09-03,MAJ LEADER PAID INTERN - HOUSE,1329.17,2021
,2021 OFFICE OF THE MAJORITY LEADER,3,INTERN ALLOWANCES,PERSONNEL COMPENSATION,DETAIL,   ,   ,   ,MELTON JOHN H.,2021-07-09,2021-09-03,MAJ LEADER PAID INTERN - HOUSE,1329.17,2021
,2021 OFFICE OF THE MAJORITY LEADER,3,INTERN ALLOWANCES,PERSONNEL COMPENSATION,DETAIL,   ,   ,   ,NEALON RYAN T.,2021-07-09,2021-09-03,MAJ LEADER PAID INTERN - HOUSE,1329.17,2021
,2021 OFFICE OF THE MAJORITY LEADER,3,INTERN ALLOWANCES,PERSONNEL COMPENSATION,DETAIL,   ,   ,   ,ULMAN MADELINE R.,2021-07-09,2021-09-03,MAJ LEADER PAID INTERN - HOUSE,1329.17,2021
,2021 OFFICE OF THE MAJORITY LEADER,3,INTERN ALLOWANCES,PERSONNEL COMPENSATION,SUBTOTAL,   ,   ,   ,   ,   ,   ,PERSONNEL COMPENSATION TOTALS:,10053.36,2021
,2021 OFFICE OF THE MAJORITY LEADER,3,INTERN ALLOWANCES,PERSONNEL COMPENSATION,SUBTOTAL,   ,   ,   ,   ,   ,   ,INTERN ALLOWANCES TOTALS:,10053.36,2021
,2021 OFFICE OF THE MAJORITY LEADER,3,INTERN ALLOWANCES,PERSONNEL COMPENSATION,GRAND TOTAL FOR ORGANIZATION,   ,   ,   ,   ,   ,   ,OFFICE TOTALS: ,10053.36,2021
,2021 OFFICE OF THE MINORITY LEADER,3,GENERAL EXPENDITURES,PERSONNEL COMPENSATION,DETAIL,   ,   ,   ,BEDNAR MARK M,2021-07-01,2021-09-30,DIR OF STRATEGIC COMMUNICATION,36000,2021
,2021 OFFICE OF THE MINORITY LEADER,3,GENERAL EXPENDITURES,PERSONNEL COMPENSATION,DETAIL,   ,   ,   ,BERTOLINI STEVEN R.,2021-07-01,2021-09-30,STAFF ASSISTANT,10000,2021
,2021 OFFICE OF THE MINORITY LEADER,3,GENERAL EXPENDITURES,PERSONNEL COMPENSATION,DETAIL,   ,   ,   ,BIEN CHRISTOPHER A,2021-07-01,2021-09-30,DEPUTY DIR OF FLOOR OPERATIONS,31500,2021
,2021 OFFICE OF THE MINORITY LEADER,3,GENERAL EXPENDITURES,PERSONNEL COMPENSATION,DETAIL,   ,   ,   ,BOGOROWSKI HANNA C,2021-07-01,2021-09-30,COMMUNICATIONS ADVISOR,18000,2021
,2021 OFFICE OF THE MINORITY LEADER,3,GENERAL EXPENDITURES,PERSONNEL COMPENSATION,DETAIL,   ,   ,   ,BONNER JENNIFER L,2021-07-01,2021-09-30,SCHEDULER,19500,2021
,2021 OFFICE OF THE MINORITY LEADER,3,GENERAL EXPENDITURES,PERSONNEL COMPENSATION,DETAIL,   ,   ,   ,BUCHANAN NATALIE L,2021-07-01,2021-09-30,DEPUTY CHIEF OF STAFF FOR MEMB,42000,2021
,2021 OFFICE OF THE MINORITY LEADER,3,GENERAL EXPENDITURES,PERSONNEL COMPENSATION,DETAIL,   ,   ,   ,BURKE ROBERT J,2021-08-11,2021-09-30,COMMUNICATIONS AIDE,7500,2021
,2021 OFFICE OF THE MINORITY LEADER,3,GENERAL EXPENDITURES,PERSONNEL COMPENSATION,DETAIL,   ,   ,   ,CAMERON CHRISTINA E,2021-07-01,2021-09-30,MEDIA AFFAIRS & OPERATIONS ADV,25500,2021
,2021 OFFICE OF THE MINORITY LEADER,3,GENERAL EXPENDITURES,PERSONNEL COMPENSATION,DETAIL,   ,   ,   ,CARR MACHALAGH,2021-07-01,2021-09-30,GENERAL COUNSEL,42000,2021
,2021 OFFICE OF THE MINORITY LEADER,3,GENERAL EXPENDITURES,PERSONNEL COMPENSATION,DETAIL,   ,   ,   ,CONSTANGY III HERBERT W,2021-07-01,2021-09-30,SHARED EMPLOYEE,30000,2021
,2021 OFFICE OF THE MINORITY LEADER,3,GENERAL EXPENDITURES,PERSONNEL COMPENSATION,DETAIL,   ,   ,   ,COOK KRISTOPHER D.,2021-07-01,2021-09-30,SHARED EMPLOYEE,18000,2021
,2021 OFFICE OF THE MINORITY LEADER,3,GENERAL EXPENDITURES,PERSONNEL COMPENSATION,DETAIL,   ,   ,   ,CORRELL CHARLES C,2021-07-01,2021-09-30,SPEECHWRITER,21000,2021
,2021 OFFICE OF THE MINORITY LEADER,3,GENERAL EXPENDITURES,PERSONNEL COMPENSATION,DETAIL,   ,   ,   ,COYLE SARAH M,2021-07-01,2021-09-30,CLOAKROOM FLOOR DIRECTOR,22500,2021
,2021 OFFICE OF THE MINORITY LEADER,3,GENERAL EXPENDITURES,PERSONNEL COMPENSATION,DETAIL,   ,   ,   ,DAYER KATHERINE J,2021-07-01,2021-09-30,CLOAKROOM FLOOR ASSISTANT,12500,2021
,2021 OFFICE OF THE MINORITY LEADER,3,GENERAL EXPENDITURES,PERSONNEL COMPENSATION,DETAIL,   ,   ,   ,DOMENECH EMILY H,2021-07-01,2021-09-30,SENIOR POLICY ADVISOR,40500,2021
,2021 OFFICE OF THE MINORITY LEADER,3,GENERAL EXPENDITURES,PERSONNEL COMPENSATION,DETAIL,   ,   ,   ,DUNHAM WILL,2021-07-01,2021-09-30,DEP CHIEF OF STAFF FOR POLICY,42000,2021
,2021 OFFICE OF THE MINORITY LEADER,3,GENERAL EXPENDITURES,PERSONNEL COMPENSATION,DETAIL,   ,   ,   ,EARWOOD ELIZABETH K.,2021-07-01,2021-09-30,SHARED EMPLOYEE,15000,2021
,2021 OFFICE OF THE MINORITY LEADER,3,GENERAL EXPENDITURES,PERSONNEL COMPENSATION,DETAIL,   ,   ,   ,ENGLING MAXIMILIAN T,2021-07-01,2021-09-30,DEP DIR OF MEMBER SERVICES,36000,2021
,2021 OFFICE OF THE MINORITY LEADER,3,GENERAL EXPENDITURES,PERSONNEL COMPENSATION,DETAIL,   ,   ,   ,EXNER MICHELE P,2021-07-01,2021-09-30,COMMUNICATIONS DIRECTOR,36000,2021
,2021 OFFICE OF THE MINORITY LEADER,3,GENERAL EXPENDITURES,PERSONNEL COMPENSATION,DETAIL,   ,   ,   ,FOSTER JORDYN D.,2021-07-01,2021-07-31,TEMPORARY EMPLOYEE,1000,2021
,2021 OFFICE OF THE MINORITY LEADER,3,GENERAL EXPENDITURES,PERSONNEL COMPENSATION,DETAIL,   ,   ,   ,GIAIER STEVEN S,2021-07-01,2021-09-30,SENIOR POLICY ADVISOR & COUNSE,40500,2021
,2021 OFFICE OF THE MINORITY LEADER,3,GENERAL EXPENDITURES,PERSONNEL COMPENSATION,DETAIL,   ,   ,   ,GILLESPIE JAMES M.,2021-07-01,2021-09-30,SPECIAL ASSISTANT TO THE REPUL,16500,2021
,2021 OFFICE OF THE MINORITY LEADER,3,GENERAL EXPENDITURES,PERSONNEL COMPENSATION,DETAIL,   ,   ,   ,GILMARTIN CHARLES P.,2021-07-01,2021-09-30,DEPUTY SPOKESMAN,17250,2021
,2021 OFFICE OF THE MINORITY LEADER,3,GENERAL EXPENDITURES,PERSONNEL COMPENSATION,DETAIL,   ,   ,   ,GOURDIKIAN ALEXANDRA G.,2021-07-01,2021-09-30,DIRECTOR OF OPERATIONS & SCHED,37500,2021
,2021 OFFICE OF THE MINORITY LEADER,3,GENERAL EXPENDITURES,PERSONNEL COMPENSATION,DETAIL,   ,   ,   ,HAULSEE TAYLOR S.,2021-07-01,2021-09-30,SHARED EMPLOYEE,30000,2021
,2021 OFFICE OF THE MINORITY LEADER,3,GENERAL EXPENDITURES,PERSONNEL COMPENSATION,DETAIL,   ,   ,   ,HILL PRESTON W,2021-07-01,2021-09-30,POLICY ADVISOR,30000,2021
,2021 OFFICE OF THE MINORITY LEADER,3,GENERAL EXPENDITURES,PERSONNEL COMPENSATION,DETAIL,   ,   ,   ,HOCHSCHILD KEENAN N.,2021-07-01,2021-09-30,DIGITAL COMMUNICATIONS ADVISOR,18000,2021
,2021 OFFICE OF THE MINORITY LEADER,3,GENERAL EXPENDITURES,PERSONNEL COMPENSATION,DETAIL,   ,   ,   ,HOUSTON ZACHARY G,2021-07-01,2021-08-04,COMMUNICATIONS AIDE,5100,2021
,2021 OFFICE OF THE MINORITY LEADER,3,GENERAL EXPENDITURES,PERSONNEL COMPENSATION,DETAIL,   ,   ,   ,HOWELL MARGARET E.,2021-07-01,2021-09-30,GRAPHIC DESIGNER,14500,2021
,2021 OFFICE OF THE MINORITY LEADER,3,GENERAL EXPENDITURES,PERSONNEL COMPENSATION,DETAIL,   ,   ,   ,HUMES ALEXANDRA W.,2021-07-01,2021-09-30,MEMBER SERVICES COORDINATOR,18750,2021
,2021 OFFICE OF THE MINORITY LEADER,3,GENERAL EXPENDITURES,PERSONNEL COMPENSATION,DETAIL,   ,   ,   ,KELLY CARI R,2021-07-01,2021-09-30,SHARED EMPLOYEE,23250,2021
,2021 OFFICE OF THE MINORITY LEADER,3,GENERAL EXPENDITURES,PERSONNEL COMPENSATION,DETAIL,   ,   ,   ,LEGANSKI JOHN G,2021-07-01,2021-09-30,DIRECTOR OF FLOOR OPERATIONS,42000,2021
,2021 OFFICE OF THE MINORITY LEADER,3,GENERAL EXPENDITURES,PERSONNEL COMPENSATION,DETAIL,   ,   ,   ,LOMBARDI KYLE,2021-07-01,2021-09-30,SHARED EMPLOYEE,31500,2021
,2021 OFFICE OF THE MINORITY LEADER,3,GENERAL EXPENDITURES,PERSONNEL COMPENSATION,DETAIL,   ,   ,   ,LONG RYAN C,2021-07-01,2021-09-30,SR POLICY ADVISOR  & COUNSEL,42000,2021
,2021 OFFICE OF THE MINORITY LEADER,3,GENERAL EXPENDITURES,PERSONNEL COMPENSATION,DETAIL,   ,   ,   ,MARTINEZ BRITTANY N,2021-07-01,2021-09-30,CALIFORNIA PRESS SECRETARY,19500,2021
,2021 OFFICE OF THE MINORITY LEADER,3,GENERAL EXPENDITURES,PERSONNEL COMPENSATION,DETAIL,   ,   ,   ,MEYER DANIEL P,2021-07-01,2021-09-30,CHIEF OF STAFF,43475.01,2021
,2021 OFFICE OF THE MINORITY LEADER,3,GENERAL EXPENDITURES,PERSONNEL COMPENSATION,DETAIL,   ,   ,   ,MIN JAMES B.,2021-07-01,2021-09-30,DEPUTY CHIEF OF STAFF/COUNSEL,41250,2021
,2021 OFFICE OF THE MINORITY LEADER,3,GENERAL EXPENDITURES,PERSONNEL COMPENSATION,DETAIL,   ,   ,   ,MURPHY CULLEN D,2021-07-01,2021-09-30,FLOOR ASSISTANT,15000,2021
,2021 OFFICE OF THE MINORITY LEADER,3,GENERAL EXPENDITURES,PERSONNEL COMPENSATION,DETAIL,   ,   ,   ,QUINN AUSTIN T.,2021-07-01,2021-08-10,TEMPORARY EMPLOYEE,4666.67,2021
,2021 OFFICE OF THE MINORITY LEADER,3,GENERAL EXPENDITURES,PERSONNEL COMPENSATION,DETAIL,   ,   ,   ,SMITH CALEB J,2021-07-01,2021-09-30,DIGITAL COMMUNICATIONS DIRECTO,42000,2021
,2021 OFFICE OF THE MINORITY LEADER,3,GENERAL EXPENDITURES,PERSONNEL COMPENSATION,DETAIL,   ,   ,   ,SMITH TREVOR H,2021-07-01,2021-09-30,SHARED EMPLOYEE,25500,2021
,2021 OFFICE OF THE MINORITY LEADER,3,GENERAL EXPENDITURES,PERSONNEL COMPENSATION,DETAIL,   ,   ,   ,SMITHWICK KYLE B,2021-09-01,2021-09-30,SHARED EMPLOYEE,10000,2021
,2021 OFFICE OF THE MINORITY LEADER,3,GENERAL EXPENDITURES,PERSONNEL COMPENSATION,DETAIL,   ,   ,   ,SOUZA ALLEN R,2021-07-01,2021-09-30,NATIONAL SECURITY ADVISOR,40500,2021
,2021 OFFICE OF THE MINORITY LEADER,3,GENERAL EXPENDITURES,PERSONNEL COMPENSATION,DETAIL,   ,   ,   ,SPARKS MATTHEW E,2021-07-01,2021-09-30,HEAD OF COMMUNICATIONS,42000,2021
,2021 OFFICE OF THE MINORITY LEADER,3,GENERAL EXPENDITURES,PERSONNEL COMPENSATION,DETAIL,   ,   ,   ,SPECHT BRITTAN G,2021-07-01,2021-09-30,SENIOR POLICY ADVISOR,40500,2021
,2021 OFFICE OF THE MINORITY LEADER,3,GENERAL EXPENDITURES,PERSONNEL COMPENSATION,SUBTOTAL,   ,   ,   ,   ,   ,   ,PERSONNEL COMPENSATION TOTALS:,1197741.68,2021
,2021 OFFICE OF THE MINORITY LEADER,3,GENERAL EXPENDITURES,TRAVEL,DETAIL,2021-08-20,AP,1457288,CAMERON CHRISTINA E.,2021-08-04,2021-08-05,COMMERCIAL TRANSPORTATION,421.21,2021
,2021 OFFICE OF THE MINORITY LEADER,3,GENERAL EXPENDITURES,TRAVEL,DETAIL,2021-08-20,AP,1457288,CAMERON CHRISTINA E.,2021-08-04,2021-08-05,LODGING,145.77,2021
,2021 OFFICE OF THE MINORITY LEADER,3,GENERAL EXPENDITURES,TRAVEL,DETAIL,2021-08-20,AP,1457288,CAMERON CHRISTINA E.,2021-08-04,2021-08-04,MEALS,32.61,2021
,2021 OFFICE OF THE MINORITY LEADER,3,GENERAL EXPENDITURES,TRAVEL,DETAIL,2021-08-20,AP,1457288,CAMERON CHRISTINA E.,2021-08-05,2021-08-05,MEALS,41.23,2021
,2021 OFFICE OF THE MINORITY LEADER,3,GENERAL EXPENDITURES,TRAVEL,DETAIL,2021-08-20,AP,1457288,CAMERON CHRISTINA E.,2021-08-04,2021-08-04,TAXI/PARKING/TOLLS,40.06,2021
,2021 OFFICE OF THE MINORITY LEADER,3,GENERAL EXPENDITURES,TRAVEL,DETAIL,2021-08-20,AP,1457288,CAMERON CHRISTINA E.,2021-08-05,2021-08-05,TAXI/PARKING/TOLLS,17.01,2021
,2021 OFFICE OF THE MINORITY LEADER,3,GENERAL EXPENDITURES,TRAVEL,DETAIL,2021-08-24,AP,1454919,ENGLING MAXIMILIAN T.,2021-08-04,2021-08-05,COMMERCIAL TRANSPORTATION,398.79,2021
,2021 OFFICE OF THE MINORITY LEADER,3,GENERAL EXPENDITURES,TRAVEL,DETAIL,2021-08-24,AP,1454919,ENGLING MAXIMILIAN T.,2021-08-04,2021-08-05,LODGING,145.77,2021
,2021 OFFICE OF THE MINORITY LEADER,3,GENERAL EXPENDITURES,TRAVEL,DETAIL,2021-08-24,AP,1454919,ENGLING MAXIMILIAN T.,2021-08-04,2021-08-04,TAXI/PARKING/TOLLS,14.38,2021
,2021 OFFICE OF THE MINORITY LEADER,3,GENERAL EXPENDITURES,TRAVEL,DETAIL,2021-08-24,AP,1454919,ENGLING MAXIMILIAN T.,2021-08-04,2021-08-05,TAXI/PARKING/TOLLS,44,2021
,2021 OFFICE OF THE MINORITY LEADER,3,GENERAL EXPENDITURES,TRAVEL,DETAIL,2021-08-24,AP,1454919,ENGLING MAXIMILIAN T.,2021-08-05,2021-08-05,TAXI/PARKING/TOLLS,40.83,2021
,2021 OFFICE OF THE MINORITY LEADER,3,GENERAL EXPENDITURES,TRAVEL,DETAIL,2021-08-24,AP,1457728,SMITH CALEB,2021-08-04,2021-08-05,COMMERCIAL TRANSPORTATION,398.79,2021
,2021 OFFICE OF THE MINORITY LEADER,3,GENERAL EXPENDITURES,TRAVEL,DETAIL,2021-08-24,AP,1457728,SMITH CALEB,2021-08-04,2021-08-05,LODGING,145.77,2021
,2021 OFFICE OF THE MINORITY LEADER,3,GENERAL EXPENDITURES,TRAVEL,DETAIL,2021-08-24,AP,1457728,SMITH CALEB,2021-08-04,2021-08-04,MEALS,32.01,2021
,2021 OFFICE OF THE MINORITY LEADER,3,GENERAL EXPENDITURES,TRAVEL,DETAIL,2021-08-24,AP,1457728,SMITH CALEB,2021-08-04,2021-08-04,TAXI/PARKING/TOLLS,50.26,2021
,2021 OFFICE OF THE MINORITY LEADER,3,GENERAL EXPENDITURES,TRAVEL,DETAIL,2021-08-24,AP,1457728,SMITH CALEB,2021-08-05,2021-08-05,TAXI/PARKING/TOLLS,15.99,2021
,2021 OFFICE OF THE MINORITY LEADER,3,GENERAL EXPENDITURES,TRAVEL,DETAIL,2021-08-30,AP,1459304,MARTINEZ BRITTANY N.,2021-08-04,2021-08-05,COMMERCIAL TRANSPORTATION,225.8,2021
,2021 OFFICE OF THE MINORITY LEADER,3,GENERAL EXPENDITURES,TRAVEL,DETAIL,2021-08-30,AP,1459304,MARTINEZ BRITTANY N.,2021-08-04,2021-08-05,LODGING,145.77,2021
,2021 OFFICE OF THE MINORITY LEADER,3,GENERAL EXPENDITURES,TRAVEL,DETAIL,2021-08-30,AP,1459304,MARTINEZ BRITTANY N.,2021-08-04,2021-08-04,MEALS,23.77,2021
,2021 OFFICE OF THE MINORITY LEADER,3,GENERAL EXPENDITURES,TRAVEL,DETAIL,2021-08-30,AP,1459304,MARTINEZ BRITTANY N.,2021-08-04,2021-08-04,TAXI/PARKING/TOLLS,49.35,2021
,2021 OFFICE OF THE MINORITY LEADER,3,GENERAL EXPENDITURES,TRAVEL,DETAIL,2021-08-30,AP,1459304,MARTINEZ BRITTANY N.,2021-08-05,2021-08-05,TAXI/PARKING/TOLLS,58.79,2021
,2021 OFFICE OF THE MINORITY LEADER,3,GENERAL EXPENDITURES,TRAVEL,DETAIL,2021-09-28,AP,1470338,CAMERON CHRISTINA E.,2021-09-13,2021-09-13,COMMERCIAL TRANSPORTATION,195,2021
,2021 OFFICE OF THE MINORITY LEADER,3,GENERAL EXPENDITURES,TRAVEL,DETAIL,2021-09-28,AP,1470338,CAMERON CHRISTINA E.,2021-09-14,2021-09-14,COMMERCIAL TRANSPORTATION,245.37,2021
,2021 OFFICE OF THE MINORITY LEADER,3,GENERAL EXPENDITURES,TRAVEL,DETAIL,2021-09-28,AP,1470338,CAMERON CHRISTINA E.,2021-09-15,2021-09-15,COMMERCIAL TRANSPORTATION,167.4,2021
,2021 OFFICE OF THE MINORITY LEADER,3,GENERAL EXPENDITURES,TRAVEL,DETAIL,2021-09-28,AP,1470338,CAMERON CHRISTINA E.,2021-09-13,2021-09-14,LODGING,1234.77,2021
,2021 OFFICE OF THE MINORITY LEADER,3,GENERAL EXPENDITURES,TRAVEL,DETAIL,2021-09-28,AP,1470338,CAMERON CHRISTINA E.,2021-09-14,2021-09-15,LODGING,141.36,2021
,2021 OFFICE OF THE MINORITY LEADER,3,GENERAL EXPENDITURES,TRAVEL,DETAIL,2021-09-28,AP,1470338,CAMERON CHRISTINA E.,2021-09-13,2021-09-13,MEALS,9.79,2021
,2021 OFFICE OF THE MINORITY LEADER,3,GENERAL EXPENDITURES,TRAVEL,DETAIL,2021-09-28,AP,1470338,CAMERON CHRISTINA E.,2021-09-14,2021-09-14,MEALS,50.53,2021
,2021 OFFICE OF THE MINORITY LEADER,3,GENERAL EXPENDITURES,TRAVEL,DETAIL,2021-09-28,AP,1470338,CAMERON CHRISTINA E.,2021-09-15,2021-09-15,MEALS,35.29,2021
,2021 OFFICE OF THE MINORITY LEADER,3,GENERAL EXPENDITURES,TRAVEL,DETAIL,2021-09-28,AP,1470338,CAMERON CHRISTINA E.,2021-09-14,2021-09-15,CAR RENTAL,220.47,2021
,2021 OFFICE OF THE MINORITY LEADER,3,GENERAL EXPENDITURES,TRAVEL,DETAIL,2021-09-28,AP,1470338,CAMERON CHRISTINA E.,2021-09-15,2021-09-15,GASOLINE,6.25,2021
,2021 OFFICE OF THE MINORITY LEADER,3,GENERAL EXPENDITURES,TRAVEL,DETAIL,2021-09-28,AP,1470338,CAMERON CHRISTINA E.,2021-09-13,2021-09-13,TAXI/PARKING/TOLLS,45.53,2021
,2021 OFFICE OF THE MINORITY LEADER,3,GENERAL EXPENDITURES,TRAVEL,DETAIL,2021-09-28,AP,1470338,CAMERON CHRISTINA E.,2021-09-14,2021-09-14,TAXI/PARKING/TOLLS,88.9,2021
,2021 OFFICE OF THE MINORITY LEADER,3,GENERAL EXPENDITURES,TRAVEL,DETAIL,2021-09-28,AP,1470338,CAMERON CHRISTINA E.,2021-09-15,2021-09-16,TAXI/PARKING/TOLLS,51.99,2021
,2021 OFFICE OF THE MINORITY LEADER,3,GENERAL EXPENDITURES,TRAVEL,SUBTOTAL,   ,   ,   ,   ,   ,   ,TRAVEL TOTALS:,4980.61,2021
,2021 OFFICE OF THE MINORITY LEADER,3,GENERAL EXPENDITURES,RENT  COMMUNICATION  UTILITIES,DETAIL,2021-07-19,AP,1439687,CITI PCARD-GOOGLE  YouTube TV,2021-05-29,2021-06-29,UTILITIES,68.89,2021
,2021 OFFICE OF THE MINORITY LEADER,3,GENERAL EXPENDITURES,RENT  COMMUNICATION  UTILITIES,DETAIL,2021-07-22,GL,EMS0108073, ,2021-06-01,2021-06-30,DC TELECOM EQUIP (TRANSFER),36,2021
,2021 OFFICE OF THE MINORITY LEADER,3,GENERAL EXPENDITURES,RENT  COMMUNICATION  UTILITIES,DETAIL,2021-07-22,GL,EMS0108073, ,2021-06-01,2021-06-30,DC TELECOM SERV (TRANSFER),563,2021
,2021 OFFICE OF THE MINORITY LEADER,3,GENERAL EXPENDITURES,RENT  COMMUNICATION  UTILITIES,DETAIL,2021-07-22,GL,EMS0108073, ,2021-06-01,2021-06-30,DC TELECOM TOLLS (TRANSFER),3629.59,2021
,2021 OFFICE OF THE MINORITY LEADER,3,GENERAL EXPENDITURES,RENT  COMMUNICATION  UTILITIES,DETAIL,2021-07-26,GL,MED0108155, ,2021-07-22,2021-07-22,HIR GRAPHICS (TRANSFER),30,2021
,2021 OFFICE OF THE MINORITY LEADER,3,GENERAL EXPENDITURES,RENT  COMMUNICATION  UTILITIES,DETAIL,2021-08-17,AP,1451983,CITI PCARD-GOOGLE  YouTube TV,2021-06-29,2021-07-28,UTILITIES,68.89,2021
,2021 OFFICE OF THE MINORITY LEADER,3,GENERAL EXPENDITURES,RENT  COMMUNICATION  UTILITIES,DETAIL,2021-08-20,AP,1457288,CAMERON CHRISTINA E.,2021-08-04,2021-08-04,UTILITIES,15,2021
,2021 OFFICE OF THE MINORITY LEADER,3,GENERAL EXPENDITURES,RENT  COMMUNICATION  UTILITIES,DETAIL,2021-08-30,AP,1459304,MARTINEZ BRITTANY N.,2021-08-04,2021-08-04,UTILITIES,19,2021
,2021 OFFICE OF THE MINORITY LEADER,3,GENERAL EXPENDITURES,RENT  COMMUNICATION  UTILITIES,DETAIL,2021-08-30,AP,1459304,MARTINEZ BRITTANY N.,2021-08-05,2021-08-05,UTILITIES,12,2021
,2021 OFFICE OF THE MINORITY LEADER,3,GENERAL EXPENDITURES,RENT  COMMUNICATION  UTILITIES,DETAIL,2021-08-30,GL,EMS0109045, ,2021-07-01,2021-07-31,DC TELECOM EQUIP (TRANSFER),36,2021
,2021 OFFICE OF THE MINORITY LEADER,3,GENERAL EXPENDITURES,RENT  COMMUNICATION  UTILITIES,DETAIL,2021-08-30,GL,EMS0109045, ,2021-07-01,2021-07-31,DC TELECOM SERV (TRANSFER),563,2021
,2021 OFFICE OF THE MINORITY LEADER,3,GENERAL EXPENDITURES,RENT  COMMUNICATION  UTILITIES,DETAIL,2021-08-30,GL,EMS0109045, ,2021-07-01,2021-07-31,DC TELECOM TOLLS (TRANSFER),2024.33,2021
,2021 OFFICE OF THE MINORITY LEADER,3,GENERAL EXPENDITURES,RENT  COMMUNICATION  UTILITIES,DETAIL,2021-09-27,GL,EMS0109741, ,2021-08-01,2021-08-31,DC TELECOM EQUIP (TRANSFER),40,2021
,2021 OFFICE OF THE MINORITY LEADER,3,GENERAL EXPENDITURES,RENT  COMMUNICATION  UTILITIES,DETAIL,2021-09-27,GL,EMS0109741, ,2021-08-01,2021-08-31,DC TELECOM SERV (TRANSFER),570.75,2021
,2021 OFFICE OF THE MINORITY LEADER,3,GENERAL EXPENDITURES,RENT  COMMUNICATION  UTILITIES,DETAIL,2021-09-27,GL,EMS0109741, ,2021-08-01,2021-08-31,DC TELECOM TOLLS (TRANSFER),2032.99,2021
,2021 OFFICE OF THE MINORITY LEADER,3,GENERAL EXPENDITURES,RENT  COMMUNICATION  UTILITIES,SUBTOTAL,   ,   ,   ,   ,   ,   ,RENT  COMMUNICATION  UTILITIES TOTALS:,9709.44,2021
,2021 OFFICE OF THE MINORITY LEADER,3,GENERAL EXPENDITURES,PRINTING AND REPRODUCTION,DETAIL,2021-07-19,AP,1439687,CITI PCARD-FACEBK 24CYL5B6K2,2021-06-08,2021-06-14,ADVERTISEMENTS,900,2021
,2021 OFFICE OF THE MINORITY LEADER,3,GENERAL EXPENDITURES,PRINTING AND REPRODUCTION,DETAIL,2021-07-19,AP,1439687,CITI PCARD-FACEBK 7T4B7576K2,2021-05-28,2021-06-02,ADVERTISEMENTS,900,2021
,2021 OFFICE OF THE MINORITY LEADER,3,GENERAL EXPENDITURES,PRINTING AND REPRODUCTION,DETAIL,2021-07-19,AP,1439687,CITI PCARD-FACEBK BQK8X4P6K2,2021-06-06,2021-06-08,ADVERTISEMENTS,436.9,2021
,2021 OFFICE OF THE MINORITY LEADER,3,GENERAL EXPENDITURES,PRINTING AND REPRODUCTION,DETAIL,2021-07-19,AP,1439687,CITI PCARD-FACEBK KH2PM4P6K2,2021-05-24,2021-05-28,ADVERTISEMENTS,900,2021
,2021 OFFICE OF THE MINORITY LEADER,3,GENERAL EXPENDITURES,PRINTING AND REPRODUCTION,DETAIL,2021-07-19,AP,1439687,CITI PCARD-FACEBK LEJNB5P6K2,2021-06-19,2021-06-26,ADVERTISEMENTS,900,2021
,2021 OFFICE OF THE MINORITY LEADER,3,GENERAL EXPENDITURES,PRINTING AND REPRODUCTION,DETAIL,2021-07-19,AP,1439687,CITI PCARD-FACEBK PBMZ2636K2,2021-06-14,2021-06-20,ADVERTISEMENTS,900,2021
,2021 OFFICE OF THE MINORITY LEADER,3,GENERAL EXPENDITURES,PRINTING AND REPRODUCTION,DETAIL,2021-07-19,AP,1439687,CITI PCARD-FACEBK YBV9Y4T5K2,2021-06-01,2021-06-06,ADVERTISEMENTS,900,2021
,2021 OFFICE OF THE MINORITY LEADER,3,GENERAL EXPENDITURES,PRINTING AND REPRODUCTION,DETAIL,2021-08-05,AP,1450371,ACCURATE WORD,2021-07-26,2021-07-26,PRINTING & REPRODUCTION,43,2021
,2021 OFFICE OF THE MINORITY LEADER,3,GENERAL EXPENDITURES,PRINTING AND REPRODUCTION,DETAIL,2021-09-27,GL,MED0109742, ,2021-09-14,2021-09-14,PHOTOGRAPHIC (TRANSFER),20.9,2021
,2021 OFFICE OF THE MINORITY LEADER,3,GENERAL EXPENDITURES,PRINTING AND REPRODUCTION,SUBTOTAL,   ,   ,   ,   ,   ,   ,PRINTING AND REPRODUCTION TOTALS:,5900.8,2021
,2021 OFFICE OF THE MINORITY LEADER,3,GENERAL EXPENDITURES,OTHER SERVICES,DETAIL,2021-07-16,AP,1442843,HOUSECALL LLC,2021-07-01,2021-07-31,TECHNOLOGY SERVICE CONTRACTS,5125,2021
,2021 OFFICE OF THE MINORITY LEADER,3,GENERAL EXPENDITURES,OTHER SERVICES,DETAIL,2021-07-19,AP,1439687,CITI PCARD-MailChimp,2021-06-12,2021-07-11,WEB DEV HST EMAIL & RLTD SERV,646.6,2021
,2021 OFFICE OF THE MINORITY LEADER,3,GENERAL EXPENDITURES,OTHER SERVICES,DETAIL,2021-08-16,AP,1454306,HOUSECALL LLC,2021-08-01,2021-08-31,TECHNOLOGY SERVICE CONTRACTS,5125,2021
,2021 OFFICE OF THE MINORITY LEADER,3,GENERAL EXPENDITURES,OTHER SERVICES,DETAIL,2021-08-17,AP,1451983,CITI PCARD-MailChimp,2021-07-12,2021-08-11,WEB DEV HST EMAIL & RLTD SERV,646.6,2021
,2021 OFFICE OF THE MINORITY LEADER,3,GENERAL EXPENDITURES,OTHER SERVICES,DETAIL,2021-09-13,AP,1461695,ENGAGE LLC,2021-08-27,2021-08-27,WEB DEV HST EMAIL & RLTD SERV,23500,2021
,2021 OFFICE OF THE MINORITY LEADER,3,GENERAL EXPENDITURES,OTHER SERVICES,DETAIL,2021-09-16,AP,1466416,HOUSECALL LLC,2021-09-01,2021-09-30,TECHNOLOGY SERVICE CONTRACTS,5125,2021
,2021 OFFICE OF THE MINORITY LEADER,3,GENERAL EXPENDITURES,OTHER SERVICES,DETAIL,2021-09-21,AP,1464780,CITI PCARD-MailChimp,2021-08-12,2021-09-11,WEB DEV HST EMAIL & RLTD SERV,646.6,2021
,2021 OFFICE OF THE MINORITY LEADER,3,GENERAL EXPENDITURES,OTHER SERVICES,SUBTOTAL,   ,   ,   ,   ,   ,   ,OTHER SERVICES TOTALS:,40814.8,2021
,2021 OFFICE OF THE MINORITY LEADER,3,GENERAL EXPENDITURES,SUPPLIES AND MATERIALS,DETAIL,2021-07-08,AP,1438933,MIN JAMES B.,2021-07-06,2021-07-06,OFFICE SUPPLIES (OUTSIDE),76.24,2021
,2021 OFFICE OF THE MINORITY LEADER,3,GENERAL EXPENDITURES,SUPPLIES AND MATERIALS,DETAIL,2021-07-09,AP,1439302,CITI PCARD-CHICK-FIL-A #04346,2021-06-10,2021-06-10,FOOD & BEVERAGE,437.25,2021
,2021 OFFICE OF THE MINORITY LEADER,3,GENERAL EXPENDITURES,SUPPLIES AND MATERIALS,DETAIL,2021-07-09,AP,1439302,CITI PCARD-CHICK-FIL-A #04346,2021-06-14,2021-06-14,FOOD & BEVERAGE,905.52,2021
,2021 OFFICE OF THE MINORITY LEADER,3,GENERAL EXPENDITURES,SUPPLIES AND MATERIALS,DETAIL,2021-07-09,AP,1439302,CITI PCARD-CHICK-FIL-A #04346,2021-06-24,2021-06-24,FOOD & BEVERAGE,372.45,2021
,2021 OFFICE OF THE MINORITY LEADER,3,GENERAL EXPENDITURES,SUPPLIES AND MATERIALS,DETAIL,2021-07-09,AP,1439302,CITI PCARD-DISTRICT TACO 1003 ONLINE,2021-06-11,2021-06-11,FOOD & BEVERAGE,400,2021
,2021 OFFICE OF THE MINORITY LEADER,3,GENERAL EXPENDITURES,SUPPLIES AND MATERIALS,DETAIL,2021-07-09,AP,1439302,CITI PCARD-LEVELUPPOTBELLY061643,2021-06-10,2021-06-10,FOOD & BEVERAGE,231.3,2021
,2021 OFFICE OF THE MINORITY LEADER,3,GENERAL EXPENDITURES,SUPPLIES AND MATERIALS,DETAIL,2021-07-09,AP,1439302,CITI PCARD-LEVELUPPOTBELLY493685,2021-06-09,2021-06-09,FOOD & BEVERAGE,231.3,2021
,2021 OFFICE OF THE MINORITY LEADER,3,GENERAL EXPENDITURES,SUPPLIES AND MATERIALS,DETAIL,2021-07-09,AP,1439302,CITI PCARD-NANDO S PERI PERI THE YAR,2021-06-03,2021-06-03,FOOD & BEVERAGE,272.58,2021
,2021 OFFICE OF THE MINORITY LEADER,3,GENERAL EXPENDITURES,SUPPLIES AND MATERIALS,DETAIL,2021-07-09,AP,1439302,CITI PCARD-Roti WCD Foggy,2021-06-15,2021-06-15,FOOD & BEVERAGE,499.05,2021
,2021 OFFICE OF THE MINORITY LEADER,3,GENERAL EXPENDITURES,SUPPLIES AND MATERIALS,DETAIL,2021-07-09,AP,1439302,CITI PCARD-SQ  BULLFROG BAGELS,2021-06-09,2021-06-09,FOOD & BEVERAGE,45,2021
,2021 OFFICE OF THE MINORITY LEADER,3,GENERAL EXPENDITURES,SUPPLIES AND MATERIALS,DETAIL,2021-07-09,AP,1439302,CITI PCARD-SQ  SUNDEVICH,2021-06-24,2021-06-24,FOOD & BEVERAGE,331.5,2021
,2021 OFFICE OF THE MINORITY LEADER,3,GENERAL EXPENDITURES,SUPPLIES AND MATERIALS,DETAIL,2021-07-09,AP,1439302,CITI PCARD-USPS PO 1050091422,2021-05-28,2021-05-28,OFFICE SUPPLIES (OUTSIDE),33,2021
,2021 OFFICE OF THE MINORITY LEADER,3,GENERAL EXPENDITURES,SUPPLIES AND MATERIALS,DETAIL,2021-07-13,AP,1439730,MIN JAMES B.,2021-07-06,2021-07-06,FOOD & BEVERAGE,383.04,2021
,2021 OFFICE OF THE MINORITY LEADER,3,GENERAL EXPENDITURES,SUPPLIES AND MATERIALS,DETAIL,2021-07-19,AP,1439687,CITI PCARD-AMAZON.COM 214L38111 AMZN,2021-06-15,2021-06-15,PUBLICATIONS/REFERENCE MAT'L,34.9,2021
,2021 OFFICE OF THE MINORITY LEADER,3,GENERAL EXPENDITURES,SUPPLIES AND MATERIALS,DETAIL,2021-07-19,AP,1439687,CITI PCARD-AMZN MKTP US 2X9V42YA0 AM,2021-06-15,2021-06-15,OFFICE SUPPLIES (OUTSIDE),34.99,2021
,2021 OFFICE OF THE MINORITY LEADER,3,GENERAL EXPENDITURES,SUPPLIES AND MATERIALS,DETAIL,2021-07-19,AP,1439687,CITI PCARD-Amazon.com 212ZQ1C80,2021-06-15,2021-06-15,WATER,21.04,2021
,2021 OFFICE OF THE MINORITY LEADER,3,GENERAL EXPENDITURES,SUPPLIES AND MATERIALS,DETAIL,2021-07-19,AP,1439687,CITI PCARD-COSTCO WHSE #0233,2021-06-11,2021-06-11,FOOD & BEVERAGE,249.58,2021
,2021 OFFICE OF THE MINORITY LEADER,3,GENERAL EXPENDITURES,SUPPLIES AND MATERIALS,DETAIL,2021-07-19,AP,1439687,CITI PCARD-D J WALL-ST-JOURNAL,2021-06-21,2021-07-19,PUBLICATIONS/REFERENCE MAT'L,52.99,2021
,2021 OFFICE OF THE MINORITY LEADER,3,GENERAL EXPENDITURES,SUPPLIES AND MATERIALS,DETAIL,2021-07-19,AP,1439687,CITI PCARD-ECAMM NETWORK LLC,2021-06-15,2022-06-15,SOFTWARE  LESS THAN  $500,192,2021
,2021 OFFICE OF THE MINORITY LEADER,3,GENERAL EXPENDITURES,SUPPLIES AND MATERIALS,DETAIL,2021-07-19,AP,1439687,CITI PCARD-FIRSTCHOICEAMERICANCOFF,2021-05-20,2021-05-20,FOOD & BEVERAGE,493.12,2021
,2021 OFFICE OF THE MINORITY LEADER,3,GENERAL EXPENDITURES,SUPPLIES AND MATERIALS,DETAIL,2021-07-19,AP,1439687,CITI PCARD-FTP FINANCIAL TIMES,2021-05-29,2021-06-29,PUBLICATIONS/REFERENCE MAT'L,59.5,2021
,2021 OFFICE OF THE MINORITY LEADER,3,GENERAL EXPENDITURES,SUPPLIES AND MATERIALS,DETAIL,2021-07-19,AP,1439687,CITI PCARD-LA TIMES SUBSCRIPTION,2021-05-18,2021-06-15,PUBLICATIONS/REFERENCE MAT'L,27.72,2021
,2021 OFFICE OF THE MINORITY LEADER,3,GENERAL EXPENDITURES,SUPPLIES AND MATERIALS,DETAIL,2021-07-19,AP,1439687,CITI PCARD-LA TIMES SUBSCRIPTION,2021-06-15,2021-07-13,PUBLICATIONS/REFERENCE MAT'L,27.72,2021
,2021 OFFICE OF THE MINORITY LEADER,3,GENERAL EXPENDITURES,SUPPLIES AND MATERIALS,DETAIL,2021-07-19,AP,1439687,CITI PCARD-NYTimes NYTimes,2021-06-18,2021-07-16,PUBLICATIONS/REFERENCE MAT'L,18.02,2021
,2021 OFFICE OF THE MINORITY LEADER,3,GENERAL EXPENDITURES,SUPPLIES AND MATERIALS,DETAIL,2021-07-19,AP,1439687,CITI PCARD-RESTREAM INC.,2021-06-15,2022-06-15,SOFTWARE  LESS THAN  $500,490,2021
,2021 OFFICE OF THE MINORITY LEADER,3,GENERAL EXPENDITURES,SUPPLIES AND MATERIALS,DETAIL,2021-07-19,AP,1439687,CITI PCARD-ZOOM.US 888-799-9666,2021-04-21,2022-03-22,SOFTWARE  LESS THAN  $500,-137.99,2021
,2021 OFFICE OF THE MINORITY LEADER,3,GENERAL EXPENDITURES,SUPPLIES AND MATERIALS,DETAIL,2021-07-19,AP,1439687,CITI PCARD-ZOOM.US 888-799-9666,2021-06-23,2021-07-23,SOFTWARE  LESS THAN  $500,40,2021
,2021 OFFICE OF THE MINORITY LEADER,3,GENERAL EXPENDITURES,SUPPLIES AND MATERIALS,DETAIL,2021-07-31,GL,RMS0108347, ,2021-07-01,2021-07-31,OFFICE SUPPLY (TRANSFER),124.12,2021
,2021 OFFICE OF THE MINORITY LEADER,3,GENERAL EXPENDITURES,SUPPLIES AND MATERIALS,DETAIL,2021-08-17,AP,1451983,CITI PCARD-AMAZON.COM 2E7LT01P2 AMZN,2021-07-21,2021-07-21,FOOD & BEVERAGE,26.84,2021
,2021 OFFICE OF THE MINORITY LEADER,3,GENERAL EXPENDITURES,SUPPLIES AND MATERIALS,DETAIL,2021-08-17,AP,1451983,CITI PCARD-AMZN Mktp US 2158O0IG2,2021-06-29,2021-06-29,OFFICE SUPPLIES (OUTSIDE),289,2021
,2021 OFFICE OF THE MINORITY LEADER,3,GENERAL EXPENDITURES,SUPPLIES AND MATERIALS,DETAIL,2021-08-17,AP,1451983,CITI PCARD-D J WALL-ST-JOURNAL,2021-07-20,2021-08-20,PUBLICATIONS/REFERENCE MAT'L,52.99,2021
,2021 OFFICE OF THE MINORITY LEADER,3,GENERAL EXPENDITURES,SUPPLIES AND MATERIALS,DETAIL,2021-08-17,AP,1451983,CITI PCARD-FIRSTCHOICEAMERICANCOFF,2021-07-07,2021-07-07,FOOD & BEVERAGE,313.94,2021
,2021 OFFICE OF THE MINORITY LEADER,3,GENERAL EXPENDITURES,SUPPLIES AND MATERIALS,DETAIL,2021-08-17,AP,1451983,CITI PCARD-FTP FINANCIAL TIMES,2021-06-29,2021-07-28,PUBLICATIONS/REFERENCE MAT'L,59.5,2021
,2021 OFFICE OF THE MINORITY LEADER,3,GENERAL EXPENDITURES,SUPPLIES AND MATERIALS,DETAIL,2021-08-17,AP,1451983,CITI PCARD-NYTimes NYTimes,2021-07-16,2021-08-13,PUBLICATIONS/REFERENCE MAT'L,18.02,2021
,2021 OFFICE OF THE MINORITY LEADER,3,GENERAL EXPENDITURES,SUPPLIES AND MATERIALS,DETAIL,2021-08-17,AP,1451983,CITI PCARD-WALMART.COM AW,2021-06-29,2021-06-29,OFFICE SUPPLIES (OUTSIDE),413.4,2021
,2021 OFFICE OF THE MINORITY LEADER,3,GENERAL EXPENDITURES,SUPPLIES AND MATERIALS,DETAIL,2021-08-17,AP,1451983,CITI PCARD-ZOOM.US 888-799-9666,2021-07-23,2021-08-22,SOFTWARE  LESS THAN  $500,40,2021
,2021 OFFICE OF THE MINORITY LEADER,3,GENERAL EXPENDITURES,SUPPLIES AND MATERIALS,DETAIL,2021-08-23,AP,1451517,CITI PCARD-CARMINE'S,2021-06-30,2021-06-30,FOOD & BEVERAGE,767.88,2021
,2021 OFFICE OF THE MINORITY LEADER,3,GENERAL EXPENDITURES,SUPPLIES AND MATERIALS,DETAIL,2021-08-23,AP,1451517,CITI PCARD-CHICK-FIL-A #04346,2021-06-28,2021-06-28,FOOD & BEVERAGE,823.43,2021
,2021 OFFICE OF THE MINORITY LEADER,3,GENERAL EXPENDITURES,SUPPLIES AND MATERIALS,DETAIL,2021-08-23,AP,1451517,CITI PCARD-CHICK-FIL-A #04346,2021-07-09,2021-07-09,FOOD & BEVERAGE,279.73,2021
,2021 OFFICE OF THE MINORITY LEADER,3,GENERAL EXPENDITURES,SUPPLIES AND MATERIALS,DETAIL,2021-08-23,AP,1451517,CITI PCARD-CHICK-FIL-A #04346,2021-07-19,2021-07-19,FOOD & BEVERAGE,765.81,2021
,2021 OFFICE OF THE MINORITY LEADER,3,GENERAL EXPENDITURES,SUPPLIES AND MATERIALS,DETAIL,2021-08-23,AP,1451517,CITI PCARD-CHICK-FIL-A #04346,2021-07-26,2021-07-26,FOOD & BEVERAGE,365.72,2021
,2021 OFFICE OF THE MINORITY LEADER,3,GENERAL EXPENDITURES,SUPPLIES AND MATERIALS,DETAIL,2021-08-23,AP,1451517,CITI PCARD-DISTRICT TACO 1003 ONLINE,2021-06-29,2021-06-29,FOOD & BEVERAGE,458.25,2021
,2021 OFFICE OF THE MINORITY LEADER,3,GENERAL EXPENDITURES,SUPPLIES AND MATERIALS,DETAIL,2021-08-23,AP,1451517,CITI PCARD-DISTRICT TACO 1003 ONLINE,2021-07-20,2021-07-20,FOOD & BEVERAGE,458.91,2021
,2021 OFFICE OF THE MINORITY LEADER,3,GENERAL EXPENDITURES,SUPPLIES AND MATERIALS,DETAIL,2021-08-23,AP,1451517,CITI PCARD-POTBELLY # 140,2021-07-16,2021-07-16,FOOD & BEVERAGE,247.48,2021
,2021 OFFICE OF THE MINORITY LEADER,3,GENERAL EXPENDITURES,SUPPLIES AND MATERIALS,DETAIL,2021-08-23,AP,1451517,CITI PCARD-READYREFRESH BY NESTLE,2021-04-27,2021-06-26,WATER,99.06,2021
,2021 OFFICE OF THE MINORITY LEADER,3,GENERAL EXPENDITURES,SUPPLIES AND MATERIALS,DETAIL,2021-08-23,AP,1451517,CITI PCARD-SQ  BULLFROG BAGELS,2021-07-22,2021-07-22,FOOD & BEVERAGE,164,2021
,2021 OFFICE OF THE MINORITY LEADER,3,GENERAL EXPENDITURES,SUPPLIES AND MATERIALS,DETAIL,2021-08-23,AP,1451517,CITI PCARD-SQ  SUNDEVICH,2021-07-22,2021-07-22,FOOD & BEVERAGE,302.4,2021
,2021 OFFICE OF THE MINORITY LEADER,3,GENERAL EXPENDITURES,SUPPLIES AND MATERIALS,DETAIL,2021-08-23,AP,1451517,CITI PCARD-ZOES KITCHEN,2021-07-27,2021-07-27,FOOD & BEVERAGE,452.17,2021
,2021 OFFICE OF THE MINORITY LEADER,3,GENERAL EXPENDITURES,SUPPLIES AND MATERIALS,DETAIL,2021-08-24,AP,1458234,AJ PRESS LLC,2021-05-01,2021-12-31,PUBLICATIONS/REFERENCE MAT'L,4200,2021
,2021 OFFICE OF THE MINORITY LEADER,3,GENERAL EXPENDITURES,SUPPLIES AND MATERIALS,DETAIL,2021-08-31,GL,RMS0109142, ,2021-08-01,2021-08-31,OFFICE SUPPLY (TRANSFER),65.69,2021
,2021 OFFICE OF THE MINORITY LEADER,3,GENERAL EXPENDITURES,SUPPLIES AND MATERIALS,DETAIL,2021-09-02,AP,1461683,MIN JAMES B.,2021-08-30,2021-08-30,WATER,17.19,2021
,2021 OFFICE OF THE MINORITY LEADER,3,GENERAL EXPENDITURES,SUPPLIES AND MATERIALS,DETAIL,2021-09-02,AP,1461683,MIN JAMES B.,2021-08-26,2021-08-26,FOOD & BEVERAGE,606.97,2021
,2021 OFFICE OF THE MINORITY LEADER,3,GENERAL EXPENDITURES,SUPPLIES AND MATERIALS,DETAIL,2021-09-08,AP,1462519,MIN JAMES B.,2021-09-06,2021-09-06,OFFICE SUPPLIES (OUTSIDE),132.47,2021
,2021 OFFICE OF THE MINORITY LEADER,3,GENERAL EXPENDITURES,SUPPLIES AND MATERIALS,DETAIL,2021-09-09,AP,1463022,CITI PCARD-CARMINE'S,2021-07-28,2021-07-28,FOOD & BEVERAGE,614.87,2021
,2021 OFFICE OF THE MINORITY LEADER,3,GENERAL EXPENDITURES,SUPPLIES AND MATERIALS,DETAIL,2021-09-09,AP,1463022,CITI PCARD-CHICK-FIL-A #04346,2021-08-23,2021-08-23,FOOD & BEVERAGE,314.81,2021
,2021 OFFICE OF THE MINORITY LEADER,3,GENERAL EXPENDITURES,SUPPLIES AND MATERIALS,DETAIL,2021-09-09,AP,1463022,CITI PCARD-DISTRICT TACO 1003 ONLINE,2021-08-13,2021-08-13,FOOD & BEVERAGE,277.69,2021
,2021 OFFICE OF THE MINORITY LEADER,3,GENERAL EXPENDITURES,SUPPLIES AND MATERIALS,DETAIL,2021-09-09,AP,1463022,CITI PCARD-IWP NEWSLETTERS,2021-03-01,2022-02-28,PUBLICATIONS/REFERENCE MAT'L,652.5,2021
,2021 OFFICE OF THE MINORITY LEADER,3,GENERAL EXPENDITURES,SUPPLIES AND MATERIALS,DETAIL,2021-09-09,AP,1463022,CITI PCARD-MARRIOTT COLONNADE,2021-08-04,2021-08-04,FOOD & BEVERAGE,2566.35,2021
,2021 OFFICE OF THE MINORITY LEADER,3,GENERAL EXPENDITURES,SUPPLIES AND MATERIALS,DETAIL,2021-09-09,AP,1463022,CITI PCARD-PADDLE.NET  ROGUEAMOEB,2021-08-23,2021-08-23,SOFTWARE  LESS THAN  $500,104.94,2021
,2021 OFFICE OF THE MINORITY LEADER,3,GENERAL EXPENDITURES,SUPPLIES AND MATERIALS,DETAIL,2021-09-09,AP,1463022,CITI PCARD-PF CHANGS #9988 OLO,2021-07-30,2021-07-30,FOOD & BEVERAGE,1350,2021
,2021 OFFICE OF THE MINORITY LEADER,3,GENERAL EXPENDITURES,SUPPLIES AND MATERIALS,DETAIL,2021-09-09,AP,1463022,CITI PCARD-POTBELLY # 140,2021-08-06,2021-08-06,FOOD & BEVERAGE,247.48,2021
,2021 OFFICE OF THE MINORITY LEADER,3,GENERAL EXPENDITURES,SUPPLIES AND MATERIALS,DETAIL,2021-09-09,AP,1463022,CITI PCARD-READYREFRESH BY NESTLE,2021-06-27,2021-07-26,WATER,107.36,2021
,2021 OFFICE OF THE MINORITY LEADER,3,GENERAL EXPENDITURES,SUPPLIES AND MATERIALS,DETAIL,2021-09-09,AP,1463022,CITI PCARD-WE THE PIZZA,2021-07-27,2021-07-27,FOOD & BEVERAGE,278.3,2021
,2021 OFFICE OF THE MINORITY LEADER,3,GENERAL EXPENDITURES,SUPPLIES AND MATERIALS,DETAIL,2021-09-21,AP,1464780,CITI PCARD-AMAZON.COM 2D4WA1J01 AMZN,2021-08-09,2021-08-09,WATER,23.96,2021
,2021 OFFICE OF THE MINORITY LEADER,3,GENERAL EXPENDITURES,SUPPLIES AND MATERIALS,DETAIL,2021-09-21,AP,1464780,CITI PCARD-D J WALL-ST-JOURNAL,2021-08-20,2021-09-19,PUBLICATIONS/REFERENCE MAT'L,52.99,2021
,2021 OFFICE OF THE MINORITY LEADER,3,GENERAL EXPENDITURES,SUPPLIES AND MATERIALS,DETAIL,2021-09-21,AP,1464780,CITI PCARD-FIRSTCHOICEAMERICANCOFF,2021-08-04,2021-08-04,FOOD & BEVERAGE,980.6,2021
,2021 OFFICE OF THE MINORITY LEADER,3,GENERAL EXPENDITURES,SUPPLIES AND MATERIALS,DETAIL,2021-09-21,AP,1464780,CITI PCARD-FTP FINANCIAL TIMES,2021-07-29,2021-08-28,PUBLICATIONS/REFERENCE MAT'L,59.5,2021
,2021 OFFICE OF THE MINORITY LEADER,3,GENERAL EXPENDITURES,SUPPLIES AND MATERIALS,DETAIL,2021-09-21,AP,1464780,CITI PCARD-LAS VEGAS CUBAN CUISINE 1,2021-08-15,2021-08-15,FOOD & BEVERAGE,1420.17,2021
,2021 OFFICE OF THE MINORITY LEADER,3,GENERAL EXPENDITURES,SUPPLIES AND MATERIALS,DETAIL,2021-09-21,AP,1464780,CITI PCARD-NYTimes NYTimes,2021-08-13,2021-09-10,PUBLICATIONS/REFERENCE MAT'L,18.02,2021
,2021 OFFICE OF THE MINORITY LEADER,3,GENERAL EXPENDITURES,SUPPLIES AND MATERIALS,DETAIL,2021-09-21,AP,1464780,CITI PCARD-WALMART.COM AW,2021-07-21,2021-07-21,OFFICE SUPPLIES (OUTSIDE),-413.4,2021
,2021 OFFICE OF THE MINORITY LEADER,3,GENERAL EXPENDITURES,SUPPLIES AND MATERIALS,DETAIL,2021-09-21,AP,1464780,CITI PCARD-ZOOM.US 888-799-9666,2021-06-04,2021-07-03,SOFTWARE  LESS THAN  $500,15.74,2021
,2021 OFFICE OF THE MINORITY LEADER,3,GENERAL EXPENDITURES,SUPPLIES AND MATERIALS,DETAIL,2021-09-21,AP,1464780,CITI PCARD-ZOOM.US 888-799-9666,2021-07-04,2021-08-03,SOFTWARE  LESS THAN  $500,15.74,2021
,2021 OFFICE OF THE MINORITY LEADER,3,GENERAL EXPENDITURES,SUPPLIES AND MATERIALS,DETAIL,2021-09-21,AP,1464780,CITI PCARD-ZOOM.US 888-799-9666,2021-08-04,2021-09-03,SOFTWARE  LESS THAN  $500,15.74,2021
,2021 OFFICE OF THE MINORITY LEADER,3,GENERAL EXPENDITURES,SUPPLIES AND MATERIALS,DETAIL,2021-09-21,AP,1464780,CITI PCARD-ZOOM.US 888-799-9666,2021-08-23,2021-09-22,SOFTWARE  LESS THAN  $500,40,2021
,2021 OFFICE OF THE MINORITY LEADER,3,GENERAL EXPENDITURES,SUPPLIES AND MATERIALS,DETAIL,2021-09-22,AP,1469504,MIN JAMES B.,2021-09-15,2021-09-15,FOOD & BEVERAGE,38.43,2021
,2021 OFFICE OF THE MINORITY LEADER,3,GENERAL EXPENDITURES,SUPPLIES AND MATERIALS,DETAIL,2021-09-22,AP,1469584,HOCHSCHILD KEENAN N.,2021-09-03,2021-09-03,PUBLICATIONS/REFERENCE MAT'L,36.75,2021
,2021 OFFICE OF THE MINORITY LEADER,3,GENERAL EXPENDITURES,SUPPLIES AND MATERIALS,DETAIL,2021-09-24,AP,1469912,SMITH CALEB,2021-09-16,2021-09-16,SOFTWARE  LESS THAN  $500,49,2021
,2021 OFFICE OF THE MINORITY LEADER,3,GENERAL EXPENDITURES,SUPPLIES AND MATERIALS,DETAIL,2021-09-24,AP,1470141,MIN JAMES B.,2021-09-21,2021-09-21,FOOD & BEVERAGE,429.49,2021
,2021 OFFICE OF THE MINORITY LEADER,3,GENERAL EXPENDITURES,SUPPLIES AND MATERIALS,DETAIL,2021-09-29,AP,1471073,HOCHSCHILD KEENAN N.,2021-09-23,2021-09-23,SOFTWARE  LESS THAN  $500,49,2021
,2021 OFFICE OF THE MINORITY LEADER,3,GENERAL EXPENDITURES,SUPPLIES AND MATERIALS,DETAIL,2021-09-29,AP,1472251,TVEYES INC,2021-01-01,2022-12-31,PUBLICATIONS/REFERENCE MAT'L,-2400,2021
,2021 OFFICE OF THE MINORITY LEADER,3,GENERAL EXPENDITURES,SUPPLIES AND MATERIALS,DETAIL,2021-09-30,GL,RMS0110034, ,2021-09-01,2021-09-30,OFFICE SUPPLY (TRANSFER),456.78,2021
,2021 OFFICE OF THE MINORITY LEADER,3,GENERAL EXPENDITURES,SUPPLIES AND MATERIALS,SUBTOTAL,   ,   ,   ,   ,   ,   ,SUPPLIES AND MATERIALS TOTALS:,24769.6,2021
,2021 OFFICE OF THE MINORITY LEADER,3,GENERAL EXPENDITURES,EQUIPMENT,DETAIL,2021-07-08,AP,1438946,GULF PARTYLINE CORPORATION,2021-06-01,2021-06-30,COMPUTER SOFTW PURCH  LESS THAN $10 000,6000,2021
,2021 OFFICE OF THE MINORITY LEADER,3,GENERAL EXPENDITURES,EQUIPMENT,DETAIL,2021-07-30,GL,MNT0108289, ,2021-07-01,2021-07-31,MAINTENANCE / REPAIRS,124,2021
,2021 OFFICE OF THE MINORITY LEADER,3,GENERAL EXPENDITURES,EQUIPMENT,DETAIL,2021-08-07,AP,1450703,GULF PARTYLINE CORPORATION,2021-07-01,2021-07-31,COMPUTER SOFTW PURCH  LESS THAN $10 000,6000,2021
,2021 OFFICE OF THE MINORITY LEADER,3,GENERAL EXPENDITURES,EQUIPMENT,DETAIL,2021-08-17,AP,1451983,CITI PCARD-B&H PHOTO 800-606-6969,2021-06-29,2021-06-29,OFFICE EQUIP PURCH LESS THAN $25 000,1088.01,2021
,2021 OFFICE OF THE MINORITY LEADER,3,GENERAL EXPENDITURES,EQUIPMENT,DETAIL,2021-08-17,AP,1451983,CITI PCARD-B&H PHOTO 800-606-6969,2021-07-08,2021-07-08,OFFICE EQUIP PURCH LESS THAN $25 000,4280.17,2021
,2021 OFFICE OF THE MINORITY LEADER,3,GENERAL EXPENDITURES,EQUIPMENT,DETAIL,2021-08-23,AP,1451517,CITI PCARD-SPROUT SOCIAL INC,2021-07-01,2022-07-01,COMPUTER SOFTW PURCH  LESS THAN $10 000,1516.22,2021
,2021 OFFICE OF THE MINORITY LEADER,3,GENERAL EXPENDITURES,EQUIPMENT,DETAIL,2021-08-31,GL,MNT0109087, ,2021-08-01,2021-08-31,MAINTENANCE / REPAIRS,124,2021
,2021 OFFICE OF THE MINORITY LEADER,3,GENERAL EXPENDITURES,EQUIPMENT,DETAIL,2021-09-07,AP,1462088,GULF PARTYLINE CORPORATION,2021-08-01,2021-08-31,COMPUTER SOFTW PURCH  LESS THAN $10 000,6000,2021
,2021 OFFICE OF THE MINORITY LEADER,3,GENERAL EXPENDITURES,EQUIPMENT,DETAIL,2021-09-30,GL,MNT0109918, ,2021-09-01,2021-09-30,MAINTENANCE / REPAIRS,124,2021
,2021 OFFICE OF THE MINORITY LEADER,3,GENERAL EXPENDITURES,EQUIPMENT,DETAIL,2021-09-30,GL,RMS0110034, ,2021-09-01,2021-09-30,COMPUTER HARDW PURCH  LESS THAN $25 000,1486.3,2021
,2021 OFFICE OF THE MINORITY LEADER,3,GENERAL EXPENDITURES,EQUIPMENT,SUBTOTAL,   ,   ,   ,   ,   ,   ,EQUIPMENT TOTALS:,26742.7,2021
,2021 OFFICE OF THE MINORITY LEADER,3,GENERAL EXPENDITURES,EQUIPMENT,SUBTOTAL,   ,   ,   ,   ,   ,   ,GENERAL EXPENDITURES TOTALS:,1310659.63,2021
,2021 OFFICE OF THE MINORITY LEADER,3,REPUBLICAN POLICY COMMITTEE,PERSONNEL COMPENSATION,DETAIL,   ,   ,   ,WALL KELSEY V,2021-07-01,2021-09-30,SHARED EMPLOYEE,18750,2021
,2021 OFFICE OF THE MINORITY LEADER,3,REPUBLICAN POLICY COMMITTEE,PERSONNEL COMPENSATION,SUBTOTAL,   ,   ,   ,   ,   ,   ,PERSONNEL COMPENSATION TOTALS:,18750,2021
,2021 OFFICE OF THE MINORITY LEADER,3,REPUBLICAN POLICY COMMITTEE,PERSONNEL COMPENSATION,SUBTOTAL,   ,   ,   ,   ,   ,   ,REPUBLICAN POLICY COMMITTEE TOTALS:,18750,2021
,2021 OFFICE OF THE MINORITY LEADER,3,REPUBLICAN POLICY COMMITTEE,PERSONNEL COMPENSATION,GRAND TOTAL FOR ORGANIZATION,   ,   ,   ,   ,   ,   ,OFFICE TOTALS: ,1329409.63,2021
,2020 OFFICE OF THE MINORITY LEADER,3,GENERAL EXPENDITURES,SUPPLIES AND MATERIALS,DETAIL,2021-08-05,AP,1450753,B&H PHOTO-VIDEO,2021-05-07,2021-05-07,OFFICE SUPPLIES (OUTSIDE),742,2021
,2020 OFFICE OF THE MINORITY LEADER,3,GENERAL EXPENDITURES,SUPPLIES AND MATERIALS,DETAIL,2021-09-29,AP,1472251,TVEYES INC,2021-01-01,2022-12-31,PUBLICATIONS/REFERENCE MAT'L,2400,2021
,2020 OFFICE OF THE MINORITY LEADER,3,GENERAL EXPENDITURES,SUPPLIES AND MATERIALS,SUBTOTAL,   ,   ,   ,   ,   ,   ,SUPPLIES AND MATERIALS TOTALS:,3142,2021
,2020 OFFICE OF THE MINORITY LEADER,3,GENERAL EXPENDITURES,EQUIPMENT,DETAIL,2021-08-05,AP,1450753,B&H PHOTO-VIDEO,2021-05-07,2021-05-07,COMPUTER HARDW PURCH  LESS THAN $25 000,7738.29,2021
,2020 OFFICE OF THE MINORITY LEADER,3,GENERAL EXPENDITURES,EQUIPMENT,SUBTOTAL,   ,   ,   ,   ,   ,   ,EQUIPMENT TOTALS:,7738.29,2021
,2020 OFFICE OF THE MINORITY LEADER,3,GENERAL EXPENDITURES,EQUIPMENT,SUBTOTAL,   ,   ,   ,   ,   ,   ,GENERAL EXPENDITURES TOTALS:,10880.29,2021
,2020 OFFICE OF THE MINORITY LEADER,3,GENERAL EXPENDITURES,EQUIPMENT,GRAND TOTAL FOR ORGANIZATION,   ,   ,   ,   ,   ,   ,OFFICE TOTALS: ,10880.29,2021
,2021 OFFICE OF THE MINORITY LEADER,3,INTERN ALLOWANCES,PERSONNEL COMPENSATION,DETAIL,   ,   ,   ,BARNES JOSHUA G.,2021-07-01,2021-07-25,MIN LEADER PAID INTERN - HOUSE,1250,2021
,2021 OFFICE OF THE MINORITY LEADER,3,INTERN ALLOWANCES,PERSONNEL COMPENSATION,DETAIL,   ,   ,   ,BONHAUS CAROLINE M.,2021-07-01,2021-07-15,MIN LEADER PAID INTERN - HOUSE,500,2021
,2021 OFFICE OF THE MINORITY LEADER,3,INTERN ALLOWANCES,PERSONNEL COMPENSATION,DETAIL,   ,   ,   ,CHANCE OLIVIA R.,2021-07-01,2021-07-15,MIN LEADER PAID INTERN - HOUSE,750,2021
,2021 OFFICE OF THE MINORITY LEADER,3,INTERN ALLOWANCES,PERSONNEL COMPENSATION,DETAIL,   ,   ,   ,DARROW BRITTANY R.,2021-07-01,2021-07-15,MIN LEADER PAID INTERN - HOUSE,500,2021
,2021 OFFICE OF THE MINORITY LEADER,3,INTERN ALLOWANCES,PERSONNEL COMPENSATION,DETAIL,   ,   ,   ,FRANCONI GINO T.,2021-07-01,2021-07-25,MIN LEADER PAID INTERN - HOUSE,1250,2021
,2021 OFFICE OF THE MINORITY LEADER,3,INTERN ALLOWANCES,PERSONNEL COMPENSATION,DETAIL,   ,   ,   ,HARRISON KYLIE G.,2021-07-01,2021-07-15,MIN LEADER PAID INTERN - HOUSE,750,2021
,2021 OFFICE OF THE MINORITY LEADER,3,INTERN ALLOWANCES,PERSONNEL COMPENSATION,DETAIL,   ,   ,   ,LACKEY JANIECE M.,2021-07-01,2021-07-25,MIN LEADER PAID INTERN - HOUSE,1250,2021
,2021 OFFICE OF THE MINORITY LEADER,3,INTERN ALLOWANCES,PERSONNEL COMPENSATION,DETAIL,   ,   ,   ,MESHAD MICHAEL W.,2021-07-01,2021-07-25,MIN LEADER PAID INTERN - HOUSE,833.33,2021
,2021 OFFICE OF THE MINORITY LEADER,3,INTERN ALLOWANCES,PERSONNEL COMPENSATION,DETAIL,   ,   ,   ,SAKOWSKI SAMUEL S.,2021-07-01,2021-07-15,MIN LEADER PAID INTERN - HOUSE,750,2021
,2021 OFFICE OF THE MINORITY LEADER,3,INTERN ALLOWANCES,PERSONNEL COMPENSATION,DETAIL,   ,   ,   ,SIGAL WILLIAM J.,2021-07-01,2021-07-29,MIN LEADER PAID INTERN - HOUSE,-1000,2021
,2021 OFFICE OF THE MINORITY LEADER,3,INTERN ALLOWANCES,PERSONNEL COMPENSATION,DETAIL,   ,   ,   ,TOBIAS DANIEL A.,2021-07-01,2021-07-15,MIN LEADER PAID INTERN - HOUSE,750,2021
,2021 OFFICE OF THE MINORITY LEADER,3,INTERN ALLOWANCES,PERSONNEL COMPENSATION,DETAIL,   ,   ,   ,TORKAMAN ARMEEN A.,2021-07-01,2021-07-15,MIN LEADER PAID INTERN - HOUSE,750,2021
,2021 OFFICE OF THE MINORITY LEADER,3,INTERN ALLOWANCES,PERSONNEL COMPENSATION,SUBTOTAL,   ,   ,   ,   ,   ,   ,PERSONNEL COMPENSATION TOTALS:,8333.33,2021
,2021 OFFICE OF THE MINORITY LEADER,3,INTERN ALLOWANCES,PERSONNEL COMPENSATION,SUBTOTAL,   ,   ,   ,   ,   ,   ,INTERN ALLOWANCES TOTALS:,8333.33,2021
,2021 OFFICE OF THE MINORITY LEADER,3,INTERN ALLOWANCES,PERSONNEL COMPENSATION,GRAND TOTAL FOR ORGANIZATION,   ,   ,   ,   ,   ,   ,OFFICE TOTALS: ,8333.33,2021
,2021 OFFICE OF THE MAJORITY WHIP,3,GENERAL EXPENDITURES,PERSONNEL COMPENSATION,DETAIL,   ,   ,   ,BUTLER MORGAN E,2021-06-01,2021-06-30,DIGITAL DIRECTOR,-7333.33,2021
,2021 OFFICE OF THE MAJORITY WHIP,3,GENERAL EXPENDITURES,PERSONNEL COMPENSATION,DETAIL,   ,   ,   ,DERRICK HOPE E,2021-07-01,2021-09-30,COMMUNICATIONS DIRECTOR,39500.01,2021
,2021 OFFICE OF THE MAJORITY WHIP,3,GENERAL EXPENDITURES,PERSONNEL COMPENSATION,DETAIL,   ,   ,   ,ELLISON MATTHEW B.,2021-07-01,2021-07-31,DEPUTY POLICY DIRECTOR,9166.67,2021
,2021 OFFICE OF THE MAJORITY WHIP,3,GENERAL EXPENDITURES,PERSONNEL COMPENSATION,DETAIL,   ,   ,   ,ELLISON MATTHEW B.,2021-08-01,2021-09-30,POLICY DIRECTOR,20000,2021
,2021 OFFICE OF THE MAJORITY WHIP,3,GENERAL EXPENDITURES,PERSONNEL COMPENSATION,DETAIL,   ,   ,   ,FRIAS BRIANNA A.,2021-07-01,2021-09-30,DIGITAL DIRECTOR,18249.99,2021
,2021 OFFICE OF THE MAJORITY WHIP,3,GENERAL EXPENDITURES,PERSONNEL COMPENSATION,DETAIL,   ,   ,   ,GARRETT EMERALD P.,2021-07-01,2021-09-30,FLOOR ASSISTANT,12999.99,2021
,2021 OFFICE OF THE MAJORITY WHIP,3,GENERAL EXPENDITURES,PERSONNEL COMPENSATION,DETAIL,   ,   ,   ,JOHNSON JAHLEEL,2021-09-11,2021-09-30,PAID INTERN,638.89,2021
,2021 OFFICE OF THE MAJORITY WHIP,3,GENERAL EXPENDITURES,PERSONNEL COMPENSATION,DETAIL,   ,   ,   ,KAMANTA JONATHAN I.,2021-06-29,2021-08-13,PAID INTERN,1437.5,2021
,2021 OFFICE OF THE MAJORITY WHIP,3,GENERAL EXPENDITURES,PERSONNEL COMPENSATION,DETAIL,   ,   ,   ,KELLY SARAH,2021-07-01,2021-09-30,SENIOR ADVISOR,34250.01,2021
,2021 OFFICE OF THE MAJORITY WHIP,3,GENERAL EXPENDITURES,PERSONNEL COMPENSATION,DETAIL,   ,   ,   ,LINK CRAIG C,2021-07-01,2021-09-30,FLOOR DIRECTOR AND GENERAL COU,41791.66,2021
,2021 OFFICE OF THE MAJORITY WHIP,3,GENERAL EXPENDITURES,PERSONNEL COMPENSATION,DETAIL,   ,   ,   ,LYLES III WILLIE,2021-07-01,2021-09-30,SENIOR ADVISOR & COUNSEL,42000,2021
,2021 OFFICE OF THE MAJORITY WHIP,3,GENERAL EXPENDITURES,PERSONNEL COMPENSATION,DETAIL,   ,   ,   ,MASON TAMIKA K,2021-07-01,2021-09-30,DIRECTOR OF TECHNOLOGY FOR FLO,23750.01,2021
,2021 OFFICE OF THE MAJORITY WHIP,3,GENERAL EXPENDITURES,PERSONNEL COMPENSATION,DETAIL,   ,   ,   ,MICHALAK TIMOTHY J,2021-07-01,2021-09-30,LEGISLATIVE ASSISTANT,12500.01,2021
,2021 OFFICE OF THE MAJORITY WHIP,3,GENERAL EXPENDITURES,PERSONNEL COMPENSATION,DETAIL,   ,   ,   ,MONEIB AHMED,2021-07-01,2021-07-25,STAFF ASSISTANT,2427.78,2021
,2021 OFFICE OF THE MAJORITY WHIP,3,GENERAL EXPENDITURES,PERSONNEL COMPENSATION,DETAIL,   ,   ,   ,MOORE DYLAN B.,2021-09-06,2021-09-30,LEGISLATIVE ASSISTANT,3333.33,2021
,2021 OFFICE OF THE MAJORITY WHIP,3,GENERAL EXPENDITURES,PERSONNEL COMPENSATION,DETAIL,   ,   ,   ,O'DONNELL FREDERICK J.,2021-07-01,2021-09-30,STAFF ASSISTANT,8750.01,2021
,2021 OFFICE OF THE MAJORITY WHIP,3,GENERAL EXPENDITURES,PERSONNEL COMPENSATION,DETAIL,   ,   ,   ,QUINTERO OSORIO MARIA A.,2021-07-01,2021-09-30,STAFF ASSISTANT,8750.01,2021
,2021 OFFICE OF THE MAJORITY WHIP,3,GENERAL EXPENDITURES,PERSONNEL COMPENSATION,DETAIL,   ,   ,   ,SAUNDERS NIA G.,2021-07-01,2021-09-30,PRESS ASSISTANT,8750.01,2021
,2021 OFFICE OF THE MAJORITY WHIP,3,GENERAL EXPENDITURES,PERSONNEL COMPENSATION,DETAIL,   ,   ,   ,STALLINGS BERNADINE A,2021-07-01,2021-09-30,DEPUTY COMM DIRECTOR,28749.99,2021
,2021 OFFICE OF THE MAJORITY WHIP,3,GENERAL EXPENDITURES,PERSONNEL COMPENSATION,DETAIL,   ,   ,   ,UBEZONU NNEMDILIM I,2021-07-01,2021-09-30,DEPUTY FLOOR DIRECTOR,20499.99,2021
,2021 OFFICE OF THE MAJORITY WHIP,3,GENERAL EXPENDITURES,PERSONNEL COMPENSATION,DETAIL,   ,   ,   ,WATKINS YELBERTON R.,2021-07-01,2021-09-30,CHIEF OF STAFF,42000,2021
,2021 OFFICE OF THE MAJORITY WHIP,3,GENERAL EXPENDITURES,PERSONNEL COMPENSATION,DETAIL,   ,   ,   ,WHITEHOUSE LIN,2021-07-01,2021-09-30,DIR OF MEMBER SVCS & COALITION,18750,2021
,2021 OFFICE OF THE MAJORITY WHIP,3,GENERAL EXPENDITURES,PERSONNEL COMPENSATION,DETAIL,   ,   ,   ,WILSON ASHLEIGH R.,2021-07-01,2021-09-30,LEGISLATIVE DIRECTOR,6249.99,2021
,2021 OFFICE OF THE MAJORITY WHIP,3,GENERAL EXPENDITURES,PERSONNEL COMPENSATION,DETAIL,   ,   ,   ,WMARIAM WINTTA M,2021-07-01,2021-07-20,POLICY DIRECTOR,9361.11,2021
,2021 OFFICE OF THE MAJORITY WHIP,3,GENERAL EXPENDITURES,PERSONNEL COMPENSATION,SUBTOTAL,   ,   ,   ,   ,   ,   ,PERSONNEL COMPENSATION TOTALS:,406573.63,2021
,2021 OFFICE OF THE MAJORITY WHIP,3,GENERAL EXPENDITURES,RENT  COMMUNICATION  UTILITIES,DETAIL,2021-07-22,GL,EMS0108073, ,2021-06-01,2021-06-30,DC TELECOM EQUIP (TRANSFER),76,2021
,2021 OFFICE OF THE MAJORITY WHIP,3,GENERAL EXPENDITURES,RENT  COMMUNICATION  UTILITIES,DETAIL,2021-07-22,GL,EMS0108073, ,2021-06-01,2021-06-30,DC TELECOM SERV (TRANSFER),293.5,2021
,2021 OFFICE OF THE MAJORITY WHIP,3,GENERAL EXPENDITURES,RENT  COMMUNICATION  UTILITIES,DETAIL,2021-07-22,GL,EMS0108073, ,2021-06-01,2021-06-30,DC TELECOM TOLLS (TRANSFER),1138.2,2021
,2021 OFFICE OF THE MAJORITY WHIP,3,GENERAL EXPENDITURES,RENT  COMMUNICATION  UTILITIES,DETAIL,2021-08-30,GL,EMS0109045, ,2021-07-01,2021-07-31,DC TELECOM EQUIP (TRANSFER),76,2021
,2021 OFFICE OF THE MAJORITY WHIP,3,GENERAL EXPENDITURES,RENT  COMMUNICATION  UTILITIES,DETAIL,2021-08-30,GL,EMS0109045, ,2021-07-01,2021-07-31,DC TELECOM SERV (TRANSFER),295.75,2021
,2021 OFFICE OF THE MAJORITY WHIP,3,GENERAL EXPENDITURES,RENT  COMMUNICATION  UTILITIES,DETAIL,2021-08-30,GL,EMS0109045, ,2021-07-01,2021-07-31,DC TELECOM TOLLS (TRANSFER),1236.1,2021
,2021 OFFICE OF THE MAJORITY WHIP,3,GENERAL EXPENDITURES,RENT  COMMUNICATION  UTILITIES,DETAIL,2021-09-27,GL,EMS0109741, ,2021-08-01,2021-08-31,DC TELECOM EQUIP (TRANSFER),76,2021
,2021 OFFICE OF THE MAJORITY WHIP,3,GENERAL EXPENDITURES,RENT  COMMUNICATION  UTILITIES,DETAIL,2021-09-27,GL,EMS0109741, ,2021-08-01,2021-08-31,DC TELECOM SERV (TRANSFER),295.75,2021
,2021 OFFICE OF THE MAJORITY WHIP,3,GENERAL EXPENDITURES,RENT  COMMUNICATION  UTILITIES,DETAIL,2021-09-27,GL,EMS0109741, ,2021-08-01,2021-08-31,DC TELECOM TOLLS (TRANSFER),1232.1,2021
,2021 OFFICE OF THE MAJORITY WHIP,3,GENERAL EXPENDITURES,RENT  COMMUNICATION  UTILITIES,SUBTOTAL,   ,   ,   ,   ,   ,   ,RENT  COMMUNICATION  UTILITIES TOTALS:,4719.4,2021
,2021 OFFICE OF THE MAJORITY WHIP,3,GENERAL EXPENDITURES,PRINTING AND REPRODUCTION,DETAIL,2021-07-26,GL,MED0108155, ,2021-06-30,2021-06-30,PHOTOGRAPHIC (TRANSFER),275,2021
,2021 OFFICE OF THE MAJORITY WHIP,3,GENERAL EXPENDITURES,PRINTING AND REPRODUCTION,DETAIL,2021-08-03,AP,1449684,ACCURATE WORD,2021-07-22,2021-07-22,PRINTING & REPRODUCTION,130,2021
,2021 OFFICE OF THE MAJORITY WHIP,3,GENERAL EXPENDITURES,PRINTING AND REPRODUCTION,DETAIL,2021-08-03,AP,1449685,ACCURATE WORD,2021-07-07,2021-07-07,PRINTING & REPRODUCTION,151,2021
,2021 OFFICE OF THE MAJORITY WHIP,3,GENERAL EXPENDITURES,PRINTING AND REPRODUCTION,DETAIL,2021-08-06,AP,1449882,CITI PCARD-CANVA  I03117-22411777,2021-07-15,2021-07-15,PRINTING & REPRODUCTION,31.8,2021
,2021 OFFICE OF THE MAJORITY WHIP,3,GENERAL EXPENDITURES,PRINTING AND REPRODUCTION,DETAIL,2021-08-26,GL,MED0108954, ,2021-07-30,2021-07-30,PHOTOGRAPHIC (TRANSFER),32.3,2021
,2021 OFFICE OF THE MAJORITY WHIP,3,GENERAL EXPENDITURES,PRINTING AND REPRODUCTION,DETAIL,2021-09-02,AP,1461225,ACCURATE WORD,2021-08-23,2021-08-23,PRINTING & REPRODUCTION,151,2021
,2021 OFFICE OF THE MAJORITY WHIP,3,GENERAL EXPENDITURES,PRINTING AND REPRODUCTION,DETAIL,2021-09-02,AP,1461258,ACCURATE WORD,2021-07-28,2021-07-28,PRINTING & REPRODUCTION,204,2021
,2021 OFFICE OF THE MAJORITY WHIP,3,GENERAL EXPENDITURES,PRINTING AND REPRODUCTION,SUBTOTAL,   ,   ,   ,   ,   ,   ,PRINTING AND REPRODUCTION TOTALS:,975.1,2021
,2021 OFFICE OF THE MAJORITY WHIP,3,GENERAL EXPENDITURES,OTHER SERVICES,DETAIL,2021-07-16,AP,1442842,FIRESIDE 21 LLC,2021-07-01,2021-07-31,TECHNOLOGY SERVICE CONTRACTS,1895,2021
,2021 OFFICE OF THE MAJORITY WHIP,3,GENERAL EXPENDITURES,OTHER SERVICES,DETAIL,2021-08-16,AP,1450198,VERACITY LLC,2021-06-01,2021-06-30,WEB DEV HST EMAIL & RLTD SERV,675,2021
,2021 OFFICE OF THE MAJORITY WHIP,3,GENERAL EXPENDITURES,OTHER SERVICES,DETAIL,2021-08-16,AP,1454305,FIRESIDE 21 LLC,2021-08-01,2021-08-31,TECHNOLOGY SERVICE CONTRACTS,1895,2021
,2021 OFFICE OF THE MAJORITY WHIP,3,GENERAL EXPENDITURES,OTHER SERVICES,DETAIL,2021-08-18,AP,1450197,1BRIGHTSTAR MEDIA,2021-08-02,2021-08-02,WEB DEV HST EMAIL & RLTD SERV,24225,2021
,2021 OFFICE OF THE MAJORITY WHIP,3,GENERAL EXPENDITURES,OTHER SERVICES,DETAIL,2021-09-07,AP,1461234,CITI PCARD-DROPBOX QDMS2JZDKRJL,2021-05-08,2022-05-08,TECHNOLOGY SERVICE CONTRACTS,210.94,2021
,2021 OFFICE OF THE MAJORITY WHIP,3,GENERAL EXPENDITURES,OTHER SERVICES,DETAIL,2021-09-10,AP,1461182,1BRIGHTSTAR MEDIA,2021-08-01,2021-08-31,WEB DEV HST EMAIL & RLTD SERV,499,2021
,2021 OFFICE OF THE MAJORITY WHIP,3,GENERAL EXPENDITURES,OTHER SERVICES,DETAIL,2021-09-16,AP,1466415,FIRESIDE 21 LLC,2021-09-01,2021-09-30,TECHNOLOGY SERVICE CONTRACTS,1895,2021
,2021 OFFICE OF THE MAJORITY WHIP,3,GENERAL EXPENDITURES,OTHER SERVICES,SUBTOTAL,   ,   ,   ,   ,   ,   ,OTHER SERVICES TOTALS:,31294.94,2021
,2021 OFFICE OF THE MAJORITY WHIP,3,GENERAL EXPENDITURES,SUPPLIES AND MATERIALS,DETAIL,2021-07-13,AP,1439137,CITI PCARD-AMZN Mktp US 2X20O77K2,2021-06-14,2021-06-14,OFFICE SUPPLIES (OUTSIDE),273.43,2021
,2021 OFFICE OF THE MAJORITY WHIP,3,GENERAL EXPENDITURES,SUPPLIES AND MATERIALS,DETAIL,2021-07-13,AP,1439137,CITI PCARD-AMZN Mktp US 2X2ER6R82,2021-06-16,2021-06-16,OFFICE SUPPLIES (OUTSIDE),6.29,2021
,2021 OFFICE OF THE MAJORITY WHIP,3,GENERAL EXPENDITURES,SUPPLIES AND MATERIALS,DETAIL,2021-07-13,AP,1439137,CITI PCARD-AMZN Mktp US 2X7YL1RK1,2021-06-10,2021-06-10,OFFICE SUPPLIES (OUTSIDE),21.48,2021
,2021 OFFICE OF THE MAJORITY WHIP,3,GENERAL EXPENDITURES,SUPPLIES AND MATERIALS,DETAIL,2021-07-13,AP,1439137,CITI PCARD-Amazon.com 214FV8LO1,2021-06-10,2021-06-10,OFFICE SUPPLIES (OUTSIDE),47.96,2021
,2021 OFFICE OF THE MAJORITY WHIP,3,GENERAL EXPENDITURES,SUPPLIES AND MATERIALS,DETAIL,2021-07-13,AP,1439137,CITI PCARD-BOJANGLES 706,2021-06-08,2021-06-08,FOOD & BEVERAGE,1788.64,2021
,2021 OFFICE OF THE MAJORITY WHIP,3,GENERAL EXPENDITURES,SUPPLIES AND MATERIALS,DETAIL,2021-07-13,AP,1439137,CITI PCARD-CHICK-FIL-A #03882,2021-06-21,2021-06-21,FOOD & BEVERAGE,145.36,2021
,2021 OFFICE OF THE MAJORITY WHIP,3,GENERAL EXPENDITURES,SUPPLIES AND MATERIALS,DETAIL,2021-07-13,AP,1439137,CITI PCARD-COSTCO BY INSTACART,2021-06-07,2021-06-07,FOOD & BEVERAGE,253.92,2021
,2021 OFFICE OF THE MAJORITY WHIP,3,GENERAL EXPENDITURES,SUPPLIES AND MATERIALS,DETAIL,2021-07-13,AP,1439137,CITI PCARD-COSTCO BY INSTACART,2021-06-16,2021-06-16,FOOD & BEVERAGE,182.16,2021
,2021 OFFICE OF THE MAJORITY WHIP,3,GENERAL EXPENDITURES,SUPPLIES AND MATERIALS,DETAIL,2021-07-13,AP,1439137,CITI PCARD-COSTCO BY INSTACART,2021-06-24,2021-06-24,FOOD & BEVERAGE,168.72,2021
,2021 OFFICE OF THE MAJORITY WHIP,3,GENERAL EXPENDITURES,SUPPLIES AND MATERIALS,DETAIL,2021-07-13,AP,1439137,CITI PCARD-INSTACART,2021-06-07,2021-06-07,FOOD & BEVERAGE,68.29,2021
,2021 OFFICE OF THE MAJORITY WHIP,3,GENERAL EXPENDITURES,SUPPLIES AND MATERIALS,DETAIL,2021-07-13,AP,1439137,CITI PCARD-INSTACART,2021-06-16,2021-06-16,FOOD & BEVERAGE,100.11,2021
,2021 OFFICE OF THE MAJORITY WHIP,3,GENERAL EXPENDITURES,SUPPLIES AND MATERIALS,DETAIL,2021-07-13,AP,1439137,CITI PCARD-INSTACART,2021-06-24,2021-06-24,FOOD & BEVERAGE,81.31,2021
,2021 OFFICE OF THE MAJORITY WHIP,3,GENERAL EXPENDITURES,SUPPLIES AND MATERIALS,DETAIL,2021-07-13,AP,1439137,CITI PCARD-NYTimes NYTimes,2021-06-16,2021-07-14,PUBLICATIONS/REFERENCE MAT'L,49.82,2021
,2021 OFFICE OF THE MAJORITY WHIP,3,GENERAL EXPENDITURES,SUPPLIES AND MATERIALS,DETAIL,2021-07-31,GL,RMS0108347, ,2021-07-01,2021-07-31,OFFICE SUPPLIES (OUTSIDE),225,2021
,2021 OFFICE OF THE MAJORITY WHIP,3,GENERAL EXPENDITURES,SUPPLIES AND MATERIALS,DETAIL,2021-07-31,GL,RMS0108347, ,2021-07-01,2021-07-31,OFFICE SUPPLY (TRANSFER),126.46,2021
,2021 OFFICE OF THE MAJORITY WHIP,3,GENERAL EXPENDITURES,SUPPLIES AND MATERIALS,DETAIL,2021-08-03,AP,1449682,ACCURATE WORD,2021-06-17,2021-06-17,PUBLICATIONS/REFERENCE MAT'L,755,2021
,2021 OFFICE OF THE MAJORITY WHIP,3,GENERAL EXPENDITURES,SUPPLIES AND MATERIALS,DETAIL,2021-08-06,AP,1449882,CITI PCARD-AMAZON.COM 299642L60 AMZN,2021-06-28,2021-06-28,OFFICE SUPPLIES (OUTSIDE),169.99,2021
,2021 OFFICE OF THE MAJORITY WHIP,3,GENERAL EXPENDITURES,SUPPLIES AND MATERIALS,DETAIL,2021-08-06,AP,1449882,CITI PCARD-AMZN MKTP US 292QG9282 AM,2021-07-12,2021-07-12,OFFICE SUPPLIES (OUTSIDE),34.98,2021
,2021 OFFICE OF THE MAJORITY WHIP,3,GENERAL EXPENDITURES,SUPPLIES AND MATERIALS,DETAIL,2021-08-06,AP,1449882,CITI PCARD-AMZN Mktp US,2021-07-19,2021-07-19,OFFICE SUPPLIES (OUTSIDE),-39.99,2021
,2021 OFFICE OF THE MAJORITY WHIP,3,GENERAL EXPENDITURES,SUPPLIES AND MATERIALS,DETAIL,2021-08-06,AP,1449882,CITI PCARD-AMZN Mktp US 2114G47D2,2021-06-28,2021-06-28,OFFICE SUPPLIES (OUTSIDE),22.78,2021
,2021 OFFICE OF THE MAJORITY WHIP,3,GENERAL EXPENDITURES,SUPPLIES AND MATERIALS,DETAIL,2021-08-06,AP,1449882,CITI PCARD-AMZN Mktp US 212X55WR2,2021-06-30,2021-06-30,OFFICE SUPPLIES (OUTSIDE),81.89,2021
,2021 OFFICE OF THE MAJORITY WHIP,3,GENERAL EXPENDITURES,SUPPLIES AND MATERIALS,DETAIL,2021-08-06,AP,1449882,CITI PCARD-AMZN Mktp US 2165D3WZ0,2021-06-28,2021-06-28,OFFICE SUPPLIES (OUTSIDE),13.99,2021
,2021 OFFICE OF THE MAJORITY WHIP,3,GENERAL EXPENDITURES,SUPPLIES AND MATERIALS,DETAIL,2021-08-06,AP,1449882,CITI PCARD-AMZN Mktp US 2910C1661,2021-06-30,2021-06-30,OFFICE SUPPLIES (OUTSIDE),25.49,2021
,2021 OFFICE OF THE MAJORITY WHIP,3,GENERAL EXPENDITURES,SUPPLIES AND MATERIALS,DETAIL,2021-08-06,AP,1449882,CITI PCARD-AMZN Mktp US 2950L16O1,2021-06-28,2021-06-28,OFFICE SUPPLIES (OUTSIDE),113.39,2021
,2021 OFFICE OF THE MAJORITY WHIP,3,GENERAL EXPENDITURES,SUPPLIES AND MATERIALS,DETAIL,2021-08-06,AP,1449882,CITI PCARD-AMZN Mktp US 295PL3LB2,2021-06-29,2021-06-29,OFFICE SUPPLIES (OUTSIDE),319.84,2021
,2021 OFFICE OF THE MAJORITY WHIP,3,GENERAL EXPENDITURES,SUPPLIES AND MATERIALS,DETAIL,2021-08-06,AP,1449882,CITI PCARD-AMZN Mktp US 295QP39D2,2021-07-13,2021-07-13,OFFICE SUPPLIES (OUTSIDE),94.96,2021
,2021 OFFICE OF THE MAJORITY WHIP,3,GENERAL EXPENDITURES,SUPPLIES AND MATERIALS,DETAIL,2021-08-06,AP,1449882,CITI PCARD-AMZN Mktp US 2E5ZY4EE2,2021-07-19,2021-07-19,OFFICE SUPPLIES (OUTSIDE),39.99,2021
,2021 OFFICE OF THE MAJORITY WHIP,3,GENERAL EXPENDITURES,SUPPLIES AND MATERIALS,DETAIL,2021-08-06,AP,1449882,CITI PCARD-Amazon.com 2E61P6AU2,2021-07-19,2021-07-19,OFFICE SUPPLIES (OUTSIDE),64.47,2021
,2021 OFFICE OF THE MAJORITY WHIP,3,GENERAL EXPENDITURES,SUPPLIES AND MATERIALS,DETAIL,2021-08-06,AP,1449882,CITI PCARD-COSTCO BY INSTACART,2021-06-29,2021-06-29,FOOD & BEVERAGE,93.66,2021
,2021 OFFICE OF THE MAJORITY WHIP,3,GENERAL EXPENDITURES,SUPPLIES AND MATERIALS,DETAIL,2021-08-06,AP,1449882,CITI PCARD-COSTCO BY INSTACART,2021-07-12,2021-07-12,FOOD & BEVERAGE,442.03,2021
,2021 OFFICE OF THE MAJORITY WHIP,3,GENERAL EXPENDITURES,SUPPLIES AND MATERIALS,DETAIL,2021-08-06,AP,1449882,CITI PCARD-COSTCO BY INSTACART,2021-07-20,2021-07-20,FOOD & BEVERAGE,200.1,2021
,2021 OFFICE OF THE MAJORITY WHIP,3,GENERAL EXPENDITURES,SUPPLIES AND MATERIALS,DETAIL,2021-08-06,AP,1449882,CITI PCARD-COSTCO BY INSTACART,2021-07-23,2021-07-23,FOOD & BEVERAGE,468.2,2021
,2021 OFFICE OF THE MAJORITY WHIP,3,GENERAL EXPENDITURES,SUPPLIES AND MATERIALS,DETAIL,2021-08-06,AP,1449882,CITI PCARD-HILL COUNTRY DC LLC,2021-06-30,2021-06-30,FOOD & BEVERAGE,5507.95,2021
,2021 OFFICE OF THE MAJORITY WHIP,3,GENERAL EXPENDITURES,SUPPLIES AND MATERIALS,DETAIL,2021-08-06,AP,1449882,CITI PCARD-INSTACART,2021-06-29,2021-06-29,FOOD & BEVERAGE,36.94,2021
,2021 OFFICE OF THE MAJORITY WHIP,3,GENERAL EXPENDITURES,SUPPLIES AND MATERIALS,DETAIL,2021-08-06,AP,1449882,CITI PCARD-INSTACART,2021-07-12,2021-07-12,FOOD & BEVERAGE,222.57,2021
,2021 OFFICE OF THE MAJORITY WHIP,3,GENERAL EXPENDITURES,SUPPLIES AND MATERIALS,DETAIL,2021-08-06,AP,1449882,CITI PCARD-INSTACART,2021-07-15,2021-07-15,FOOD & BEVERAGE,109.21,2021
,2021 OFFICE OF THE MAJORITY WHIP,3,GENERAL EXPENDITURES,SUPPLIES AND MATERIALS,DETAIL,2021-08-06,AP,1449882,CITI PCARD-INSTACART,2021-07-20,2021-07-20,FOOD & BEVERAGE,293.51,2021
,2021 OFFICE OF THE MAJORITY WHIP,3,GENERAL EXPENDITURES,SUPPLIES AND MATERIALS,DETAIL,2021-08-06,AP,1449882,CITI PCARD-INSTACART,2021-07-26,2021-07-26,FOOD & BEVERAGE,71.95,2021
,2021 OFFICE OF THE MAJORITY WHIP,3,GENERAL EXPENDITURES,SUPPLIES AND MATERIALS,DETAIL,2021-08-06,AP,1449882,CITI PCARD-INSTACART,2021-07-27,2021-07-27,FOOD & BEVERAGE,341.62,2021
,2021 OFFICE OF THE MAJORITY WHIP,3,GENERAL EXPENDITURES,SUPPLIES AND MATERIALS,DETAIL,2021-08-06,AP,1449882,CITI PCARD-NYTimes NYTimes,2021-07-14,2021-08-11,PUBLICATIONS/REFERENCE MAT'L,49.82,2021
,2021 OFFICE OF THE MAJORITY WHIP,3,GENERAL EXPENDITURES,SUPPLIES AND MATERIALS,DETAIL,2021-08-09,AP,1450199,REVIVE EVENTS AND CATERING,2021-07-29,2021-07-29,FOOD & BEVERAGE,3610,2021
,2021 OFFICE OF THE MAJORITY WHIP,3,GENERAL EXPENDITURES,SUPPLIES AND MATERIALS,DETAIL,2021-08-31,GL,RMS0109142, ,2021-08-01,2021-08-31,OFFICE SUPPLY (TRANSFER),144.05,2021
,2021 OFFICE OF THE MAJORITY WHIP,3,GENERAL EXPENDITURES,SUPPLIES AND MATERIALS,DETAIL,2021-09-07,AP,1461234,CITI PCARD-ISLANDPACKET DIGITAL SUB,2021-06-18,2021-07-17,PUBLICATIONS/REFERENCE MAT'L,15.99,2021
,2021 OFFICE OF THE MAJORITY WHIP,3,GENERAL EXPENDITURES,SUPPLIES AND MATERIALS,DETAIL,2021-09-27,AP,1470283,CITI PCARD-SQ  REVIVE EVENTS & CATER,2021-07-21,2021-07-21,FOOD & BEVERAGE,3555,2021
,2021 OFFICE OF THE MAJORITY WHIP,3,GENERAL EXPENDITURES,SUPPLIES AND MATERIALS,DETAIL,2021-09-27,AP,1470285,CITI PCARD-ISLANDPACKET DIGITAL SUB,2021-05-18,2021-06-18,PUBLICATIONS/REFERENCE MAT'L,1.99,2021
,2021 OFFICE OF THE MAJORITY WHIP,3,GENERAL EXPENDITURES,SUPPLIES AND MATERIALS,DETAIL,2021-09-27,AP,1470287,GARRETT EMERALD P.,2021-09-20,2021-09-20,FOOD & BEVERAGE,11.97,2021
,2021 OFFICE OF THE MAJORITY WHIP,3,GENERAL EXPENDITURES,SUPPLIES AND MATERIALS,DETAIL,2021-09-28,AP,1470284,CITI PCARD-THEPOSTANDCO ONLINE,2021-01-24,2022-01-23,PUBLICATIONS/REFERENCE MAT'L,155,2021
,2021 OFFICE OF THE MAJORITY WHIP,3,GENERAL EXPENDITURES,SUPPLIES AND MATERIALS,DETAIL,2021-09-28,AP,1470294,CITI PCARD-GIANT 2381,2021-06-29,2021-06-29,FOOD & BEVERAGE,286.87,2021
,2021 OFFICE OF THE MAJORITY WHIP,3,GENERAL EXPENDITURES,SUPPLIES AND MATERIALS,DETAIL,2021-09-29,AP,1470219,CITI PCARD-AMAZON.COM 2E97O29X2 AMZN,2021-07-28,2021-07-28,OFFICE SUPPLIES (OUTSIDE),24.44,2021
,2021 OFFICE OF THE MAJORITY WHIP,3,GENERAL EXPENDITURES,SUPPLIES AND MATERIALS,DETAIL,2021-09-29,AP,1470219,CITI PCARD-AMAZON.COM 2P09711W1 AMZN,2021-07-28,2021-07-28,OFFICE SUPPLIES (OUTSIDE),48.47,2021
,2021 OFFICE OF THE MAJORITY WHIP,3,GENERAL EXPENDITURES,SUPPLIES AND MATERIALS,DETAIL,2021-09-29,AP,1470219,CITI PCARD-AMZN Mktp US 2P2W75VE1,2021-07-30,2021-07-30,OFFICE SUPPLIES (OUTSIDE),117.9,2021
,2021 OFFICE OF THE MAJORITY WHIP,3,GENERAL EXPENDITURES,SUPPLIES AND MATERIALS,DETAIL,2021-09-29,AP,1470219,CITI PCARD-CANVA  I03148-17811816,2021-08-15,2021-08-15,PUBLICATIONS/REFERENCE MAT'L,31.8,2021
,2021 OFFICE OF THE MAJORITY WHIP,3,GENERAL EXPENDITURES,SUPPLIES AND MATERIALS,DETAIL,2021-09-29,AP,1470219,CITI PCARD-COSTCO BY INSTACART,2021-08-13,2021-08-13,FOOD & BEVERAGE,288.17,2021
,2021 OFFICE OF THE MAJORITY WHIP,3,GENERAL EXPENDITURES,SUPPLIES AND MATERIALS,DETAIL,2021-09-29,AP,1470219,CITI PCARD-DISTRICT TACO 1003 ONLINE,2021-08-24,2021-08-24,FOOD & BEVERAGE,327.25,2021
,2021 OFFICE OF THE MAJORITY WHIP,3,GENERAL EXPENDITURES,SUPPLIES AND MATERIALS,DETAIL,2021-09-29,AP,1470219,CITI PCARD-INSTACART,2021-08-13,2021-08-13,FOOD & BEVERAGE,120.23,2021
,2021 OFFICE OF THE MAJORITY WHIP,3,GENERAL EXPENDITURES,SUPPLIES AND MATERIALS,DETAIL,2021-09-29,AP,1470219,CITI PCARD-INSTACART,2021-08-24,2021-08-24,FOOD & BEVERAGE,33,2021
,2021 OFFICE OF THE MAJORITY WHIP,3,GENERAL EXPENDITURES,SUPPLIES AND MATERIALS,DETAIL,2021-09-29,AP,1470219,CITI PCARD-MEI WAH RESTAURAURT,2021-07-28,2021-07-28,FOOD & BEVERAGE,3985.79,2021
,2021 OFFICE OF THE MAJORITY WHIP,3,GENERAL EXPENDITURES,SUPPLIES AND MATERIALS,DETAIL,2021-09-29,AP,1470219,CITI PCARD-NYTimes NYTimes,2021-08-11,2021-09-08,PUBLICATIONS/REFERENCE MAT'L,51.94,2021
,2021 OFFICE OF THE MAJORITY WHIP,3,GENERAL EXPENDITURES,SUPPLIES AND MATERIALS,DETAIL,2021-09-29,AP,1470219,CITI PCARD-POTBELLY #140,2021-07-30,2021-07-30,FOOD & BEVERAGE,475.13,2021
,2021 OFFICE OF THE MAJORITY WHIP,3,GENERAL EXPENDITURES,SUPPLIES AND MATERIALS,DETAIL,2021-09-29,AP,1470219,CITI PCARD-TALAY THAI RESTAURANT,2021-08-23,2021-08-23,FOOD & BEVERAGE,325.04,2021
,2021 OFFICE OF THE MAJORITY WHIP,3,GENERAL EXPENDITURES,SUPPLIES AND MATERIALS,DETAIL,2021-09-29,AP,1470219,CITI PCARD-TALAY THAI RESTAURANT,2021-08-24,2021-08-24,FOOD & BEVERAGE,28.91,2021
,2021 OFFICE OF THE MAJORITY WHIP,3,GENERAL EXPENDITURES,SUPPLIES AND MATERIALS,DETAIL,2021-09-29,AP,1470337,CITI PCARD-ISLANDPACKET DIGITAL SUB,2021-07-18,2021-08-17,PUBLICATIONS/REFERENCE MAT'L,15.99,2021
,2021 OFFICE OF THE MAJORITY WHIP,3,GENERAL EXPENDITURES,SUPPLIES AND MATERIALS,DETAIL,2021-09-29,AP,1470337,CITI PCARD-ISLANDPACKET DIGITAL SUB,2021-08-18,2021-09-17,PUBLICATIONS/REFERENCE MAT'L,15.99,2021
,2021 OFFICE OF THE MAJORITY WHIP,3,GENERAL EXPENDITURES,SUPPLIES AND MATERIALS,DETAIL,2021-09-30,GL,RMS0110034, ,2021-09-01,2021-09-30,OFFICE SUPPLIES (OUTSIDE),254.52,2021
,2021 OFFICE OF THE MAJORITY WHIP,3,GENERAL EXPENDITURES,SUPPLIES AND MATERIALS,DETAIL,2021-09-30,GL,RMS0110034, ,2021-09-01,2021-09-30,OFFICE SUPPLY (TRANSFER),686.78,2021
,2021 OFFICE OF THE MAJORITY WHIP,3,GENERAL EXPENDITURES,SUPPLIES AND MATERIALS,SUBTOTAL,   ,   ,   ,   ,   ,   ,SUPPLIES AND MATERIALS TOTALS:,27685.51,2021
,2021 OFFICE OF THE MAJORITY WHIP,3,GENERAL EXPENDITURES,EQUIPMENT,DETAIL,2021-07-30,GL,MNT0108289, ,2021-07-01,2021-07-31,MAINTENANCE / REPAIRS,355,2021
,2021 OFFICE OF THE MAJORITY WHIP,3,GENERAL EXPENDITURES,EQUIPMENT,DETAIL,2021-07-31,GL,RMS0108347, ,2021-07-01,2021-07-31,COMPUTER HARDW PURCH  LESS THAN $25 000,4231.84,2021
,2021 OFFICE OF THE MAJORITY WHIP,3,GENERAL EXPENDITURES,EQUIPMENT,DETAIL,2021-08-31,GL,MNT0109087, ,2021-08-01,2021-08-31,MAINTENANCE / REPAIRS,355,2021
,2021 OFFICE OF THE MAJORITY WHIP,3,GENERAL EXPENDITURES,EQUIPMENT,DETAIL,2021-09-30,GL,MNT0109918, ,2021-09-01,2021-09-30,MAINTENANCE / REPAIRS,355,2021
,2021 OFFICE OF THE MAJORITY WHIP,3,GENERAL EXPENDITURES,EQUIPMENT,DETAIL,2021-09-30,GL,RMS0110034, ,2021-09-01,2021-09-30,COMPUTER HARDW PURCH  LESS THAN $25 000,2159.92,2021
,2021 OFFICE OF THE MAJORITY WHIP,3,GENERAL EXPENDITURES,EQUIPMENT,SUBTOTAL,   ,   ,   ,   ,   ,   ,EQUIPMENT TOTALS:,7456.76,2021
,2021 OFFICE OF THE MAJORITY WHIP,3,GENERAL EXPENDITURES,EQUIPMENT,SUBTOTAL,   ,   ,   ,   ,   ,   ,GENERAL EXPENDITURES TOTALS:,478705.34,2021
,2021 OFFICE OF THE MAJORITY WHIP,3,GENERAL EXPENDITURES,EQUIPMENT,GRAND TOTAL FOR ORGANIZATION,   ,   ,   ,   ,   ,   ,OFFICE TOTALS: ,478705.34,2021
,2021 OFFICE OF THE MINORITY WHIP,3,GENERAL EXPENDITURES,PERSONNEL COMPENSATION,DETAIL,   ,   ,   ,ACORNLEY MARK A.,2021-07-01,2021-09-30,FINANCIAL ADMINISTRATOR,5000.01,2021
,2021 OFFICE OF THE MINORITY WHIP,3,GENERAL EXPENDITURES,PERSONNEL COMPENSATION,DETAIL,   ,   ,   ,ADCOCK AUSTEN L,2021-09-16,2021-09-30,STAFF ASSISTANT,1722.22,2021
,2021 OFFICE OF THE MINORITY WHIP,3,GENERAL EXPENDITURES,PERSONNEL COMPENSATION,DETAIL,   ,   ,   ,BATTAGLIA JACQUELINE P,2021-07-01,2021-09-30,SCHEDULE COORDINATOR,8437.5,2021
,2021 OFFICE OF THE MINORITY WHIP,3,GENERAL EXPENDITURES,PERSONNEL COMPENSATION,DETAIL,   ,   ,   ,BROOKE JR FRANCIS J.,2021-09-07,2021-09-30,LEGISLATIVE COUNSEL,5666.67,2021
,2021 OFFICE OF THE MINORITY WHIP,3,GENERAL EXPENDITURES,PERSONNEL COMPENSATION,DETAIL,   ,   ,   ,COMER II MICHAEL D,2021-07-01,2021-09-30,DIGITAL DIRECTOR,34108.33,2021
,2021 OFFICE OF THE MINORITY WHIP,3,GENERAL EXPENDITURES,PERSONNEL COMPENSATION,DETAIL,   ,   ,   ,FINE LAUREN R,2021-07-01,2021-09-30,COMMUNICATIONS DIRECTOR,25287.49,2021
,2021 OFFICE OF THE MINORITY WHIP,3,GENERAL EXPENDITURES,PERSONNEL COMPENSATION,DETAIL,   ,   ,   ,HAY WILLIAM A.,2021-07-01,2021-08-01,STAFF ASSISTANT,3444.44,2021
,2021 OFFICE OF THE MINORITY WHIP,3,GENERAL EXPENDITURES,PERSONNEL COMPENSATION,DETAIL,   ,   ,   ,HORTON BRETT H.,2021-07-01,2021-09-30,CHIEF OF STAFF,47408.33,2021
,2021 OFFICE OF THE MINORITY WHIP,3,GENERAL EXPENDITURES,PERSONNEL COMPENSATION,DETAIL,   ,   ,   ,KRIEGER ROBYN W,2021-07-01,2021-09-30,STAFF ASSISTANT,10749.99,2021
,2021 OFFICE OF THE MINORITY WHIP,3,GENERAL EXPENDITURES,PERSONNEL COMPENSATION,DETAIL,   ,   ,   ,LOVELL HUNTER J.,2021-07-01,2021-09-30,DEPUTY PRESS SECRETARY,5000.01,2021
,2021 OFFICE OF THE MINORITY WHIP,3,GENERAL EXPENDITURES,PERSONNEL COMPENSATION,DETAIL,   ,   ,   ,MCINTOSH ARTHUR R.,2021-07-01,2021-09-30,SPECIAL ASSISTANT,11250,2021
,2021 OFFICE OF THE MINORITY WHIP,3,GENERAL EXPENDITURES,PERSONNEL COMPENSATION,DETAIL,   ,   ,   ,MINKLER ANN W,2021-07-01,2021-09-30,DEPUTY FLOOR DIRECTOR,31850.01,2021
,2021 OFFICE OF THE MINORITY WHIP,3,GENERAL EXPENDITURES,PERSONNEL COMPENSATION,DETAIL,   ,   ,   ,MLINAR ALYENE S,2021-07-01,2021-09-30,POLICY ADVISOR,19351.02,2021
,2021 OFFICE OF THE MINORITY WHIP,3,GENERAL EXPENDITURES,PERSONNEL COMPENSATION,DETAIL,   ,   ,   ,NAFT JEFFREY C,2021-07-01,2021-09-30,COMMUNICATIONS ADVISOR,21249.99,2021
,2021 OFFICE OF THE MINORITY WHIP,3,GENERAL EXPENDITURES,PERSONNEL COMPENSATION,DETAIL,   ,   ,   ,NALLS DENNIS A,2021-07-01,2021-09-30,FLOOR ASSISTANT,18750,2021
,2021 OFFICE OF THE MINORITY WHIP,3,GENERAL EXPENDITURES,PERSONNEL COMPENSATION,DETAIL,   ,   ,   ,NAPIER BENJAMIN W,2021-07-01,2021-09-30,FLOOR DIRECTOR,43475.01,2021
,2021 OFFICE OF THE MINORITY WHIP,3,GENERAL EXPENDITURES,PERSONNEL COMPENSATION,DETAIL,   ,   ,   ,REISER MARTIN G,2021-07-01,2021-09-06,LEGISLATIVE COUNSEL,15583.33,2021
,2021 OFFICE OF THE MINORITY WHIP,3,GENERAL EXPENDITURES,PERSONNEL COMPENSATION,DETAIL,   ,   ,   ,REISING JOHN B,2021-07-01,2021-09-30,MEMBER SERVICES DIRECTOR,47383.34,2021
,2021 OFFICE OF THE MINORITY WHIP,3,GENERAL EXPENDITURES,PERSONNEL COMPENSATION,DETAIL,   ,   ,   ,ROBBINS KATHERINE W.,2021-07-01,2021-09-30,PRESS ASSISTANT,13999.99,2021
,2021 OFFICE OF THE MINORITY WHIP,3,GENERAL EXPENDITURES,PERSONNEL COMPENSATION,DETAIL,   ,   ,   ,SADLOSKY DANIEL J,2021-07-01,2021-08-08,POLICY ASSISTANT,17633.29,2021
,2021 OFFICE OF THE MINORITY WHIP,3,GENERAL EXPENDITURES,PERSONNEL COMPENSATION,DETAIL,   ,   ,   ,SCHMITZ ERIC T,2021-07-01,2021-09-30,COALITIONS COORDINATOR,22500,2021
,2021 OFFICE OF THE MINORITY WHIP,3,GENERAL EXPENDITURES,PERSONNEL COMPENSATION,DETAIL,   ,   ,   ,SEHER ELLEN G.,2021-07-01,2021-09-30,DIRECTOR OF OPERATIONS,36216.66,2021
,2021 OFFICE OF THE MINORITY WHIP,3,GENERAL EXPENDITURES,PERSONNEL COMPENSATION,DETAIL,   ,   ,   ,WIEAND JR JEFFREY L,2021-07-01,2021-09-30,COUNSEL,34624.99,2021
,2021 OFFICE OF THE MINORITY WHIP,3,GENERAL EXPENDITURES,PERSONNEL COMPENSATION,SUBTOTAL,   ,   ,   ,   ,   ,   ,PERSONNEL COMPENSATION TOTALS:,480692.62,2021
,2021 OFFICE OF THE MINORITY WHIP,3,GENERAL EXPENDITURES,TRAVEL,DETAIL,2021-08-11,AP,1451891,CITIBANK GOV CARD SERVICE,2021-07-16,2021-07-16,COMMERCIAL TRANSPORTATION,581.79,2021
,2021 OFFICE OF THE MINORITY WHIP,3,GENERAL EXPENDITURES,TRAVEL,DETAIL,2021-08-13,AP,1450569,COMER II MICHAEL D.,2021-07-16,2021-07-16,TAXI/PARKING/TOLLS,22,2021
,2021 OFFICE OF THE MINORITY WHIP,3,GENERAL EXPENDITURES,TRAVEL,SUBTOTAL,   ,   ,   ,   ,   ,   ,TRAVEL TOTALS:,603.79,2021
,2021 OFFICE OF THE MINORITY WHIP,3,GENERAL EXPENDITURES,RENT  COMMUNICATION  UTILITIES,DETAIL,2021-07-22,AP,1439690,CITI PCARD-GOOGLE  YouTube TV,2021-06-25,2021-07-24,UTILITIES,68.89,2021
,2021 OFFICE OF THE MINORITY WHIP,3,GENERAL EXPENDITURES,RENT  COMMUNICATION  UTILITIES,DETAIL,2021-07-22,GL,EMS0108073, ,2021-06-01,2021-06-30,DC TELECOM EQUIP (TRANSFER),76,2021
,2021 OFFICE OF THE MINORITY WHIP,3,GENERAL EXPENDITURES,RENT  COMMUNICATION  UTILITIES,DETAIL,2021-07-22,GL,EMS0108073, ,2021-06-01,2021-06-30,DC TELECOM SERV (TRANSFER),240.25,2021
,2021 OFFICE OF THE MINORITY WHIP,3,GENERAL EXPENDITURES,RENT  COMMUNICATION  UTILITIES,DETAIL,2021-07-22,GL,EMS0108073, ,2021-06-01,2021-06-30,DC TELECOM TOLLS (TRANSFER),2416.4,2021
,2021 OFFICE OF THE MINORITY WHIP,3,GENERAL EXPENDITURES,RENT  COMMUNICATION  UTILITIES,DETAIL,2021-08-13,AP,1450569,COMER II MICHAEL D.,2021-07-16,2021-07-16,UTILITIES,31,2021
,2021 OFFICE OF THE MINORITY WHIP,3,GENERAL EXPENDITURES,RENT  COMMUNICATION  UTILITIES,DETAIL,2021-08-16,AP,1451977,CITI PCARD-GOOGLE YOUTUBE TV,2021-07-25,2021-08-24,UTILITIES,68.89,2021
,2021 OFFICE OF THE MINORITY WHIP,3,GENERAL EXPENDITURES,RENT  COMMUNICATION  UTILITIES,DETAIL,2021-08-26,GL,MED0108954, ,2021-08-13,2021-08-13,HIR GRAPHICS (TRANSFER),22,2021
,2021 OFFICE OF THE MINORITY WHIP,3,GENERAL EXPENDITURES,RENT  COMMUNICATION  UTILITIES,DETAIL,2021-08-30,GL,EMS0109045, ,2021-07-01,2021-07-31,DC TELECOM EQUIP (TRANSFER),76,2021
,2021 OFFICE OF THE MINORITY WHIP,3,GENERAL EXPENDITURES,RENT  COMMUNICATION  UTILITIES,DETAIL,2021-08-30,GL,EMS0109045, ,2021-07-01,2021-07-31,DC TELECOM SERV (TRANSFER),248,2021
,2021 OFFICE OF THE MINORITY WHIP,3,GENERAL EXPENDITURES,RENT  COMMUNICATION  UTILITIES,DETAIL,2021-08-30,GL,EMS0109045, ,2021-07-01,2021-07-31,DC TELECOM TOLLS (TRANSFER),3597.95,2021
,2021 OFFICE OF THE MINORITY WHIP,3,GENERAL EXPENDITURES,RENT  COMMUNICATION  UTILITIES,DETAIL,2021-09-27,GL,EMS0109741, ,2021-08-01,2021-08-31,DC TELECOM EQUIP (TRANSFER),76,2021
,2021 OFFICE OF THE MINORITY WHIP,3,GENERAL EXPENDITURES,RENT  COMMUNICATION  UTILITIES,DETAIL,2021-09-27,GL,EMS0109741, ,2021-08-01,2021-08-31,DC TELECOM SERV (TRANSFER),248,2021
,2021 OFFICE OF THE MINORITY WHIP,3,GENERAL EXPENDITURES,RENT  COMMUNICATION  UTILITIES,DETAIL,2021-09-27,GL,EMS0109741, ,2021-08-01,2021-08-31,DC TELECOM TOLLS (TRANSFER),4704.81,2021
,2021 OFFICE OF THE MINORITY WHIP,3,GENERAL EXPENDITURES,RENT  COMMUNICATION  UTILITIES,SUBTOTAL,   ,   ,   ,   ,   ,   ,RENT  COMMUNICATION  UTILITIES TOTALS:,11874.19,2021
,2021 OFFICE OF THE MINORITY WHIP,3,GENERAL EXPENDITURES,PRINTING AND REPRODUCTION,DETAIL,2021-07-26,GL,MED0108155, ,2021-06-29,2021-07-23,PHOTOGRAPHIC (TRANSFER),7.8,2021
,2021 OFFICE OF THE MINORITY WHIP,3,GENERAL EXPENDITURES,PRINTING AND REPRODUCTION,DETAIL,2021-08-11,AP,1450540,ACCURATE WORD,2021-07-28,2021-07-28,PRINTING & REPRODUCTION,43,2021
,2021 OFFICE OF THE MINORITY WHIP,3,GENERAL EXPENDITURES,PRINTING AND REPRODUCTION,DETAIL,2021-08-16,AP,1451977,CITI PCARD-SCRIPTURA INC,2021-07-14,2021-07-14,PRINTING & REPRODUCTION,2840,2021
,2021 OFFICE OF THE MINORITY WHIP,3,GENERAL EXPENDITURES,PRINTING AND REPRODUCTION,DETAIL,2021-08-26,GL,MED0108954, ,2021-08-13,2021-08-16,PHOTOGRAPHIC (TRANSFER),234.4,2021
,2021 OFFICE OF THE MINORITY WHIP,3,GENERAL EXPENDITURES,PRINTING AND REPRODUCTION,SUBTOTAL,   ,   ,   ,   ,   ,   ,PRINTING AND REPRODUCTION TOTALS:,3125.2,2021
,2021 OFFICE OF THE MINORITY WHIP,3,GENERAL EXPENDITURES,OTHER SERVICES,DETAIL,2021-07-16,AP,1442847,HOUSECALL LLC,2021-07-01,2021-07-31,TECHNOLOGY SERVICE CONTRACTS,5125,2021
,2021 OFFICE OF THE MINORITY WHIP,3,GENERAL EXPENDITURES,OTHER SERVICES,DETAIL,2021-07-20,AP,1439232,GULF PARTYLINE CORPORATION,2021-06-01,2021-06-30,TECHNOLOGY SERVICE CONTRACTS,3000,2021
,2021 OFFICE OF THE MINORITY WHIP,3,GENERAL EXPENDITURES,OTHER SERVICES,DETAIL,2021-07-22,AP,1439690,CITI PCARD-APPLE.COM/BILL,2021-05-31,2021-06-30,TECHNOLOGY SERVICE CONTRACTS,3.17,2021
,2021 OFFICE OF THE MINORITY WHIP,3,GENERAL EXPENDITURES,OTHER SERVICES,DETAIL,2021-07-22,AP,1439690,CITI PCARD-APPLE.COM/BILL,2021-06-25,2021-07-24,TECHNOLOGY SERVICE CONTRACTS,3.17,2021
,2021 OFFICE OF THE MINORITY WHIP,3,GENERAL EXPENDITURES,OTHER SERVICES,DETAIL,2021-07-22,AP,1439690,CITI PCARD-GOOGLE GOOGLE STORAGE,2021-06-13,2021-07-12,TECHNOLOGY SERVICE CONTRACTS,10.59,2021
,2021 OFFICE OF THE MINORITY WHIP,3,GENERAL EXPENDITURES,OTHER SERVICES,DETAIL,2021-07-22,AP,1439690,CITI PCARD-MAILCHIMP    MONTHLY,2021-06-07,2021-07-06,WEB DEV HST EMAIL & RLTD SERV,304.21,2021
,2021 OFFICE OF THE MINORITY WHIP,3,GENERAL EXPENDITURES,OTHER SERVICES,DETAIL,2021-08-11,AP,1450533,GULF PARTYLINE CORPORATION,2021-07-01,2021-07-31,TECHNOLOGY SERVICE CONTRACTS,3000,2021
,2021 OFFICE OF THE MINORITY WHIP,3,GENERAL EXPENDITURES,OTHER SERVICES,DETAIL,2021-08-16,AP,1451977,CITI PCARD-ADOBE CREATIVE CLOUD,2021-07-09,2022-01-01,TECHNOLOGY SERVICE CONTRACTS,635.87,2021
,2021 OFFICE OF THE MINORITY WHIP,3,GENERAL EXPENDITURES,OTHER SERVICES,DETAIL,2021-08-16,AP,1451977,CITI PCARD-APPLE.COM/BILL,2021-06-30,2021-07-29,TECHNOLOGY SERVICE CONTRACTS,3.17,2021
,2021 OFFICE OF THE MINORITY WHIP,3,GENERAL EXPENDITURES,OTHER SERVICES,DETAIL,2021-08-16,AP,1451977,CITI PCARD-APPLE.COM/BILL,2021-07-23,2021-08-22,TECHNOLOGY SERVICE CONTRACTS,3.17,2021
,2021 OFFICE OF THE MINORITY WHIP,3,GENERAL EXPENDITURES,OTHER SERVICES,DETAIL,2021-08-16,AP,1451977,CITI PCARD-MAILCHIMP    MONTHLY,2021-07-07,2021-08-06,WEB DEV HST EMAIL & RLTD SERV,304.21,2021
,2021 OFFICE OF THE MINORITY WHIP,3,GENERAL EXPENDITURES,OTHER SERVICES,DETAIL,2021-08-16,AP,1454310,HOUSECALL LLC,2021-08-01,2021-08-31,TECHNOLOGY SERVICE CONTRACTS,5125,2021
,2021 OFFICE OF THE MINORITY WHIP,3,GENERAL EXPENDITURES,OTHER SERVICES,DETAIL,2021-09-16,AP,1466420,HOUSECALL LLC,2021-09-01,2021-09-30,TECHNOLOGY SERVICE CONTRACTS,5125,2021
,2021 OFFICE OF THE MINORITY WHIP,3,GENERAL EXPENDITURES,OTHER SERVICES,SUBTOTAL,   ,   ,   ,   ,   ,   ,OTHER SERVICES TOTALS:,22642.56,2021
,2021 OFFICE OF THE MINORITY WHIP,3,GENERAL EXPENDITURES,SUPPLIES AND MATERIALS,DETAIL,2021-07-20,AP,1437310,IMPACTOFFICE,2021-06-22,2021-06-22,FOOD & BEVERAGE,17.62,2021
,2021 OFFICE OF THE MINORITY WHIP,3,GENERAL EXPENDITURES,SUPPLIES AND MATERIALS,DETAIL,2021-07-20,AP,1437476,HORTON BRETT H.,2021-06-08,2021-06-08,OFFICE SUPPLIES (OUTSIDE),190.59,2021
,2021 OFFICE OF THE MINORITY WHIP,3,GENERAL EXPENDITURES,SUPPLIES AND MATERIALS,DETAIL,2021-07-20,AP,1439255,QUENCH USA LLC,2021-07-01,2021-07-31,WATER,46.75,2021
,2021 OFFICE OF THE MINORITY WHIP,3,GENERAL EXPENDITURES,SUPPLIES AND MATERIALS,DETAIL,2021-07-22,AP,1439690,CITI PCARD-AMAZON.COM 2X70I0742 AMZN,2021-06-14,2021-06-14,OFFICE SUPPLIES (OUTSIDE),37.08,2021
,2021 OFFICE OF THE MINORITY WHIP,3,GENERAL EXPENDITURES,SUPPLIES AND MATERIALS,DETAIL,2021-07-22,AP,1439690,CITI PCARD-AMZN Mktp US 2173T0HI0,2021-06-22,2021-06-22,OFFICE SUPPLIES (OUTSIDE),9.65,2021
,2021 OFFICE OF THE MINORITY WHIP,3,GENERAL EXPENDITURES,SUPPLIES AND MATERIALS,DETAIL,2021-07-22,AP,1439690,CITI PCARD-Amazon.com 215ZR22W0,2021-06-25,2021-06-25,OFFICE SUPPLIES (OUTSIDE),97.3,2021
,2021 OFFICE OF THE MINORITY WHIP,3,GENERAL EXPENDITURES,SUPPLIES AND MATERIALS,DETAIL,2021-07-22,AP,1439690,CITI PCARD-NYTimes NYTimes disc,2021-06-19,2021-07-18,PUBLICATIONS/REFERENCE MAT'L,16.96,2021
,2021 OFFICE OF THE MINORITY WHIP,3,GENERAL EXPENDITURES,SUPPLIES AND MATERIALS,DETAIL,2021-07-22,AP,1439690,CITI PCARD-STK Shutterstock,2021-05-28,2021-06-27,PUBLICATIONS/REFERENCE MAT'L,169,2021
,2021 OFFICE OF THE MINORITY WHIP,3,GENERAL EXPENDITURES,SUPPLIES AND MATERIALS,DETAIL,2021-07-22,AP,1439690,CITI PCARD-STK Shutterstock,2021-05-31,2021-05-31,PUBLICATIONS/REFERENCE MAT'L,474,2021
,2021 OFFICE OF THE MINORITY WHIP,3,GENERAL EXPENDITURES,SUPPLIES AND MATERIALS,DETAIL,2021-07-22,AP,1439690,CITI PCARD-SUB WASHPOST 015043157,2021-05-27,2021-06-26,PUBLICATIONS/REFERENCE MAT'L,10.6,2021
,2021 OFFICE OF THE MINORITY WHIP,3,GENERAL EXPENDITURES,SUPPLIES AND MATERIALS,DETAIL,2021-07-22,AP,1439690,CITI PCARD-SUB WASHPOST 015043157,2021-06-24,2021-07-23,PUBLICATIONS/REFERENCE MAT'L,10.6,2021
,2021 OFFICE OF THE MINORITY WHIP,3,GENERAL EXPENDITURES,SUPPLIES AND MATERIALS,DETAIL,2021-07-30,AP,1448657,QUENCH USA LLC,2021-08-01,2021-08-31,WATER,46.75,2021
,2021 OFFICE OF THE MINORITY WHIP,3,GENERAL EXPENDITURES,SUPPLIES AND MATERIALS,DETAIL,2021-07-31,GL,RMS0108347, ,2021-07-01,2021-07-31,OFFICE SUPPLY (TRANSFER),53.76,2021
,2021 OFFICE OF THE MINORITY WHIP,3,GENERAL EXPENDITURES,SUPPLIES AND MATERIALS,DETAIL,2021-08-13,AP,1450569,COMER II MICHAEL D.,2021-07-29,2022-07-29,SOFTWARE  LESS THAN  $500,144,2021
,2021 OFFICE OF THE MINORITY WHIP,3,GENERAL EXPENDITURES,SUPPLIES AND MATERIALS,DETAIL,2021-08-16,AP,1451977,CITI PCARD-AMZN Mktp US 2975S9LC2,2021-06-22,2021-06-22,OFFICE SUPPLIES (OUTSIDE),198.2,2021
,2021 OFFICE OF THE MINORITY WHIP,3,GENERAL EXPENDITURES,SUPPLIES AND MATERIALS,DETAIL,2021-08-16,AP,1451977,CITI PCARD-D J WALL-ST-JOURNAL,2021-07-20,2021-08-19,PUBLICATIONS/REFERENCE MAT'L,123.99,2021
,2021 OFFICE OF THE MINORITY WHIP,3,GENERAL EXPENDITURES,SUPPLIES AND MATERIALS,DETAIL,2021-08-16,AP,1451977,CITI PCARD-GOOGLE  Google Storage,2021-07-14,2021-08-13,SOFTWARE  LESS THAN  $500,10.59,2021
,2021 OFFICE OF THE MINORITY WHIP,3,GENERAL EXPENDITURES,SUPPLIES AND MATERIALS,DETAIL,2021-08-16,AP,1451977,CITI PCARD-NYTimes NYTimes disc,2021-07-17,2021-08-16,PUBLICATIONS/REFERENCE MAT'L,16.96,2021
,2021 OFFICE OF THE MINORITY WHIP,3,GENERAL EXPENDITURES,SUPPLIES AND MATERIALS,DETAIL,2021-08-16,AP,1451977,CITI PCARD-STK Shutterstock,2021-06-28,2021-07-27,PUBLICATIONS/REFERENCE MAT'L,169,2021
,2021 OFFICE OF THE MINORITY WHIP,3,GENERAL EXPENDITURES,SUPPLIES AND MATERIALS,DETAIL,2021-08-16,AP,1451977,CITI PCARD-STK Shutterstock,2021-07-02,2021-08-01,PUBLICATIONS/REFERENCE MAT'L,316,2021
,2021 OFFICE OF THE MINORITY WHIP,3,GENERAL EXPENDITURES,SUPPLIES AND MATERIALS,DETAIL,2021-08-16,AP,1451977,CITI PCARD-STK Shutterstock,2021-07-25,2021-08-24,PUBLICATIONS/REFERENCE MAT'L,49,2021
,2021 OFFICE OF THE MINORITY WHIP,3,GENERAL EXPENDITURES,SUPPLIES AND MATERIALS,DETAIL,2021-08-16,AP,1451977,CITI PCARD-SUB WASHPOST 015043157,2021-07-22,2021-08-21,PUBLICATIONS/REFERENCE MAT'L,10.6,2021
,2021 OFFICE OF THE MINORITY WHIP,3,GENERAL EXPENDITURES,SUPPLIES AND MATERIALS,DETAIL,2021-08-31,AP,1458121,IMPACTOFFICE,2021-08-12,2021-08-12,FOOD & BEVERAGE,63.26,2021
,2021 OFFICE OF THE MINORITY WHIP,3,GENERAL EXPENDITURES,SUPPLIES AND MATERIALS,DETAIL,2021-08-31,AP,1460471,QUENCH USA LLC,2021-09-01,2021-09-30,WATER,46.75,2021
,2021 OFFICE OF THE MINORITY WHIP,3,GENERAL EXPENDITURES,SUPPLIES AND MATERIALS,DETAIL,2021-08-31,GL,RMS0109142, ,2021-08-01,2021-08-31,OFFICE SUPPLY (TRANSFER),8.61,2021
,2021 OFFICE OF THE MINORITY WHIP,3,GENERAL EXPENDITURES,SUPPLIES AND MATERIALS,DETAIL,2021-09-30,GL,RMS0110034, ,2021-09-01,2021-09-30,OFFICE SUPPLY (TRANSFER),296.94,2021
,2021 OFFICE OF THE MINORITY WHIP,3,GENERAL EXPENDITURES,SUPPLIES AND MATERIALS,SUBTOTAL,   ,   ,   ,   ,   ,   ,SUPPLIES AND MATERIALS TOTALS:,2634.56,2021
,2021 OFFICE OF THE MINORITY WHIP,3,GENERAL EXPENDITURES,EQUIPMENT,DETAIL,2021-07-30,GL,MNT0108289, ,2021-07-01,2021-07-31,MAINTENANCE / REPAIRS,196,2021
,2021 OFFICE OF THE MINORITY WHIP,3,GENERAL EXPENDITURES,EQUIPMENT,DETAIL,2021-08-05,AP,1450527,CDW GOVERNMENT LLC,2021-06-25,2021-06-25,COMPUTER HARDW PURCH  LESS THAN $25 000,533.29,2021
,2021 OFFICE OF THE MINORITY WHIP,3,GENERAL EXPENDITURES,EQUIPMENT,DETAIL,2021-08-31,GL,MNT0109087, ,2021-08-01,2021-08-31,MAINTENANCE / REPAIRS,196,2021
,2021 OFFICE OF THE MINORITY WHIP,3,GENERAL EXPENDITURES,EQUIPMENT,DETAIL,2021-09-30,GL,MNT0109918, ,2021-09-01,2021-09-30,MAINTENANCE / REPAIRS,196,2021
,2021 OFFICE OF THE MINORITY WHIP,3,GENERAL EXPENDITURES,EQUIPMENT,SUBTOTAL,   ,   ,   ,   ,   ,   ,EQUIPMENT TOTALS:,1121.29,2021
,2021 OFFICE OF THE MINORITY WHIP,3,GENERAL EXPENDITURES,EQUIPMENT,SUBTOTAL,   ,   ,   ,   ,   ,   ,GENERAL EXPENDITURES TOTALS:,522694.21,2021
,2021 OFFICE OF THE MINORITY WHIP,3,GENERAL EXPENDITURES,EQUIPMENT,GRAND TOTAL FOR ORGANIZATION,   ,   ,   ,   ,   ,   ,OFFICE TOTALS: ,522694.21,2021
,2019 OFFICE OF THE MINORITY WHIP,3,GENERAL EXPENDITURES,SUPPLIES AND MATERIALS,DETAIL,2021-08-06,AP,1445736,W B MASON COMPANY INC,2019-02-21,2019-02-21,OFFICE SUPPLIES (OUTSIDE),46.29,2021
,2019 OFFICE OF THE MINORITY WHIP,3,GENERAL EXPENDITURES,SUPPLIES AND MATERIALS,SUBTOTAL,   ,   ,   ,   ,   ,   ,SUPPLIES AND MATERIALS TOTALS:,46.29,2021
,2019 OFFICE OF THE MINORITY WHIP,3,GENERAL EXPENDITURES,SUPPLIES AND MATERIALS,SUBTOTAL,   ,   ,   ,   ,   ,   ,GENERAL EXPENDITURES TOTALS:,46.29,2021
,2019 OFFICE OF THE MINORITY WHIP,3,GENERAL EXPENDITURES,SUPPLIES AND MATERIALS,GRAND TOTAL FOR ORGANIZATION,   ,   ,   ,   ,   ,   ,OFFICE TOTALS: ,46.29,2021
,2021 OFFICE OF THE MINORITY WHIP,3,INTERN ALLOWANCES,PERSONNEL COMPENSATION,DETAIL,   ,   ,   ,ELKINS CODY J.,2021-08-23,2021-09-30,MIN WHIP PAID INTERN - HOUSE P,633.33,2021
,2021 OFFICE OF THE MINORITY WHIP,3,INTERN ALLOWANCES,PERSONNEL COMPENSATION,DETAIL,   ,   ,   ,GATESMAN AUSTIN R.,2021-08-23,2021-09-30,MIN WHIP PAID INTERN - HOUSE P,633.33,2021
,2021 OFFICE OF THE MINORITY WHIP,3,INTERN ALLOWANCES,PERSONNEL COMPENSATION,DETAIL,   ,   ,   ,GUIDRY JR GAVIN M.,2021-08-23,2021-09-30,MIN WHIP PAID INTERN - HOUSE P,633.33,2021
,2021 OFFICE OF THE MINORITY WHIP,3,INTERN ALLOWANCES,PERSONNEL COMPENSATION,DETAIL,   ,   ,   ,HAGIGH DAVIS,2021-08-23,2021-09-30,MIN WHIP PAID INTERN - HOUSE P,633.33,2021
,2021 OFFICE OF THE MINORITY WHIP,3,INTERN ALLOWANCES,PERSONNEL COMPENSATION,DETAIL,   ,   ,   ,MUNROE JACKSON D.,2021-08-23,2021-09-30,MIN WHIP PAID INTERN - HOUSE P,633.33,2021
,2021 OFFICE OF THE MINORITY WHIP,3,INTERN ALLOWANCES,PERSONNEL COMPENSATION,DETAIL,   ,   ,   ,SIMONEAUX HARRISON J.,2021-08-23,2021-09-30,MIN WHIP PAID INTERN - HOUSE P,633.33,2021
,2021 OFFICE OF THE MINORITY WHIP,3,INTERN ALLOWANCES,PERSONNEL COMPENSATION,SUBTOTAL,   ,   ,   ,   ,   ,   ,PERSONNEL COMPENSATION TOTALS:,3799.98,2021
,2021 OFFICE OF THE MINORITY WHIP,3,INTERN ALLOWANCES,PERSONNEL COMPENSATION,SUBTOTAL,   ,   ,   ,   ,   ,   ,INTERN ALLOWANCES TOTALS:,3799.98,2021
,2021 OFFICE OF THE MINORITY WHIP,3,INTERN ALLOWANCES,PERSONNEL COMPENSATION,GRAND TOTAL FOR ORGANIZATION,   ,   ,   ,   ,   ,   ,OFFICE TOTALS: ,3799.98,2021
,2021 DEMOCRATIC CAUCUS,3,GENERAL EXPENDITURES,PERSONNEL COMPENSATION,DETAIL,   ,   ,   ,BRAGIN GIDEON,2021-07-01,2021-09-30,EXECUTIVE DIRECTOR,39999.99,2021
,2021 DEMOCRATIC CAUCUS,3,GENERAL EXPENDITURES,PERSONNEL COMPENSATION,DETAIL,   ,   ,   ,CARRILLO MANUEL J,2021-07-01,2021-09-30,DIRECTOR OF OPERATIONS,28333.33,2021
,2021 DEMOCRATIC CAUCUS,3,GENERAL EXPENDITURES,PERSONNEL COMPENSATION,DETAIL,   ,   ,   ,COOPER SAMARIAH A.,2021-07-01,2021-07-08,DIGITAL ASSISTANT,888.89,2021
,2021 DEMOCRATIC CAUCUS,3,GENERAL EXPENDITURES,PERSONNEL COMPENSATION,DETAIL,   ,   ,   ,CORNELL REBECCA T.,2021-07-01,2021-09-30,CHIEF OF STAFF TO THE VICE CHA,20000.01,2021
,2021 DEMOCRATIC CAUCUS,3,GENERAL EXPENDITURES,PERSONNEL COMPENSATION,DETAIL,   ,   ,   ,DAWSON EARNESTINE E,2021-07-01,2021-09-30,DIGITAL DIRECTOR & ADVISOR TO,24999.99,2021
,2021 DEMOCRATIC CAUCUS,3,GENERAL EXPENDITURES,PERSONNEL COMPENSATION,DETAIL,   ,   ,   ,DESOWITZ-LEIBELL ZACHARY J,2021-07-01,2021-09-30,DEPUTY PRESS SECRETARY,16250.01,2021
,2021 DEMOCRATIC CAUCUS,3,GENERAL EXPENDITURES,PERSONNEL COMPENSATION,DETAIL,   ,   ,   ,DICKERSON KALISE S.,2021-07-01,2021-09-30,SYSTEM ADMINISTRATOR,16250.01,2021
,2021 DEMOCRATIC CAUCUS,3,GENERAL EXPENDITURES,PERSONNEL COMPENSATION,DETAIL,   ,   ,   ,GIULINO DANIELLE M.,2021-07-01,2021-09-30,SHARED EMPLOYEE,4500,2021
,2021 DEMOCRATIC CAUCUS,3,GENERAL EXPENDITURES,PERSONNEL COMPENSATION,DETAIL,   ,   ,   ,HERNANDEZ ITZEL N,2021-07-01,2021-07-31,CAUCUS ASSISTANT,3750,2021
,2021 DEMOCRATIC CAUCUS,3,GENERAL EXPENDITURES,PERSONNEL COMPENSATION,DETAIL,   ,   ,   ,HERNANDEZ ITZEL N,2021-08-01,2021-09-30,OPERATIONS COORDINATOR & MEMBE,8333.34,2021
,2021 DEMOCRATIC CAUCUS,3,GENERAL EXPENDITURES,PERSONNEL COMPENSATION,DETAIL,   ,   ,   ,JACKSON TASIA,2021-07-01,2021-09-30,CHIEF OF STAFF,5124.99,2021
,2021 DEMOCRATIC CAUCUS,3,GENERAL EXPENDITURES,PERSONNEL COMPENSATION,DETAIL,   ,   ,   ,MENSIE ALYSSA D,2021-07-01,2021-09-30,MEMBER SERVICES AND OUTREACH A,16250.01,2021
,2021 DEMOCRATIC CAUCUS,3,GENERAL EXPENDITURES,PERSONNEL COMPENSATION,DETAIL,   ,   ,   ,MORRISON MARIAH A,2021-07-01,2021-09-17,DIGITAL ASSISTANT,10694.45,2021
,2021 DEMOCRATIC CAUCUS,3,GENERAL EXPENDITURES,PERSONNEL COMPENSATION,DETAIL,   ,   ,   ,MUNOZ LOPEZ LAURA,2021-07-01,2021-09-30,MEMBER SERVICES AND OUTREACH A,17000.01,2021
,2021 DEMOCRATIC CAUCUS,3,GENERAL EXPENDITURES,PERSONNEL COMPENSATION,DETAIL,   ,   ,   ,NARAYAN NANDINI K,2021-07-01,2021-09-30,VC MEMBER SERVICES & OUTREACH,16250.01,2021
,2021 DEMOCRATIC CAUCUS,3,GENERAL EXPENDITURES,PERSONNEL COMPENSATION,DETAIL,   ,   ,   ,NELSON JACOB A,2021-07-01,2021-08-02,POLICY ADVISOR,4444.45,2021
,2021 DEMOCRATIC CAUCUS,3,GENERAL EXPENDITURES,PERSONNEL COMPENSATION,DETAIL,   ,   ,   ,NORIEGA-MAY EMILY J,2021-07-01,2021-09-30,DEPUTY EXECUTIVE DIRECTOR,31250.01,2021
,2021 DEMOCRATIC CAUCUS,3,GENERAL EXPENDITURES,PERSONNEL COMPENSATION,DETAIL,   ,   ,   ,ROBINSON TEJAH R,2021-07-01,2021-07-31,DIGITAL ASSISTANT,4166.67,2021
,2021 DEMOCRATIC CAUCUS,3,GENERAL EXPENDITURES,PERSONNEL COMPENSATION,DETAIL,   ,   ,   ,ROBINSON TEJAH R,2021-08-01,2021-09-30,CREATIVE MANAGER,9166.66,2021
,2021 DEMOCRATIC CAUCUS,3,GENERAL EXPENDITURES,PERSONNEL COMPENSATION,DETAIL,   ,   ,   ,SACHSE ANDREW M,2021-07-01,2021-09-30,DEP DIR OF MEMBER SERVICES,19312.5,2021
,2021 DEMOCRATIC CAUCUS,3,GENERAL EXPENDITURES,PERSONNEL COMPENSATION,DETAIL,   ,   ,   ,SCHEUER ALEXANDER J,2021-07-01,2021-07-31,OPERATIONS AND OUTREACH COORDI,4166.67,2021
,2021 DEMOCRATIC CAUCUS,3,GENERAL EXPENDITURES,PERSONNEL COMPENSATION,DETAIL,   ,   ,   ,SCHEUER ALEXANDER J,2021-08-01,2021-09-30,DEPUTY DIRECTOR OF OPERATIONS,10000,2021
,2021 DEMOCRATIC CAUCUS,3,GENERAL EXPENDITURES,PERSONNEL COMPENSATION,DETAIL,   ,   ,   ,SHELDON ELIZABETH C.,2021-07-01,2021-09-30,STAFF ASSISTANT,9999.99,2021
,2021 DEMOCRATIC CAUCUS,3,GENERAL EXPENDITURES,PERSONNEL COMPENSATION,DETAIL,   ,   ,   ,STEPHENSON CHRISTIANA E,2021-07-01,2021-09-30,COMMUNICATIONS DIRECTOR,30416.67,2021
,2021 DEMOCRATIC CAUCUS,3,GENERAL EXPENDITURES,PERSONNEL COMPENSATION,DETAIL,   ,   ,   ,STICKNEY LAKECIA N,2021-07-01,2021-09-30,POLICY AND OUTREACH DIRECTOR,30624.99,2021
,2021 DEMOCRATIC CAUCUS,3,GENERAL EXPENDITURES,PERSONNEL COMPENSATION,DETAIL,   ,   ,   ,WILLIAMS WAYNE K,2021-07-01,2021-09-30,SENIOR POLICY ADVISOR,24999.99,2021
,2021 DEMOCRATIC CAUCUS,3,GENERAL EXPENDITURES,PERSONNEL COMPENSATION,DETAIL,   ,   ,   ,WU TONIA S,2021-07-01,2021-09-30,POLICY ADVISOR,12500.01,2021
,2021 DEMOCRATIC CAUCUS,3,GENERAL EXPENDITURES,PERSONNEL COMPENSATION,SUBTOTAL,   ,   ,   ,   ,   ,   ,PERSONNEL COMPENSATION TOTALS:,419673.65,2021
,2021 DEMOCRATIC CAUCUS,3,GENERAL EXPENDITURES,TRAVEL,DETAIL,2021-07-15,AP,1440831,MITCHELL JOHNA B.,2021-06-07,2021-06-23,PRIVATE AUTO MILEAGE,126,2021
,2021 DEMOCRATIC CAUCUS,3,GENERAL EXPENDITURES,TRAVEL,DETAIL,2021-07-15,AP,1440831,MITCHELL JOHNA B.,2021-06-07,2021-06-07,TAXI/PARKING/TOLLS,9,2021
,2021 DEMOCRATIC CAUCUS,3,GENERAL EXPENDITURES,TRAVEL,DETAIL,2021-07-20,AP,1440842,MANON MATEOS PABLO,2021-06-14,2021-06-14,TAXI/PARKING/TOLLS,5.95,2021
,2021 DEMOCRATIC CAUCUS,3,GENERAL EXPENDITURES,TRAVEL,DETAIL,2021-07-22,AP,1446568,DAWSON EARNESTINE E.,2021-07-19,2021-07-19,TAXI/PARKING/TOLLS,32.28,2021
,2021 DEMOCRATIC CAUCUS,3,GENERAL EXPENDITURES,TRAVEL,DETAIL,2021-07-22,AP,1446570,CARRILLO MANUEL J.,2021-05-17,2021-07-15,TAXI/PARKING/TOLLS,304.34,2021
,2021 DEMOCRATIC CAUCUS,3,GENERAL EXPENDITURES,TRAVEL,DETAIL,2021-07-26,AP,1446999,MANON MATEOS PABLO,2021-06-13,2021-07-01,PRIVATE AUTO MILEAGE,500.64,2021
,2021 DEMOCRATIC CAUCUS,3,GENERAL EXPENDITURES,TRAVEL,DETAIL,2021-07-30,AP,1448459,CARRILLO MANUEL J.,2021-06-29,2021-07-21,TAXI/PARKING/TOLLS,510.65,2021
,2021 DEMOCRATIC CAUCUS,3,GENERAL EXPENDITURES,TRAVEL,DETAIL,2021-08-03,AP,1448710,MAUPIN KENADI,2021-07-26,2021-07-26,TAXI/PARKING/TOLLS,153.7,2021
,2021 DEMOCRATIC CAUCUS,3,GENERAL EXPENDITURES,TRAVEL,DETAIL,2021-08-05,AP,1450598,RODRIGUEZ JENNIFER,2021-07-30,2021-07-30,TAXI/PARKING/TOLLS,121.5,2021
,2021 DEMOCRATIC CAUCUS,3,GENERAL EXPENDITURES,TRAVEL,DETAIL,2021-08-23,AP,1452988,CITI PCARD-LYFT   CANCEL FEE,2021-05-18,2021-05-18,TAXI/PARKING/TOLLS,5,2021
,2021 DEMOCRATIC CAUCUS,3,GENERAL EXPENDITURES,TRAVEL,DETAIL,2021-08-30,AP,1459239,DAWSON EARNESTINE E.,2021-08-09,2021-08-23,TAXI/PARKING/TOLLS,108.45,2021
,2021 DEMOCRATIC CAUCUS,3,GENERAL EXPENDITURES,TRAVEL,DETAIL,2021-09-03,AP,1460486,CITI PCARD-LYFT    RIDE FRI 5PM,2021-07-16,2021-07-16,TAXI/PARKING/TOLLS,26.99,2021
,2021 DEMOCRATIC CAUCUS,3,GENERAL EXPENDITURES,TRAVEL,DETAIL,2021-09-03,AP,1460486,CITI PCARD-LYFT    RIDE FRI 8AM,2021-07-16,2021-07-16,TAXI/PARKING/TOLLS,16.63,2021
,2021 DEMOCRATIC CAUCUS,3,GENERAL EXPENDITURES,TRAVEL,DETAIL,2021-09-03,AP,1460486,CITI PCARD-LYFT    RIDE FRI 8AM,2021-07-23,2021-07-23,TAXI/PARKING/TOLLS,15.82,2021
,2021 DEMOCRATIC CAUCUS,3,GENERAL EXPENDITURES,TRAVEL,DETAIL,2021-09-03,AP,1460486,CITI PCARD-LYFT    RIDE MON 6PM,2021-07-19,2021-07-19,TAXI/PARKING/TOLLS,18.65,2021
,2021 DEMOCRATIC CAUCUS,3,GENERAL EXPENDITURES,TRAVEL,DETAIL,2021-09-03,AP,1460486,CITI PCARD-LYFT    RIDE MON 8AM,2021-07-19,2021-07-19,TAXI/PARKING/TOLLS,22.99,2021
,2021 DEMOCRATIC CAUCUS,3,GENERAL EXPENDITURES,TRAVEL,DETAIL,2021-09-03,AP,1460486,CITI PCARD-LYFT    RIDE THU 7PM,2021-07-22,2021-07-22,TAXI/PARKING/TOLLS,25.85,2021
,2021 DEMOCRATIC CAUCUS,3,GENERAL EXPENDITURES,TRAVEL,DETAIL,2021-09-03,AP,1460486,CITI PCARD-LYFT    RIDE THU 8AM,2021-07-22,2021-07-22,TAXI/PARKING/TOLLS,16.99,2021
,2021 DEMOCRATIC CAUCUS,3,GENERAL EXPENDITURES,TRAVEL,DETAIL,2021-09-03,AP,1460486,CITI PCARD-LYFT    RIDE TUE 4PM,2021-07-20,2021-07-20,TAXI/PARKING/TOLLS,19.95,2021
,2021 DEMOCRATIC CAUCUS,3,GENERAL EXPENDITURES,TRAVEL,DETAIL,2021-09-03,AP,1460486,CITI PCARD-LYFT    RIDE WED 8AM,2021-07-21,2021-07-21,TAXI/PARKING/TOLLS,19.88,2021
,2021 DEMOCRATIC CAUCUS,3,GENERAL EXPENDITURES,TRAVEL,SUBTOTAL,   ,   ,   ,   ,   ,   ,TRAVEL TOTALS:,2061.26,2021
,2021 DEMOCRATIC CAUCUS,3,GENERAL EXPENDITURES,RENT  COMMUNICATION  UTILITIES,DETAIL,2021-07-21,AP,1439115,CITI PCARD-ARLINGTON COUNTY PARKS CC,2021-04-28,2021-04-28,TEMPORARY SPACE RENTAL,8.5,2021
,2021 DEMOCRATIC CAUCUS,3,GENERAL EXPENDITURES,RENT  COMMUNICATION  UTILITIES,DETAIL,2021-07-21,AP,1440825,TRITTIN EMMA H.,2021-06-15,2021-06-15,POSTAGE / COURIER / BOX RENTAL,54.13,2021
,2021 DEMOCRATIC CAUCUS,3,GENERAL EXPENDITURES,RENT  COMMUNICATION  UTILITIES,DETAIL,2021-07-22,GL,EMS0108073, ,2021-06-01,2021-06-30,DC TELECOM EQUIP (TRANSFER),552,2021
,2021 DEMOCRATIC CAUCUS,3,GENERAL EXPENDITURES,RENT  COMMUNICATION  UTILITIES,DETAIL,2021-07-22,GL,EMS0108073, ,2021-06-01,2021-06-30,DC TELECOM SERV (TRANSFER),289,2021
,2021 DEMOCRATIC CAUCUS,3,GENERAL EXPENDITURES,RENT  COMMUNICATION  UTILITIES,DETAIL,2021-07-22,GL,EMS0108073, ,2021-06-01,2021-06-30,DC TELECOM TOLLS (TRANSFER),5637,2021
,2021 DEMOCRATIC CAUCUS,3,GENERAL EXPENDITURES,RENT  COMMUNICATION  UTILITIES,DETAIL,2021-07-26,GL,MED0108155, ,2021-06-29,2021-06-29,HIR GRAPHICS (TRANSFER),18,2021
,2021 DEMOCRATIC CAUCUS,3,GENERAL EXPENDITURES,RENT  COMMUNICATION  UTILITIES,DETAIL,2021-08-23,AP,1452988,CITI PCARD-USPS PO 1050091422,2021-04-30,2021-04-30,POSTAGE / COURIER / BOX RENTAL,20.4,2021
,2021 DEMOCRATIC CAUCUS,3,GENERAL EXPENDITURES,RENT  COMMUNICATION  UTILITIES,DETAIL,2021-08-26,GL,MED0108954, ,2021-07-26,2021-07-26,HIR GRAPHICS (TRANSFER),50,2021
,2021 DEMOCRATIC CAUCUS,3,GENERAL EXPENDITURES,RENT  COMMUNICATION  UTILITIES,DETAIL,2021-08-30,GL,EMS0109045, ,2021-07-01,2021-07-31,DC TELECOM EQUIP (TRANSFER),72,2021
,2021 DEMOCRATIC CAUCUS,3,GENERAL EXPENDITURES,RENT  COMMUNICATION  UTILITIES,DETAIL,2021-08-30,GL,EMS0109045, ,2021-07-01,2021-07-31,DC TELECOM SERV (TRANSFER),296.75,2021
,2021 DEMOCRATIC CAUCUS,3,GENERAL EXPENDITURES,RENT  COMMUNICATION  UTILITIES,DETAIL,2021-08-30,GL,EMS0109045, ,2021-07-01,2021-07-31,DC TELECOM TOLLS (TRANSFER),2302.48,2021
,2021 DEMOCRATIC CAUCUS,3,GENERAL EXPENDITURES,RENT  COMMUNICATION  UTILITIES,DETAIL,2021-09-27,GL,EMS0109741, ,2021-08-01,2021-08-31,DC TELECOM EQUIP (TRANSFER),72,2021
,2021 DEMOCRATIC CAUCUS,3,GENERAL EXPENDITURES,RENT  COMMUNICATION  UTILITIES,DETAIL,2021-09-27,GL,EMS0109741, ,2021-08-01,2021-08-31,DC TELECOM SERV (TRANSFER),296.75,2021
,2021 DEMOCRATIC CAUCUS,3,GENERAL EXPENDITURES,RENT  COMMUNICATION  UTILITIES,DETAIL,2021-09-27,GL,EMS0109741, ,2021-08-01,2021-08-31,DC TELECOM TOLLS (TRANSFER),2695.59,2021
,2021 DEMOCRATIC CAUCUS,3,GENERAL EXPENDITURES,RENT  COMMUNICATION  UTILITIES,SUBTOTAL,   ,   ,   ,   ,   ,   ,RENT  COMMUNICATION  UTILITIES TOTALS:,12364.6,2021
,2021 DEMOCRATIC CAUCUS,3,GENERAL EXPENDITURES,OTHER SERVICES,DETAIL,2021-07-21,AP,1439115,CITI PCARD-APPLE.COM/BILL,2021-04-20,2021-05-20,TECHNOLOGY SERVICE CONTRACTS,1.05,2021
,2021 DEMOCRATIC CAUCUS,3,GENERAL EXPENDITURES,OTHER SERVICES,DETAIL,2021-07-21,AP,1439115,CITI PCARD-DRYY GARMENT CARE,2021-06-21,2021-06-21,LAUNDRY SERVICES,215.4,2021
,2021 DEMOCRATIC CAUCUS,3,GENERAL EXPENDITURES,OTHER SERVICES,DETAIL,2021-07-21,AP,1439115,CITI PCARD-GOOGLE  Google Storage,2021-06-08,2021-07-08,TECHNOLOGY SERVICE CONTRACTS,2.11,2021
,2021 DEMOCRATIC CAUCUS,3,GENERAL EXPENDITURES,OTHER SERVICES,DETAIL,2021-08-27,AP,1459682,CITI PCARD-DROPBOX JL2MYK8W22TY,2021-07-24,2021-08-24,TECHNOLOGY SERVICE CONTRACTS,12.71,2021
,2021 DEMOCRATIC CAUCUS,3,GENERAL EXPENDITURES,OTHER SERVICES,DETAIL,2021-08-27,AP,1459682,CITI PCARD-DRYY GARMENT CARE,2021-06-28,2021-06-28,LAUNDRY SERVICES,35.9,2021
,2021 DEMOCRATIC CAUCUS,3,GENERAL EXPENDITURES,OTHER SERVICES,DETAIL,2021-08-27,AP,1459682,CITI PCARD-DRYY GARMENT CARE,2021-07-26,2021-07-26,LAUNDRY SERVICES,89.75,2021
,2021 DEMOCRATIC CAUCUS,3,GENERAL EXPENDITURES,OTHER SERVICES,DETAIL,2021-09-03,AP,1460486,CITI PCARD-DROPBOX ZQCHM8C9953Y,2021-06-24,2021-07-24,TECHNOLOGY SERVICE CONTRACTS,12.71,2021
,2021 DEMOCRATIC CAUCUS,3,GENERAL EXPENDITURES,OTHER SERVICES,DETAIL,2021-09-15,AP,1465313,CITIBANK,2021-07-25,2021-08-25,WEB DEV HST EMAIL & RLTD SERV,47.7,2021
,2021 DEMOCRATIC CAUCUS,3,GENERAL EXPENDITURES,OTHER SERVICES,SUBTOTAL,   ,   ,   ,   ,   ,   ,OTHER SERVICES TOTALS:,417.33,2021
,2021 DEMOCRATIC CAUCUS,3,GENERAL EXPENDITURES,SUPPLIES AND MATERIALS,DETAIL,2021-07-01,AP,1436741,IMPACTOFFICE,2021-06-01,2021-06-15,WATER,19.26,2021
,2021 DEMOCRATIC CAUCUS,3,GENERAL EXPENDITURES,SUPPLIES AND MATERIALS,DETAIL,2021-07-01,AP,1436741,IMPACTOFFICE,2021-06-01,2021-06-15,FOOD & BEVERAGE,362.58,2021
,2021 DEMOCRATIC CAUCUS,3,GENERAL EXPENDITURES,SUPPLIES AND MATERIALS,DETAIL,2021-07-01,AP,1436741,IMPACTOFFICE,2021-06-01,2021-06-15,OFFICE SUPPLIES (OUTSIDE),75.39,2021
,2021 DEMOCRATIC CAUCUS,3,GENERAL EXPENDITURES,SUPPLIES AND MATERIALS,DETAIL,2021-07-15,AP,1440804,CORNELL REBECCA T.,2021-06-10,2021-06-10,PUBLICATIONS/REFERENCE MAT'L,20.35,2021
,2021 DEMOCRATIC CAUCUS,3,GENERAL EXPENDITURES,SUPPLIES AND MATERIALS,DETAIL,2021-07-21,AP,1439115,CITI PCARD-18TH STREET FRAMING,2021-05-11,2021-05-11,HABITATION EXPENSE,525.7,2021
,2021 DEMOCRATIC CAUCUS,3,GENERAL EXPENDITURES,SUPPLIES AND MATERIALS,DETAIL,2021-07-21,AP,1439115,CITI PCARD-AMAZON.COM 2L9ND6N52 AMZN,2021-05-06,2021-05-10,OFFICE SUPPLIES (OUTSIDE),408.89,2021
,2021 DEMOCRATIC CAUCUS,3,GENERAL EXPENDITURES,SUPPLIES AND MATERIALS,DETAIL,2021-07-21,AP,1439115,CITI PCARD-AMZN Mktp US 2L86P3YH1,2021-05-13,2021-05-13,OFFICE SUPPLIES (OUTSIDE),53.97,2021
,2021 DEMOCRATIC CAUCUS,3,GENERAL EXPENDITURES,SUPPLIES AND MATERIALS,DETAIL,2021-07-21,AP,1439115,CITI PCARD-AMZN Mktp US 2R6D93O41,2021-05-13,2021-05-13,HABITATION EXPENSE,137.99,2021
,2021 DEMOCRATIC CAUCUS,3,GENERAL EXPENDITURES,SUPPLIES AND MATERIALS,DETAIL,2021-07-21,AP,1439115,CITI PCARD-AMZN Mktp US S50HQ8TX3,2021-04-30,2021-04-30,OFFICE SUPPLIES (OUTSIDE),186.19,2021
,2021 DEMOCRATIC CAUCUS,3,GENERAL EXPENDITURES,SUPPLIES AND MATERIALS,DETAIL,2021-07-21,AP,1439115,CITI PCARD-APPLE.COM/US,2021-05-03,2021-05-03,OFFICE SUPPLIES (OUTSIDE),220.43,2021
,2021 DEMOCRATIC CAUCUS,3,GENERAL EXPENDITURES,SUPPLIES AND MATERIALS,DETAIL,2021-07-21,AP,1439115,CITI PCARD-APPLE.COM/US,2021-05-21,2021-05-21,OFFICE SUPPLIES (OUTSIDE),652.96,2021
,2021 DEMOCRATIC CAUCUS,3,GENERAL EXPENDITURES,SUPPLIES AND MATERIALS,DETAIL,2021-07-21,AP,1439115,CITI PCARD-Amazon.com 2R5SH5TF1,2021-05-17,2021-05-17,OFFICE SUPPLIES (OUTSIDE),107.4,2021
,2021 DEMOCRATIC CAUCUS,3,GENERAL EXPENDITURES,SUPPLIES AND MATERIALS,DETAIL,2021-07-21,AP,1439115,CITI PCARD-B&H PHOTO 800-606-6969,2021-04-22,2021-04-22,OFFICE SUPPLIES (OUTSIDE),2042.47,2021
,2021 DEMOCRATIC CAUCUS,3,GENERAL EXPENDITURES,SUPPLIES AND MATERIALS,DETAIL,2021-07-21,AP,1439115,CITI PCARD-COSTCO WHSE #0233,2021-02-22,2021-02-22,FOOD & BEVERAGE,456.39,2021
,2021 DEMOCRATIC CAUCUS,3,GENERAL EXPENDITURES,SUPPLIES AND MATERIALS,DETAIL,2021-07-21,AP,1439115,CITI PCARD-DISTRICT TACO 1003 CATERI,2021-04-14,2021-04-14,FOOD & BEVERAGE,1702.9,2021
,2021 DEMOCRATIC CAUCUS,3,GENERAL EXPENDITURES,SUPPLIES AND MATERIALS,DETAIL,2021-07-21,AP,1439115,CITI PCARD-DISTRICT TACO 1003 CATERI,2021-05-13,2021-05-13,FOOD & BEVERAGE,2371.5,2021
,2021 DEMOCRATIC CAUCUS,3,GENERAL EXPENDITURES,SUPPLIES AND MATERIALS,DETAIL,2021-07-21,AP,1439115,CITI PCARD-EIG CONSTANTCONTACT.COM,2021-04-25,2021-04-25,PUBLICATIONS/REFERENCE MAT'L,47.7,2021
,2021 DEMOCRATIC CAUCUS,3,GENERAL EXPENDITURES,SUPPLIES AND MATERIALS,DETAIL,2021-07-21,AP,1439115,CITI PCARD-EIG CONSTANTCONTACT.COM,2021-05-25,2021-05-25,PUBLICATIONS/REFERENCE MAT'L,47.7,2021
,2021 DEMOCRATIC CAUCUS,3,GENERAL EXPENDITURES,SUPPLIES AND MATERIALS,DETAIL,2021-07-21,AP,1439115,CITI PCARD-ENVATO,2021-04-15,2021-05-15,SOFTWARE  LESS THAN  $500,33,2021
,2021 DEMOCRATIC CAUCUS,3,GENERAL EXPENDITURES,SUPPLIES AND MATERIALS,DETAIL,2021-07-21,AP,1439115,CITI PCARD-ENVATO,2021-05-15,2021-06-15,SOFTWARE  LESS THAN  $500,33,2021
,2021 DEMOCRATIC CAUCUS,3,GENERAL EXPENDITURES,SUPPLIES AND MATERIALS,DETAIL,2021-07-21,AP,1439115,CITI PCARD-GRAMMARLY COCVLD1QH,2021-06-04,2022-06-04,SOFTWARE  LESS THAN  $500,144,2021
,2021 DEMOCRATIC CAUCUS,3,GENERAL EXPENDITURES,SUPPLIES AND MATERIALS,DETAIL,2021-07-21,AP,1439115,CITI PCARD-IKEA COLLEGE PARK,2021-05-16,2021-05-16,HABITATION EXPENSE,439.73,2021
,2021 DEMOCRATIC CAUCUS,3,GENERAL EXPENDITURES,SUPPLIES AND MATERIALS,DETAIL,2021-07-21,AP,1439115,CITI PCARD-NANDO S PERI PERI THE YAR,2021-05-21,2021-05-21,FOOD & BEVERAGE,540.5,2021
,2021 DEMOCRATIC CAUCUS,3,GENERAL EXPENDITURES,SUPPLIES AND MATERIALS,DETAIL,2021-07-21,AP,1439115,CITI PCARD-STREAMYARD.COM,2021-04-15,2021-05-15,SOFTWARE  LESS THAN  $500,49,2021
,2021 DEMOCRATIC CAUCUS,3,GENERAL EXPENDITURES,SUPPLIES AND MATERIALS,DETAIL,2021-07-21,AP,1439115,CITI PCARD-STREAMYARD.COM,2021-05-15,2021-06-15,SOFTWARE  LESS THAN  $500,49,2021
,2021 DEMOCRATIC CAUCUS,3,GENERAL EXPENDITURES,SUPPLIES AND MATERIALS,DETAIL,2021-07-21,AP,1439115,CITI PCARD-TEAISM PENN QUARTER,2021-06-14,2021-06-14,FOOD & BEVERAGE,2375.5,2021
,2021 DEMOCRATIC CAUCUS,3,GENERAL EXPENDITURES,SUPPLIES AND MATERIALS,DETAIL,2021-07-21,AP,1439115,CITI PCARD-TRADER JOE'S #620 QPS,2021-02-10,2021-02-10,FOOD & BEVERAGE,16.99,2021
,2021 DEMOCRATIC CAUCUS,3,GENERAL EXPENDITURES,SUPPLIES AND MATERIALS,DETAIL,2021-07-21,AP,1439115,CITI PCARD-TRINT,2021-06-16,2021-07-16,SOFTWARE  LESS THAN  $500,75,2021
,2021 DEMOCRATIC CAUCUS,3,GENERAL EXPENDITURES,SUPPLIES AND MATERIALS,DETAIL,2021-07-21,AP,1439115,CITI PCARD-US SENATE     95202602,2021-06-15,2021-06-15,FOOD & BEVERAGE,3943.31,2021
,2021 DEMOCRATIC CAUCUS,3,GENERAL EXPENDITURES,SUPPLIES AND MATERIALS,DETAIL,2021-07-21,AP,1439115,CITI PCARD-US SENATE     95202602,2021-06-23,2021-06-23,FOOD & BEVERAGE,2982.13,2021
,2021 DEMOCRATIC CAUCUS,3,GENERAL EXPENDITURES,SUPPLIES AND MATERIALS,DETAIL,2021-07-22,AP,1446568,DAWSON EARNESTINE E.,2021-07-20,2021-07-20,OFFICE SUPPLIES (OUTSIDE),276.46,2021
,2021 DEMOCRATIC CAUCUS,3,GENERAL EXPENDITURES,SUPPLIES AND MATERIALS,DETAIL,2021-07-23,AP,1447191,STICKNEY LAKECIA N.,2021-02-22,2021-02-22,FOOD & BEVERAGE,43.06,2021
,2021 DEMOCRATIC CAUCUS,3,GENERAL EXPENDITURES,SUPPLIES AND MATERIALS,DETAIL,2021-07-28,AP,1448118,READYREFRESH BY NESTLE,2021-06-30,2021-06-30,WATER,106.84,2021
,2021 DEMOCRATIC CAUCUS,3,GENERAL EXPENDITURES,SUPPLIES AND MATERIALS,DETAIL,2021-07-31,GL,RMS0108347, ,2021-07-01,2021-07-31,OFFICE SUPPLY (TRANSFER),70.34,2021
,2021 DEMOCRATIC CAUCUS,3,GENERAL EXPENDITURES,SUPPLIES AND MATERIALS,DETAIL,2021-08-05,AP,1450608,SCHEUER ALEXANDER J.,2021-07-28,2021-07-28,FOOD & BEVERAGE,173.5,2021
,2021 DEMOCRATIC CAUCUS,3,GENERAL EXPENDITURES,SUPPLIES AND MATERIALS,DETAIL,2021-08-23,AP,1452988,CITI PCARD-2CO.COM TELESTREAM.NET,2021-04-20,2022-04-20,SOFTWARE  LESS THAN  $500,104.94,2021
,2021 DEMOCRATIC CAUCUS,3,GENERAL EXPENDITURES,SUPPLIES AND MATERIALS,DETAIL,2021-08-23,AP,1452988,CITI PCARD-AMZN Mktp US 212Z97131,2021-06-15,2021-06-15,OFFICE SUPPLIES (OUTSIDE),111.89,2021
,2021 DEMOCRATIC CAUCUS,3,GENERAL EXPENDITURES,SUPPLIES AND MATERIALS,DETAIL,2021-08-23,AP,1452988,CITI PCARD-AMZN Mktp US 2R2X14L02,2021-05-23,2021-05-23,OFFICE SUPPLIES (OUTSIDE),19.99,2021
,2021 DEMOCRATIC CAUCUS,3,GENERAL EXPENDITURES,SUPPLIES AND MATERIALS,DETAIL,2021-08-23,AP,1452988,CITI PCARD-AMZN Mktp US 2R3B07UG2,2021-06-01,2021-06-01,FOOD & BEVERAGE,106.54,2021
,2021 DEMOCRATIC CAUCUS,3,GENERAL EXPENDITURES,SUPPLIES AND MATERIALS,DETAIL,2021-08-23,AP,1452988,CITI PCARD-AMZN Mktp US 2R51A3IP0,2021-06-01,2021-06-01,OFFICE SUPPLIES (OUTSIDE),72.76,2021
,2021 DEMOCRATIC CAUCUS,3,GENERAL EXPENDITURES,SUPPLIES AND MATERIALS,DETAIL,2021-08-23,AP,1452988,CITI PCARD-AMZN Mktp US 2X8Q96V61,2021-06-01,2021-06-01,OFFICE SUPPLIES (OUTSIDE),97.14,2021
,2021 DEMOCRATIC CAUCUS,3,GENERAL EXPENDITURES,SUPPLIES AND MATERIALS,DETAIL,2021-08-23,AP,1452988,CITI PCARD-APPLE.COM/US,2021-06-15,2021-06-15,OFFICE SUPPLIES (OUTSIDE),4486.98,2021
,2021 DEMOCRATIC CAUCUS,3,GENERAL EXPENDITURES,SUPPLIES AND MATERIALS,DETAIL,2021-08-23,AP,1452988,CITI PCARD-BEST BUY      00002766,2021-06-05,2021-06-05,OFFICE SUPPLIES (OUTSIDE),149.98,2021
,2021 DEMOCRATIC CAUCUS,3,GENERAL EXPENDITURES,SUPPLIES AND MATERIALS,DETAIL,2021-08-23,AP,1452988,CITI PCARD-BEST BUY MHT  00004937,2021-06-07,2021-06-07,OFFICE SUPPLIES (OUTSIDE),24.99,2021
,2021 DEMOCRATIC CAUCUS,3,GENERAL EXPENDITURES,SUPPLIES AND MATERIALS,DETAIL,2021-08-23,AP,1452988,CITI PCARD-ENVATO,2021-06-15,2021-07-15,SOFTWARE  LESS THAN  $500,33,2021
,2021 DEMOCRATIC CAUCUS,3,GENERAL EXPENDITURES,SUPPLIES AND MATERIALS,DETAIL,2021-08-23,AP,1452988,CITI PCARD-HARRISTEETER #383,2021-05-13,2021-05-13,FOOD & BEVERAGE,252.33,2021
,2021 DEMOCRATIC CAUCUS,3,GENERAL EXPENDITURES,SUPPLIES AND MATERIALS,DETAIL,2021-08-23,AP,1452988,CITI PCARD-HARRISTEETER #383,2021-06-11,2021-06-11,FOOD & BEVERAGE,197.08,2021
,2021 DEMOCRATIC CAUCUS,3,GENERAL EXPENDITURES,SUPPLIES AND MATERIALS,DETAIL,2021-08-23,AP,1452988,CITI PCARD-POTBELLY #256,2021-06-16,2021-06-16,FOOD & BEVERAGE,756,2021
,2021 DEMOCRATIC CAUCUS,3,GENERAL EXPENDITURES,SUPPLIES AND MATERIALS,DETAIL,2021-08-23,AP,1452988,CITI PCARD-STREAMYARD.COM,2021-06-15,2021-07-15,SOFTWARE  LESS THAN  $500,49,2021
,2021 DEMOCRATIC CAUCUS,3,GENERAL EXPENDITURES,SUPPLIES AND MATERIALS,DETAIL,2021-08-25,AP,1455410,READYREFRESH BY NESTLE,2021-07-31,2021-07-31,WATER,80.88,2021
,2021 DEMOCRATIC CAUCUS,3,GENERAL EXPENDITURES,SUPPLIES AND MATERIALS,DETAIL,2021-08-27,AP,1459682,CITI PCARD-AMAZON.COM 298WW8JG2 AMZN,2021-07-02,2021-07-02,OFFICE SUPPLIES (OUTSIDE),24.98,2021
,2021 DEMOCRATIC CAUCUS,3,GENERAL EXPENDITURES,SUPPLIES AND MATERIALS,DETAIL,2021-08-27,AP,1459682,CITI PCARD-AMAZON.COM 2E38045A2 AMZN,2021-07-23,2021-07-23,OFFICE SUPPLIES (OUTSIDE),973.67,2021
,2021 DEMOCRATIC CAUCUS,3,GENERAL EXPENDITURES,SUPPLIES AND MATERIALS,DETAIL,2021-08-27,AP,1459682,CITI PCARD-AMZN Mktp US 2922J0T22,2021-07-02,2021-07-02,HABITATION EXPENSE,239.51,2021
,2021 DEMOCRATIC CAUCUS,3,GENERAL EXPENDITURES,SUPPLIES AND MATERIALS,DETAIL,2021-08-27,AP,1459682,CITI PCARD-AMZN Mktp US 297M88MZ2,2021-07-07,2021-07-07,OFFICE SUPPLIES (OUTSIDE),248.99,2021
,2021 DEMOCRATIC CAUCUS,3,GENERAL EXPENDITURES,SUPPLIES AND MATERIALS,DETAIL,2021-08-27,AP,1459682,CITI PCARD-AMZN Mktp US 2985U2RJ1,2021-07-07,2021-07-07,OFFICE SUPPLIES (OUTSIDE),96.07,2021
,2021 DEMOCRATIC CAUCUS,3,GENERAL EXPENDITURES,SUPPLIES AND MATERIALS,DETAIL,2021-08-27,AP,1459682,CITI PCARD-AMZN Mktp US 2E2RI9AF2,2021-07-20,2021-07-20,OFFICE SUPPLIES (OUTSIDE),111.89,2021
,2021 DEMOCRATIC CAUCUS,3,GENERAL EXPENDITURES,SUPPLIES AND MATERIALS,DETAIL,2021-08-27,AP,1459682,CITI PCARD-AMZN Mktp US 2E30P1UH1,2021-07-20,2021-07-20,OFFICE SUPPLIES (OUTSIDE),29.99,2021
,2021 DEMOCRATIC CAUCUS,3,GENERAL EXPENDITURES,SUPPLIES AND MATERIALS,DETAIL,2021-08-27,AP,1459682,CITI PCARD-AMZN Mktp US 2E92U5F81,2021-07-07,2021-07-07,OFFICE SUPPLIES (OUTSIDE),12.89,2021
,2021 DEMOCRATIC CAUCUS,3,GENERAL EXPENDITURES,SUPPLIES AND MATERIALS,DETAIL,2021-08-27,AP,1459682,CITI PCARD-CATERCOW  ORDER 105885,2021-07-21,2021-07-21,FOOD & BEVERAGE,859.5,2021
,2021 DEMOCRATIC CAUCUS,3,GENERAL EXPENDITURES,SUPPLIES AND MATERIALS,DETAIL,2021-08-27,AP,1459682,CITI PCARD-CATERING AUBONPAIN 970,2021-07-19,2021-07-19,FOOD & BEVERAGE,271.59,2021
,2021 DEMOCRATIC CAUCUS,3,GENERAL EXPENDITURES,SUPPLIES AND MATERIALS,DETAIL,2021-08-27,AP,1459682,CITI PCARD-D J WALL-ST-JOURNAL,2021-07-23,2021-08-23,PUBLICATIONS/REFERENCE MAT'L,45.57,2021
,2021 DEMOCRATIC CAUCUS,3,GENERAL EXPENDITURES,SUPPLIES AND MATERIALS,DETAIL,2021-08-27,AP,1459682,CITI PCARD-DISTRICT TACO 1003 CATERI,2021-07-21,2021-07-21,FOOD & BEVERAGE,704,2021
,2021 DEMOCRATIC CAUCUS,3,GENERAL EXPENDITURES,SUPPLIES AND MATERIALS,DETAIL,2021-08-27,AP,1459682,CITI PCARD-EIG CONSTANTCONTACT.COM,2021-07-25,2021-08-25,PUBLICATIONS/REFERENCE MAT'L,47.7,2021
,2021 DEMOCRATIC CAUCUS,3,GENERAL EXPENDITURES,SUPPLIES AND MATERIALS,DETAIL,2021-08-27,AP,1459682,CITI PCARD-ENVATO,2021-07-15,2021-08-15,SOFTWARE  LESS THAN  $500,33,2021
,2021 DEMOCRATIC CAUCUS,3,GENERAL EXPENDITURES,SUPPLIES AND MATERIALS,DETAIL,2021-08-27,AP,1459682,CITI PCARD-HARRISTEETER #383,2021-06-28,2021-06-28,FOOD & BEVERAGE,17.77,2021
,2021 DEMOCRATIC CAUCUS,3,GENERAL EXPENDITURES,SUPPLIES AND MATERIALS,DETAIL,2021-08-27,AP,1459682,CITI PCARD-HARRISTEETER #383,2021-07-19,2021-07-19,FOOD & BEVERAGE,146.23,2021
,2021 DEMOCRATIC CAUCUS,3,GENERAL EXPENDITURES,SUPPLIES AND MATERIALS,DETAIL,2021-08-27,AP,1459682,CITI PCARD-STREAMYARD.COM,2021-07-15,2021-08-15,SOFTWARE  LESS THAN  $500,49,2021
,2021 DEMOCRATIC CAUCUS,3,GENERAL EXPENDITURES,SUPPLIES AND MATERIALS,DETAIL,2021-08-27,AP,1459682,CITI PCARD-TEAISM PENN QUARTER,2021-06-30,2021-06-30,FOOD & BEVERAGE,504,2021
,2021 DEMOCRATIC CAUCUS,3,GENERAL EXPENDITURES,SUPPLIES AND MATERIALS,DETAIL,2021-08-27,AP,1459682,CITI PCARD-THE HOME DEPOT #2583,2021-06-30,2021-06-30,OFFICE SUPPLIES (OUTSIDE),13.25,2021
,2021 DEMOCRATIC CAUCUS,3,GENERAL EXPENDITURES,SUPPLIES AND MATERIALS,DETAIL,2021-08-27,AP,1459682,CITI PCARD-TRINT,2021-07-16,2021-08-16,SOFTWARE  LESS THAN  $500,75,2021
,2021 DEMOCRATIC CAUCUS,3,GENERAL EXPENDITURES,SUPPLIES AND MATERIALS,DETAIL,2021-08-27,AP,1459682,CITI PCARD-US SENATE     95202602,2021-06-29,2021-06-29,FOOD & BEVERAGE,2512.5,2021
,2021 DEMOCRATIC CAUCUS,3,GENERAL EXPENDITURES,SUPPLIES AND MATERIALS,DETAIL,2021-08-27,AP,1459682,CITI PCARD-US SENATE CAFE,2021-07-20,2021-07-20,FOOD & BEVERAGE,2555.63,2021
,2021 DEMOCRATIC CAUCUS,3,GENERAL EXPENDITURES,SUPPLIES AND MATERIALS,DETAIL,2021-08-30,AP,1459239,DAWSON EARNESTINE E.,2021-08-21,2021-08-21,HABITATION EXPENSE,84.79,2021
,2021 DEMOCRATIC CAUCUS,3,GENERAL EXPENDITURES,SUPPLIES AND MATERIALS,DETAIL,2021-08-30,AP,1459239,DAWSON EARNESTINE E.,2021-08-17,2021-08-17,OFFICE SUPPLIES (OUTSIDE),53.96,2021
,2021 DEMOCRATIC CAUCUS,3,GENERAL EXPENDITURES,SUPPLIES AND MATERIALS,DETAIL,2021-08-31,GL,RMS0109142, ,2021-08-01,2021-08-31,OFFICE SUPPLY (TRANSFER),143.53,2021
,2021 DEMOCRATIC CAUCUS,3,GENERAL EXPENDITURES,SUPPLIES AND MATERIALS,DETAIL,2021-09-03,AP,1460486,CITI PCARD-AMZN Mktp US,2021-06-01,2021-06-01,FOOD & BEVERAGE,-106.54,2021
,2021 DEMOCRATIC CAUCUS,3,GENERAL EXPENDITURES,SUPPLIES AND MATERIALS,DETAIL,2021-09-03,AP,1460486,CITI PCARD-AMZN Mktp US 291T351K2,2021-07-07,2021-07-07,OFFICE SUPPLIES (OUTSIDE),31.74,2021
,2021 DEMOCRATIC CAUCUS,3,GENERAL EXPENDITURES,SUPPLIES AND MATERIALS,DETAIL,2021-09-03,AP,1460486,CITI PCARD-AMZN Mktp US 294306HL0,2021-07-07,2021-07-07,OFFICE SUPPLIES (OUTSIDE),126.43,2021
,2021 DEMOCRATIC CAUCUS,3,GENERAL EXPENDITURES,SUPPLIES AND MATERIALS,DETAIL,2021-09-03,AP,1460486,CITI PCARD-AMZN Mktp US 294GC3IE0,2021-07-07,2021-07-07,OFFICE SUPPLIES (OUTSIDE),51.75,2021
,2021 DEMOCRATIC CAUCUS,3,GENERAL EXPENDITURES,SUPPLIES AND MATERIALS,DETAIL,2021-09-03,AP,1460486,CITI PCARD-AMZN Mktp US 296FS8H80,2021-07-07,2021-07-07,OFFICE SUPPLIES (OUTSIDE),37.98,2021
,2021 DEMOCRATIC CAUCUS,3,GENERAL EXPENDITURES,SUPPLIES AND MATERIALS,DETAIL,2021-09-03,AP,1460486,CITI PCARD-AMZN Mktp US 296V64Q92,2021-07-07,2021-07-07,OFFICE SUPPLIES (OUTSIDE),42.54,2021
,2021 DEMOCRATIC CAUCUS,3,GENERAL EXPENDITURES,SUPPLIES AND MATERIALS,DETAIL,2021-09-03,AP,1460486,CITI PCARD-AMZN Mktp US 2E3H81YH0,2021-07-27,2021-07-27,OFFICE SUPPLIES (OUTSIDE),29.93,2021
,2021 DEMOCRATIC CAUCUS,3,GENERAL EXPENDITURES,SUPPLIES AND MATERIALS,DETAIL,2021-09-03,AP,1460486,CITI PCARD-AMZN Mktp US 2E82F1F71,2021-07-07,2021-07-07,OFFICE SUPPLIES (OUTSIDE),96.57,2021
,2021 DEMOCRATIC CAUCUS,3,GENERAL EXPENDITURES,SUPPLIES AND MATERIALS,DETAIL,2021-09-03,AP,1460486,CITI PCARD-APPLE STORE R516,2021-06-24,2021-06-24,OFFICE SUPPLIES (OUTSIDE),266.01,2021
,2021 DEMOCRATIC CAUCUS,3,GENERAL EXPENDITURES,SUPPLIES AND MATERIALS,DETAIL,2021-09-03,AP,1460486,CITI PCARD-APPLE.COM/US,2021-05-21,2021-06-20,OFFICE SUPPLIES (OUTSIDE),358.28,2021
,2021 DEMOCRATIC CAUCUS,3,GENERAL EXPENDITURES,SUPPLIES AND MATERIALS,DETAIL,2021-09-03,AP,1460486,CITI PCARD-APSTYLEBOOK.COM,2021-07-14,2022-07-14,PUBLICATIONS/REFERENCE MAT'L,30.74,2021
,2021 DEMOCRATIC CAUCUS,3,GENERAL EXPENDITURES,SUPPLIES AND MATERIALS,DETAIL,2021-09-03,AP,1460486,CITI PCARD-CATERCOW  ORDER 106220,2021-07-26,2021-07-26,FOOD & BEVERAGE,335.98,2021
,2021 DEMOCRATIC CAUCUS,3,GENERAL EXPENDITURES,SUPPLIES AND MATERIALS,DETAIL,2021-09-03,AP,1460486,CITI PCARD-D J WALL-ST-JOURNAL,2021-06-23,2021-07-23,PUBLICATIONS/REFERENCE MAT'L,45.57,2021
,2021 DEMOCRATIC CAUCUS,3,GENERAL EXPENDITURES,SUPPLIES AND MATERIALS,DETAIL,2021-09-03,AP,1460486,CITI PCARD-DISTRICT TACO 1003 CATERI,2021-07-21,2021-07-21,FOOD & BEVERAGE,-64,2021
,2021 DEMOCRATIC CAUCUS,3,GENERAL EXPENDITURES,SUPPLIES AND MATERIALS,DETAIL,2021-09-03,AP,1460486,CITI PCARD-EIG CONSTANTCONTACT.COM,2021-06-25,2021-07-25,PUBLICATIONS/REFERENCE MAT'L,47.7,2021
,2021 DEMOCRATIC CAUCUS,3,GENERAL EXPENDITURES,SUPPLIES AND MATERIALS,DETAIL,2021-09-03,AP,1460486,CITI PCARD-HARVARD BUS PUBLISHING,2021-06-24,2021-06-24,PUBLICATIONS/REFERENCE MAT'L,4024.28,2021
,2021 DEMOCRATIC CAUCUS,3,GENERAL EXPENDITURES,SUPPLIES AND MATERIALS,DETAIL,2021-09-03,AP,1460486,CITI PCARD-LONGWORTH FC,2021-06-21,2021-06-21,FOOD & BEVERAGE,30.25,2021
,2021 DEMOCRATIC CAUCUS,3,GENERAL EXPENDITURES,SUPPLIES AND MATERIALS,DETAIL,2021-09-03,AP,1460486,CITI PCARD-LONGWORTH FC,2021-06-28,2021-06-28,FOOD & BEVERAGE,27.5,2021
,2021 DEMOCRATIC CAUCUS,3,GENERAL EXPENDITURES,SUPPLIES AND MATERIALS,DETAIL,2021-09-03,AP,1460486,CITI PCARD-NOOSHI - CAPITOL HILL,2021-07-27,2021-07-27,FOOD & BEVERAGE,3150,2021
,2021 DEMOCRATIC CAUCUS,3,GENERAL EXPENDITURES,SUPPLIES AND MATERIALS,DETAIL,2021-09-03,AP,1460486,CITI PCARD-US SENATE CAFE,2021-07-27,2021-07-27,FOOD & BEVERAGE,2781.48,2021
,2021 DEMOCRATIC CAUCUS,3,GENERAL EXPENDITURES,SUPPLIES AND MATERIALS,DETAIL,2021-09-09,AP,1462435,IMPACTOFFICE,2021-06-16,2021-06-30,FOOD & BEVERAGE,77.8,2021
,2021 DEMOCRATIC CAUCUS,3,GENERAL EXPENDITURES,SUPPLIES AND MATERIALS,DETAIL,2021-09-15,AP,1465313,CITIBANK,2021-07-25,2021-08-25,PUBLICATIONS/REFERENCE MAT'L,-47.7,2021
,2021 DEMOCRATIC CAUCUS,3,GENERAL EXPENDITURES,SUPPLIES AND MATERIALS,DETAIL,2021-09-28,AP,1471540,IMPACTOFFICE,2021-07-01,2021-07-15,WATER,46.08,2021
,2021 DEMOCRATIC CAUCUS,3,GENERAL EXPENDITURES,SUPPLIES AND MATERIALS,DETAIL,2021-09-28,AP,1471540,IMPACTOFFICE,2021-07-01,2021-07-15,FOOD & BEVERAGE,450.33,2021
,2021 DEMOCRATIC CAUCUS,3,GENERAL EXPENDITURES,SUPPLIES AND MATERIALS,DETAIL,2021-09-28,AP,1471566,IMPACTOFFICE,2021-07-16,2021-07-31,FOOD & BEVERAGE,44.66,2021
,2021 DEMOCRATIC CAUCUS,3,GENERAL EXPENDITURES,SUPPLIES AND MATERIALS,DETAIL,2021-09-30,AP,1472521,READYREFRESH BY NESTLE,2021-08-31,2021-08-31,WATER,34.99,2021
,2021 DEMOCRATIC CAUCUS,3,GENERAL EXPENDITURES,SUPPLIES AND MATERIALS,DETAIL,2021-09-30,GL,RMS0110034, ,2021-09-01,2021-09-30,OFFICE SUPPLY (TRANSFER),197.47,2021
,2021 DEMOCRATIC CAUCUS,3,GENERAL EXPENDITURES,SUPPLIES AND MATERIALS,SUBTOTAL,   ,   ,   ,   ,   ,   ,SUPPLIES AND MATERIALS TOTALS:,49337.46,2021
,2021 DEMOCRATIC CAUCUS,3,GENERAL EXPENDITURES,EQUIPMENT,DETAIL,2021-07-21,AP,1439115,CITI PCARD-APPLE.COM/US,2021-05-03,2021-05-03,COMPUTER HARDW PURCH  LESS THAN $25 000,2542.94,2021
,2021 DEMOCRATIC CAUCUS,3,GENERAL EXPENDITURES,EQUIPMENT,DETAIL,2021-07-21,AP,1439115,CITI PCARD-APPLE.COM/US,2021-05-03,2021-05-03,WARRANTIES,390.37,2021
,2021 DEMOCRATIC CAUCUS,3,GENERAL EXPENDITURES,EQUIPMENT,DETAIL,2021-07-21,AP,1439115,CITI PCARD-BESTBUYCOM806455154415,2021-05-11,2021-05-11,COMPUTER HARDW PURCH  LESS THAN $25 000,2059.99,2021
,2021 DEMOCRATIC CAUCUS,3,GENERAL EXPENDITURES,EQUIPMENT,DETAIL,2021-07-30,GL,MNT0108289, ,2021-07-01,2021-07-31,MAINTENANCE / REPAIRS,490,2021
,2021 DEMOCRATIC CAUCUS,3,GENERAL EXPENDITURES,EQUIPMENT,DETAIL,2021-08-23,AP,1452988,CITI PCARD-APPLE.COM/US,2021-05-21,2021-05-21,OFFICE EQUIP PURCH LESS THAN $25 000,1905.88,2021
,2021 DEMOCRATIC CAUCUS,3,GENERAL EXPENDITURES,EQUIPMENT,DETAIL,2021-08-30,AP,1459239,DAWSON EARNESTINE E.,2021-08-12,2021-08-12,COMPUTER HARDW PURCH  LESS THAN $25 000,1255.59,2021
,2021 DEMOCRATIC CAUCUS,3,GENERAL EXPENDITURES,EQUIPMENT,DETAIL,2021-08-31,GL,MNT0109087, ,2021-08-01,2021-08-31,MAINTENANCE / REPAIRS,490,2021
,2021 DEMOCRATIC CAUCUS,3,GENERAL EXPENDITURES,EQUIPMENT,DETAIL,2021-09-03,AP,1460486,CITI PCARD-APPLE.COM/US,2021-05-21,2021-05-21,COMPUTER HARDW PURCH  LESS THAN $25 000,4025.88,2021
,2021 DEMOCRATIC CAUCUS,3,GENERAL EXPENDITURES,EQUIPMENT,DETAIL,2021-09-30,GL,MNT0109918, ,2021-09-01,2021-09-30,MAINTENANCE / REPAIRS,490,2021
,2021 DEMOCRATIC CAUCUS,3,GENERAL EXPENDITURES,EQUIPMENT,SUBTOTAL,   ,   ,   ,   ,   ,   ,EQUIPMENT TOTALS:,13650.65,2021
,2021 DEMOCRATIC CAUCUS,3,GENERAL EXPENDITURES,EQUIPMENT,SUBTOTAL,   ,   ,   ,   ,   ,   ,GENERAL EXPENDITURES TOTALS:,497504.95,2021
,2021 DEMOCRATIC CAUCUS,3,GENERAL EXPENDITURES,EQUIPMENT,GRAND TOTAL FOR ORGANIZATION,   ,   ,   ,   ,   ,   ,OFFICE TOTALS: ,497504.95,2021
,2021 DEMOCRATIC CAUCUS,3,INTERN ALLOWANCES,PERSONNEL COMPENSATION,DETAIL,   ,   ,   ,AKER LAWRENCE E.,2021-07-01,2021-08-06,DEM CAUCUS PAID INTERN - HOUSE,570,2021
,2021 DEMOCRATIC CAUCUS,3,INTERN ALLOWANCES,PERSONNEL COMPENSATION,DETAIL,   ,   ,   ,BIBEAU SARAH E.,2021-09-07,2021-09-30,DEM CAUCUS PAID INTERN - HOUSE,560,2021
,2021 DEMOCRATIC CAUCUS,3,INTERN ALLOWANCES,PERSONNEL COMPENSATION,DETAIL,   ,   ,   ,HAYTHORN JACOB H.,2021-09-07,2021-09-30,DEM CAUCUS PAID INTERN - HOUSE,560,2021
,2021 DEMOCRATIC CAUCUS,3,INTERN ALLOWANCES,PERSONNEL COMPENSATION,DETAIL,   ,   ,   ,JOHNSON TAEVION D.,2021-09-01,2021-09-30,DEM CAUCUS PAID INTERN - HOUSE,700,2021
,2021 DEMOCRATIC CAUCUS,3,INTERN ALLOWANCES,PERSONNEL COMPENSATION,DETAIL,   ,   ,   ,KAHLER DYLAN M.,2021-09-01,2021-09-30,DEM CAUCUS PAID INTERN - HOUSE,1000,2021
,2021 DEMOCRATIC CAUCUS,3,INTERN ALLOWANCES,PERSONNEL COMPENSATION,DETAIL,   ,   ,   ,LASSITER JAMES R.,2021-07-01,2021-08-06,DEM CAUCUS PAID INTERN - HOUSE,284.4,2021
,2021 DEMOCRATIC CAUCUS,3,INTERN ALLOWANCES,PERSONNEL COMPENSATION,DETAIL,   ,   ,   ,MANON MATEOS PABLO,2021-07-01,2021-07-31,DEM CAUCUS PAID INTERN - HOUSE,475,2021
,2021 DEMOCRATIC CAUCUS,3,INTERN ALLOWANCES,PERSONNEL COMPENSATION,DETAIL,   ,   ,   ,MAUPIN KENADI,2021-07-01,2021-08-06,DEM CAUCUS PAID INTERN - HOUSE,720,2021
,2021 DEMOCRATIC CAUCUS,3,INTERN ALLOWANCES,PERSONNEL COMPENSATION,DETAIL,   ,   ,   ,MITCHELL JOHNA B.,2021-07-01,2021-09-30,DEM CAUCUS PAID INTERN - HOUSE,2600,2021
,2021 DEMOCRATIC CAUCUS,3,INTERN ALLOWANCES,PERSONNEL COMPENSATION,DETAIL,   ,   ,   ,OSANDU ANFERNEE I.,2021-09-01,2021-09-30,DEM CAUCUS PAID INTERN - HOUSE,700,2021
,2021 DEMOCRATIC CAUCUS,3,INTERN ALLOWANCES,PERSONNEL COMPENSATION,DETAIL,   ,   ,   ,RODRIGUEZ JENNIFER,2021-07-01,2021-08-31,DEM CAUCUS PAID INTERN - HOUSE,1600,2021
,2021 DEMOCRATIC CAUCUS,3,INTERN ALLOWANCES,PERSONNEL COMPENSATION,DETAIL,   ,   ,   ,ROSEN MADELEINE,2021-07-01,2021-08-31,DEM CAUCUS PAID INTERN - HOUSE,500,2021
,2021 DEMOCRATIC CAUCUS,3,INTERN ALLOWANCES,PERSONNEL COMPENSATION,DETAIL,   ,   ,   ,TSETSENGARID BUYANDELGER,2021-09-01,2021-09-30,DEM CAUCUS PAID INTERN - HOUSE,700,2021
,2021 DEMOCRATIC CAUCUS,3,INTERN ALLOWANCES,PERSONNEL COMPENSATION,SUBTOTAL,   ,   ,   ,   ,   ,   ,PERSONNEL COMPENSATION TOTALS:,10969.4,2021
,2021 DEMOCRATIC CAUCUS,3,INTERN ALLOWANCES,PERSONNEL COMPENSATION,SUBTOTAL,   ,   ,   ,   ,   ,   ,INTERN ALLOWANCES TOTALS:,10969.4,2021
,2021 DEMOCRATIC CAUCUS,3,INTERN ALLOWANCES,PERSONNEL COMPENSATION,GRAND TOTAL FOR ORGANIZATION,   ,   ,   ,   ,   ,   ,OFFICE TOTALS: ,10969.4,2021
,2021 REPUBLICAN CONFERENCE,3,GENERAL EXPENDITURES,PERSONNEL COMPENSATION,DETAIL,   ,   ,   ,BRENNAN FRANCIS P.,2021-07-01,2021-09-30,DIRCTOR OF RAPID RESPONSE,23750.01,2021
,2021 REPUBLICAN CONFERENCE,3,GENERAL EXPENDITURES,PERSONNEL COMPENSATION,DETAIL,   ,   ,   ,BUTCHER COURTNEY R,2021-07-01,2021-09-30,DIRECTOR OF MEMBER SERVICES,36249.99,2021
,2021 REPUBLICAN CONFERENCE,3,GENERAL EXPENDITURES,PERSONNEL COMPENSATION,DETAIL,   ,   ,   ,DELQUIE SOPHIE L.,2021-08-04,2021-09-30,CREATIVE DIRECTOR,11875,2021
,2021 REPUBLICAN CONFERENCE,3,GENERAL EXPENDITURES,PERSONNEL COMPENSATION,DETAIL,   ,   ,   ,GIBBONS JOEL W.,2021-07-01,2021-09-30,DIGITAL & PRESS ASSISTANT,9999.99,2021
,2021 REPUBLICAN CONFERENCE,3,GENERAL EXPENDITURES,PERSONNEL COMPENSATION,DETAIL,   ,   ,   ,HAYNES JEFFREY,2021-07-01,2021-09-30,CHIEF OF STAFF TO CONFERENCE V,31250.01,2021
,2021 REPUBLICAN CONFERENCE,3,GENERAL EXPENDITURES,PERSONNEL COMPENSATION,DETAIL,   ,   ,   ,HITT ANDREA E,2021-08-02,2021-09-30,DEPUTY PRESS SECRETARY,9013.89,2021
,2021 REPUBLICAN CONFERENCE,3,GENERAL EXPENDITURES,PERSONNEL COMPENSATION,DETAIL,   ,   ,   ,HOFMAN RYAN,2021-07-01,2021-09-30,LEGISLATIVE ASSISTANT,16250.01,2021
,2021 REPUBLICAN CONFERENCE,3,GENERAL EXPENDITURES,PERSONNEL COMPENSATION,DETAIL,   ,   ,   ,HOLDREN AMY H,2021-07-01,2021-09-30,DIRECTOR OF OPERATIONS,17499.99,2021
,2021 REPUBLICAN CONFERENCE,3,GENERAL EXPENDITURES,PERSONNEL COMPENSATION,DETAIL,   ,   ,   ,JOANNOU THOMAS W.,2021-07-01,2021-09-30,PROJECT COORDINATOR,24999.99,2021
,2021 REPUBLICAN CONFERENCE,3,GENERAL EXPENDITURES,PERSONNEL COMPENSATION,DETAIL,   ,   ,   ,MOUNT ELIZABETH G,2021-06-01,2021-09-30,MEMBER SERVICES AND OPERATIONS,12916.68,2021
,2021 REPUBLICAN CONFERENCE,3,GENERAL EXPENDITURES,PERSONNEL COMPENSATION,DETAIL,   ,   ,   ,MOUNT ELIZABETH G,2021-07-01,2021-07-01,MEMBER SERVICES AND OPERATIONS (OTHER COMPENSATION),900,2021
,2021 REPUBLICAN CONFERENCE,3,GENERAL EXPENDITURES,PERSONNEL COMPENSATION,DETAIL,   ,   ,   ,NYCE BENJAMIN M,2021-07-01,2021-09-30,POLICY ADVISOR,18750,2021
,2021 REPUBLICAN CONFERENCE,3,GENERAL EXPENDITURES,PERSONNEL COMPENSATION,DETAIL,   ,   ,   ,PARDO ALELI M.,2021-07-01,2021-09-30,COMMUNICATIONS DIRECTOR,35000.01,2021
,2021 REPUBLICAN CONFERENCE,3,GENERAL EXPENDITURES,PERSONNEL COMPENSATION,DETAIL,   ,   ,   ,PARENT CHARYSSA R.,2021-07-01,2021-07-09,MEDIA AFFAIRS DIRECTOR,1800,2021
,2021 REPUBLICAN CONFERENCE,3,GENERAL EXPENDITURES,PERSONNEL COMPENSATION,DETAIL,   ,   ,   ,PARENT CHARYSSA R.,2021-07-10,2021-09-30,PRESS SECRETARY AND DIRECTOR O,19124.99,2021
,2021 REPUBLICAN CONFERENCE,3,GENERAL EXPENDITURES,PERSONNEL COMPENSATION,DETAIL,   ,   ,   ,PARENT CHARYSSA R.,2021-07-01,2021-07-09,MEDIA AFFAIRS DIRECTOR (OTHER COMPENSATION),1100,2021
,2021 REPUBLICAN CONFERENCE,3,GENERAL EXPENDITURES,PERSONNEL COMPENSATION,DETAIL,   ,   ,   ,RUHLEN MARY E,2021-07-01,2021-09-30,FINANCIAL ADMINISTRATOR,3805.55,2021
,2021 REPUBLICAN CONFERENCE,3,GENERAL EXPENDITURES,PERSONNEL COMPENSATION,DETAIL,   ,   ,   ,SANCHEZ TREJO CARLA A,2021-07-01,2021-09-30,STAFF ASSISTANT,9000,2021
,2021 REPUBLICAN CONFERENCE,3,GENERAL EXPENDITURES,PERSONNEL COMPENSATION,DETAIL,   ,   ,   ,SCHELLIN MEREDITH P,2021-07-01,2021-07-09,DEPUTY DIGITAL DIRECTOR,1562.5,2021
,2021 REPUBLICAN CONFERENCE,3,GENERAL EXPENDITURES,PERSONNEL COMPENSATION,DETAIL,   ,   ,   ,STEWART-HESTER PATRICK D.,2021-07-01,2021-09-30,CHIEF OF STAFF,15208.33,2021
,2021 REPUBLICAN CONFERENCE,3,GENERAL EXPENDITURES,PERSONNEL COMPENSATION,DETAIL,   ,   ,   ,THORNE DRAY A,2021-07-01,2021-09-30,SYSTEMS ADMINISTRATOR,31380,2021
,2021 REPUBLICAN CONFERENCE,3,GENERAL EXPENDITURES,PERSONNEL COMPENSATION,DETAIL,   ,   ,   ,VREEBURG JACOBUS A.,2021-07-01,2021-09-30,POLICY DIRECTOR,33750,2021
,2021 REPUBLICAN CONFERENCE,3,GENERAL EXPENDITURES,PERSONNEL COMPENSATION,SUBTOTAL,   ,   ,   ,   ,   ,   ,PERSONNEL COMPENSATION TOTALS:,365186.94,2021
,2021 REPUBLICAN CONFERENCE,3,GENERAL EXPENDITURES,TRAVEL,DETAIL,2021-09-29,AP,1470754,BUTCHER COURTNEY R.,2021-09-21,2021-09-22,TAXI/PARKING/TOLLS,32,2021
,2021 REPUBLICAN CONFERENCE,3,GENERAL EXPENDITURES,TRAVEL,SUBTOTAL,   ,   ,   ,   ,   ,   ,TRAVEL TOTALS:,32,2021
,2021 REPUBLICAN CONFERENCE,3,GENERAL EXPENDITURES,RENT  COMMUNICATION  UTILITIES,DETAIL,2021-07-09,AP,1438890,TVU NETWORKS CORPORATION,2021-07-04,2021-08-03,UTILITIES,300,2021
,2021 REPUBLICAN CONFERENCE,3,GENERAL EXPENDITURES,RENT  COMMUNICATION  UTILITIES,DETAIL,2021-07-20,AP,1441313,UNITED PARCEL SERVICE,2021-05-10,2021-05-10,POSTAGE / COURIER / BOX RENTAL,21.02,2021
,2021 REPUBLICAN CONFERENCE,3,GENERAL EXPENDITURES,RENT  COMMUNICATION  UTILITIES,DETAIL,2021-07-22,GL,EMS0108073, ,2021-06-01,2021-06-30,DC TELECOM EQUIP (TRANSFER),192,2021
,2021 REPUBLICAN CONFERENCE,3,GENERAL EXPENDITURES,RENT  COMMUNICATION  UTILITIES,DETAIL,2021-07-22,GL,EMS0108073, ,2021-06-01,2021-06-30,DC TELECOM SERV (TRANSFER),279,2021
,2021 REPUBLICAN CONFERENCE,3,GENERAL EXPENDITURES,RENT  COMMUNICATION  UTILITIES,DETAIL,2021-07-22,GL,EMS0108073, ,2021-06-01,2021-06-30,DC TELECOM TOLLS (TRANSFER),3662.75,2021
,2021 REPUBLICAN CONFERENCE,3,GENERAL EXPENDITURES,RENT  COMMUNICATION  UTILITIES,DETAIL,2021-07-26,AP,1441087,STEWART-HESTER PATRICK D.,2021-07-01,2021-08-01,UTILITIES,68.89,2021
,2021 REPUBLICAN CONFERENCE,3,GENERAL EXPENDITURES,RENT  COMMUNICATION  UTILITIES,DETAIL,2021-08-12,AP,1451595,STEWART-HESTER PATRICK D.,2021-08-01,2021-09-01,UTILITIES,68.89,2021
,2021 REPUBLICAN CONFERENCE,3,GENERAL EXPENDITURES,RENT  COMMUNICATION  UTILITIES,DETAIL,2021-08-12,AP,1451627,TVU NETWORKS CORPORATION,2021-08-09,2021-09-08,UTILITIES,300,2021
,2021 REPUBLICAN CONFERENCE,3,GENERAL EXPENDITURES,RENT  COMMUNICATION  UTILITIES,DETAIL,2021-08-30,GL,EMS0109045, ,2021-07-01,2021-07-31,DC TELECOM EQUIP (TRANSFER),92,2021
,2021 REPUBLICAN CONFERENCE,3,GENERAL EXPENDITURES,RENT  COMMUNICATION  UTILITIES,DETAIL,2021-08-30,GL,EMS0109045, ,2021-07-01,2021-07-31,DC TELECOM SERV (TRANSFER),286.75,2021
,2021 REPUBLICAN CONFERENCE,3,GENERAL EXPENDITURES,RENT  COMMUNICATION  UTILITIES,DETAIL,2021-08-30,GL,EMS0109045, ,2021-07-01,2021-07-31,DC TELECOM TOLLS (TRANSFER),3054.82,2021
,2021 REPUBLICAN CONFERENCE,3,GENERAL EXPENDITURES,RENT  COMMUNICATION  UTILITIES,DETAIL,2021-09-08,AP,1462021,TVU NETWORKS CORPORATION,2021-09-03,2021-10-02,UTILITIES,300,2021
,2021 REPUBLICAN CONFERENCE,3,GENERAL EXPENDITURES,RENT  COMMUNICATION  UTILITIES,DETAIL,2021-09-08,AP,1462684,STEWART-HESTER PATRICK D.,2021-09-01,2021-10-01,UTILITIES,68.89,2021
,2021 REPUBLICAN CONFERENCE,3,GENERAL EXPENDITURES,RENT  COMMUNICATION  UTILITIES,DETAIL,2021-09-22,AP,1469228,TVU NETWORKS CORPORATION,2021-04-07,2021-05-06,UTILITIES,300,2021
,2021 REPUBLICAN CONFERENCE,3,GENERAL EXPENDITURES,RENT  COMMUNICATION  UTILITIES,DETAIL,2021-09-27,GL,EMS0109741, ,2021-08-01,2021-08-31,DC TELECOM EQUIP (TRANSFER),60,2021
,2021 REPUBLICAN CONFERENCE,3,GENERAL EXPENDITURES,RENT  COMMUNICATION  UTILITIES,DETAIL,2021-09-27,GL,EMS0109741, ,2021-08-01,2021-08-31,DC TELECOM SERV (TRANSFER),147.25,2021
,2021 REPUBLICAN CONFERENCE,3,GENERAL EXPENDITURES,RENT  COMMUNICATION  UTILITIES,DETAIL,2021-09-27,GL,EMS0109741, ,2021-08-01,2021-08-31,DC TELECOM TOLLS (TRANSFER),5879.06,2021
,2021 REPUBLICAN CONFERENCE,3,GENERAL EXPENDITURES,RENT  COMMUNICATION  UTILITIES,SUBTOTAL,   ,   ,   ,   ,   ,   ,RENT  COMMUNICATION  UTILITIES TOTALS:,15081.32,2021
,2021 REPUBLICAN CONFERENCE,3,GENERAL EXPENDITURES,PRINTING AND REPRODUCTION,DETAIL,2021-07-08,AP,1431974,ACCURATE WORD,2021-06-15,2021-06-15,PRINTING & REPRODUCTION,429,2021
,2021 REPUBLICAN CONFERENCE,3,GENERAL EXPENDITURES,PRINTING AND REPRODUCTION,DETAIL,2021-07-28,AP,1447889,ACCURATE WORD,2021-07-22,2021-07-22,PRINTING & REPRODUCTION,33,2021
,2021 REPUBLICAN CONFERENCE,3,GENERAL EXPENDITURES,PRINTING AND REPRODUCTION,DETAIL,2021-08-11,AP,1451586,ACCURATE WORD,2021-08-03,2021-08-03,PRINTING & REPRODUCTION,566,2021
,2021 REPUBLICAN CONFERENCE,3,GENERAL EXPENDITURES,PRINTING AND REPRODUCTION,DETAIL,2021-08-11,AP,1451588,ACCURATE WORD,2021-07-29,2021-07-29,PRINTING & REPRODUCTION,654.5,2021
,2021 REPUBLICAN CONFERENCE,3,GENERAL EXPENDITURES,PRINTING AND REPRODUCTION,DETAIL,2021-09-09,AP,1461668,GETTY IMAGES INC,2021-08-30,2021-08-30,PRINTING & REPRODUCTION,8200,2021
,2021 REPUBLICAN CONFERENCE,3,GENERAL EXPENDITURES,PRINTING AND REPRODUCTION,DETAIL,2021-09-17,AP,1463596,ACCURATE WORD,2021-09-09,2021-09-09,PRINTING & REPRODUCTION,33,2021
,2021 REPUBLICAN CONFERENCE,3,GENERAL EXPENDITURES,PRINTING AND REPRODUCTION,SUBTOTAL,   ,   ,   ,   ,   ,   ,PRINTING AND REPRODUCTION TOTALS:,9915.5,2021
,2021 REPUBLICAN CONFERENCE,3,GENERAL EXPENDITURES,OTHER SERVICES,DETAIL,2021-07-21,AP,1445802,PARDO ALELI M.,2021-07-01,2021-08-01,TECHNOLOGY SERVICE CONTRACTS,56.17,2021
,2021 REPUBLICAN CONFERENCE,3,GENERAL EXPENDITURES,OTHER SERVICES,DETAIL,2021-07-26,AP,1441087,STEWART-HESTER PATRICK D.,2021-07-04,2021-08-04,TECHNOLOGY SERVICE CONTRACTS,56.17,2021
,2021 REPUBLICAN CONFERENCE,3,GENERAL EXPENDITURES,OTHER SERVICES,DETAIL,2021-07-26,AP,1441087,STEWART-HESTER PATRICK D.,2021-07-06,2021-08-06,WEB DEV HST EMAIL & RLTD SERV,572.35,2021
,2021 REPUBLICAN CONFERENCE,3,GENERAL EXPENDITURES,OTHER SERVICES,DETAIL,2021-08-12,AP,1451595,STEWART-HESTER PATRICK D.,2021-07-27,2021-08-27,TECHNOLOGY SERVICE CONTRACTS,56.17,2021
,2021 REPUBLICAN CONFERENCE,3,GENERAL EXPENDITURES,OTHER SERVICES,DETAIL,2021-08-12,AR,AC-17276,STEWART-HESTER PATRICK D.,2021-07-04,2021-08-04,TECHNOLOGY SERVICE CONTRACTS,-56.17,2021
,2021 REPUBLICAN CONFERENCE,3,GENERAL EXPENDITURES,OTHER SERVICES,DETAIL,2021-08-16,AP,1451649,STEWART-HESTER PATRICK D.,2021-08-06,2021-09-06,WEB DEV HST EMAIL & RLTD SERV,572.35,2021
,2021 REPUBLICAN CONFERENCE,3,GENERAL EXPENDITURES,OTHER SERVICES,DETAIL,2021-09-23,AP,1462690,ELEVEN11 GROUP LLC,2021-06-01,2021-06-30,WEB DEV HST EMAIL & RLTD SERV,2545,2021
,2021 REPUBLICAN CONFERENCE,3,GENERAL EXPENDITURES,OTHER SERVICES,DETAIL,2021-09-23,AP,1462692,ELEVEN11 GROUP LLC,2021-07-01,2021-07-31,WEB DEV HST EMAIL & RLTD SERV,2545,2021
,2021 REPUBLICAN CONFERENCE,3,GENERAL EXPENDITURES,OTHER SERVICES,DETAIL,2021-09-23,AP,1469225,STEWART-HESTER PATRICK D.,2021-09-06,2021-10-06,WEB DEV HST EMAIL & RLTD SERV,572.35,2021
,2021 REPUBLICAN CONFERENCE,3,GENERAL EXPENDITURES,OTHER SERVICES,SUBTOTAL,   ,   ,   ,   ,   ,   ,OTHER SERVICES TOTALS:,6919.39,2021
,2021 REPUBLICAN CONFERENCE,3,GENERAL EXPENDITURES,SUPPLIES AND MATERIALS,DETAIL,2021-07-01,AP,1436741,IMPACTOFFICE,2021-06-01,2021-06-15,WATER,224.84,2021
,2021 REPUBLICAN CONFERENCE,3,GENERAL EXPENDITURES,SUPPLIES AND MATERIALS,DETAIL,2021-07-01,AP,1436741,IMPACTOFFICE,2021-06-01,2021-06-15,FOOD & BEVERAGE,1295.63,2021
,2021 REPUBLICAN CONFERENCE,3,GENERAL EXPENDITURES,SUPPLIES AND MATERIALS,DETAIL,2021-07-01,AP,1436741,IMPACTOFFICE,2021-06-01,2021-06-15,OFFICE SUPPLIES (OUTSIDE),75.45,2021
,2021 REPUBLICAN CONFERENCE,3,GENERAL EXPENDITURES,SUPPLIES AND MATERIALS,DETAIL,2021-07-15,AP,1438901,STEWART-HESTER PATRICK D.,2021-06-25,2021-06-29,FOOD & BEVERAGE,2715.33,2021
,2021 REPUBLICAN CONFERENCE,3,GENERAL EXPENDITURES,SUPPLIES AND MATERIALS,DETAIL,2021-07-15,AP,1438901,STEWART-HESTER PATRICK D.,2021-06-30,2021-07-30,SOFTWARE  LESS THAN  $500,9.99,2021
,2021 REPUBLICAN CONFERENCE,3,GENERAL EXPENDITURES,SUPPLIES AND MATERIALS,DETAIL,2021-07-15,AP,1438901,STEWART-HESTER PATRICK D.,2021-07-02,2022-07-02,SOFTWARE  LESS THAN  $500,173.49,2021
,2021 REPUBLICAN CONFERENCE,3,GENERAL EXPENDITURES,SUPPLIES AND MATERIALS,DETAIL,2021-07-23,AP,1446951,STEWART-HESTER PATRICK D.,2021-07-15,2021-07-23,FOOD & BEVERAGE,5704.46,2021
,2021 REPUBLICAN CONFERENCE,3,GENERAL EXPENDITURES,SUPPLIES AND MATERIALS,DETAIL,2021-07-23,AP,1446951,STEWART-HESTER PATRICK D.,2021-07-02,2021-07-02,SOFTWARE  LESS THAN  $500,49,2021
,2021 REPUBLICAN CONFERENCE,3,GENERAL EXPENDITURES,SUPPLIES AND MATERIALS,DETAIL,2021-07-23,AP,1446951,STEWART-HESTER PATRICK D.,2021-07-07,2021-08-07,SOFTWARE  LESS THAN  $500,64.95,2021
,2021 REPUBLICAN CONFERENCE,3,GENERAL EXPENDITURES,SUPPLIES AND MATERIALS,DETAIL,2021-07-23,AP,1446951,STEWART-HESTER PATRICK D.,2021-07-19,2021-08-19,SOFTWARE  LESS THAN  $500,1010,2021
,2021 REPUBLICAN CONFERENCE,3,GENERAL EXPENDITURES,SUPPLIES AND MATERIALS,DETAIL,2021-07-23,AP,1446951,STEWART-HESTER PATRICK D.,2021-07-17,2022-07-17,PUBLICATIONS/REFERENCE MAT'L,65,2021
,2021 REPUBLICAN CONFERENCE,3,GENERAL EXPENDITURES,SUPPLIES AND MATERIALS,DETAIL,2021-07-26,AP,1441087,STEWART-HESTER PATRICK D.,2021-07-09,2021-08-09,PUBLICATIONS/REFERENCE MAT'L,9.48,2021
,2021 REPUBLICAN CONFERENCE,3,GENERAL EXPENDITURES,SUPPLIES AND MATERIALS,DETAIL,2021-07-26,AP,1441087,STEWART-HESTER PATRICK D.,2021-07-09,2022-07-09,PUBLICATIONS/REFERENCE MAT'L,194,2021
,2021 REPUBLICAN CONFERENCE,3,GENERAL EXPENDITURES,SUPPLIES AND MATERIALS,DETAIL,2021-07-29,AP,1448526,BUTCHER COURTNEY R.,2021-07-21,2021-07-21,OFFICE SUPPLIES (OUTSIDE),166.21,2021
,2021 REPUBLICAN CONFERENCE,3,GENERAL EXPENDITURES,SUPPLIES AND MATERIALS,DETAIL,2021-07-31,GL,RMS0108347, ,2021-07-01,2021-07-31,OFFICE SUPPLY (TRANSFER),356.9,2021
,2021 REPUBLICAN CONFERENCE,3,GENERAL EXPENDITURES,SUPPLIES AND MATERIALS,DETAIL,2021-08-12,AP,1451591,STEWART-HESTER PATRICK D.,2021-05-02,2021-06-02,PUBLICATIONS/REFERENCE MAT'L,47.69,2021
,2021 REPUBLICAN CONFERENCE,3,GENERAL EXPENDITURES,SUPPLIES AND MATERIALS,DETAIL,2021-08-12,AP,1451591,STEWART-HESTER PATRICK D.,2021-05-17,2021-06-13,PUBLICATIONS/REFERENCE MAT'L,42.4,2021
,2021 REPUBLICAN CONFERENCE,3,GENERAL EXPENDITURES,SUPPLIES AND MATERIALS,DETAIL,2021-08-12,AP,1451591,STEWART-HESTER PATRICK D.,2021-06-02,2021-07-02,PUBLICATIONS/REFERENCE MAT'L,47.69,2021
,2021 REPUBLICAN CONFERENCE,3,GENERAL EXPENDITURES,SUPPLIES AND MATERIALS,DETAIL,2021-08-12,AP,1451591,STEWART-HESTER PATRICK D.,2021-07-12,2021-08-08,PUBLICATIONS/REFERENCE MAT'L,42.4,2021
,2021 REPUBLICAN CONFERENCE,3,GENERAL EXPENDITURES,SUPPLIES AND MATERIALS,DETAIL,2021-08-12,AP,1451595,STEWART-HESTER PATRICK D.,2021-06-24,2021-07-24,SOFTWARE  LESS THAN  $500,33,2021
,2021 REPUBLICAN CONFERENCE,3,GENERAL EXPENDITURES,SUPPLIES AND MATERIALS,DETAIL,2021-08-12,AP,1451595,STEWART-HESTER PATRICK D.,2021-07-26,2021-08-26,SOFTWARE  LESS THAN  $500,9.99,2021
,2021 REPUBLICAN CONFERENCE,3,GENERAL EXPENDITURES,SUPPLIES AND MATERIALS,DETAIL,2021-08-12,AP,1451595,STEWART-HESTER PATRICK D.,2021-06-14,2021-07-11,PUBLICATIONS/REFERENCE MAT'L,42.4,2021
,2021 REPUBLICAN CONFERENCE,3,GENERAL EXPENDITURES,SUPPLIES AND MATERIALS,DETAIL,2021-08-12,AP,1451595,STEWART-HESTER PATRICK D.,2021-07-02,2021-08-02,PUBLICATIONS/REFERENCE MAT'L,47.69,2021
,2021 REPUBLICAN CONFERENCE,3,GENERAL EXPENDITURES,SUPPLIES AND MATERIALS,DETAIL,2021-08-16,AP,1451649,STEWART-HESTER PATRICK D.,2021-08-02,2021-09-02,PUBLICATIONS/REFERENCE MAT'L,52.99,2021
,2021 REPUBLICAN CONFERENCE,3,GENERAL EXPENDITURES,SUPPLIES AND MATERIALS,DETAIL,2021-08-24,AP,1454859,STEWART-HESTER PATRICK D.,2021-08-08,2021-09-08,SOFTWARE  LESS THAN  $500,64.95,2021
,2021 REPUBLICAN CONFERENCE,3,GENERAL EXPENDITURES,SUPPLIES AND MATERIALS,DETAIL,2021-08-24,AP,1454859,STEWART-HESTER PATRICK D.,2021-08-06,2021-09-03,PUBLICATIONS/REFERENCE MAT'L,4.24,2021
